Workbook

Sheet прил.1
A6: Отчет об исполнении бюджета за 2012 год по доходам бюджета Черемховского районного муниципального образования по кодам классификации доходов бюджетов
A9: Наименование | B9: Код бюджетной классификации | D9: План на год, тыс. руб. | E9: Исполнено, тыс. руб. | F9: % исполнения
B10: главного администратора доходов | C10: доходов районного бюджета
A11: 1 | B11: 2 | C11: 3 | D11: 4 | E11: 5 | F11: 6
A12: НАЛОГОВЫЕ И НЕНАЛОГОВЫЕ ДОХОДЫ | B12: 000 | C12: 1 00 00000 00 0000 000 | D12: =D13+D18+D28+D32+D35+D40+D45+D52+D57+D64 -> 102843.3 | E12: =E13+E18+E28+E32+E35+E40+E45+E52+E57+E64 -> 104758.4095 | F12: =E12/D12 -> 1.018621627
A13: НАЛОГИ НА ПРИБЫЛЬ, ДОХОДЫ | B13: 182 | C13: 1 01 00000 00 0000 000 | D13: =D14+D15+D16+D17 -> 51800 | E13: =E14+E15+E16+E17 -> 53904.4777 | F13: =E13/D13 -> 1.040626983
A14: Налог на доходы физических лиц с доходов, источником которых является налоговый агент, за исключением доходов, в отношении которых исчисление и уплата налога осуществляются в соответствии со статьями 227,227¹ и 228 Налогового кодекса Российской Федерации | B14: 182 | C14: 1 01 02010 01 0000 110 | D14: 51600 | E14: 53712.75112 | F14: 1.040944789
A15: Налог на доходы физических лиц с доходов, полученных от осуществления деятельности физическими лицами,зарегистрированными в качестве индивидуальных предпринимателей,нотариусов,занимающихся частной практикой,адвокатов,учредивших адвокатские кабинеты и других лиц, занимающихся частной практикой | B15: 182 | C15: 1 01 02020 01 0000 110 | D15: 50 | E15: 49.19502 | F15: 0.9839004
A16: Налог на доходы физических лиц с доходов, полученных физическими лицами, не являющимися налоговыми резидентами | B16: 182 | C16: 1 01 02030 01 0000 110 | D16: 147 | E16: 140.21046 | F16: 0.9538126531
A17: Налог на доходы физических лиц в виде фиксированных авансовых платежей с доходов, полученных физическими лицами, являющимися иностанными гражданами, осуществляющими трудовую деятельность по найму у физических лиц на основании патента | B17: 182 | C17: 1 01 02040 01 0000 110 | D17: 3 | E17: 2.3211 | F17: 0.7737
A18: НАЛОГИ НА СОВОКУПНЫЙ ДОХОД | B18: 182 | C18: 1 05 00000 00 0000 000 | D18: =D19+D26+D27 -> 8784 | E18: =E19+E26+E27 -> 8768.95778 | F18: 0.9982875433
A19: Налог, взимаемый в связи с применением упрощенной системы налогообложения | B19: 182 | C19: 1 05 01000 00 0000 110 | D19: =D20+D22+D23+D24+D25+D21 -> 3894 | E19: =E20+E22+E23+E24+E25+E21 -> 3892.70595 | F19: 0.999667681
A20: Налог, взимаемый с налогоплательщиков, выбравших в качестве объекта налогообложения доходы | B20: 182 | C20: 1 05 01010 01 0000 110 | D20: 1550 | E20: 1662.22828 | F20: 1.072405342
A21: Налог, взимаемый с налогоплательщиков, выбравших в качестве объекта налогообложения доходы (за налоговые периоды, истекшие до 1 января 2011 года) | B21: 182 | C21: 1 05 01012 01 0000 110 | D21: 0 | E21: -20.54664 | F21: 0
A22: Налог, взимаемый с налогоплательщиков, выбравших в качестве объекта налогообложения доходы, уменьшенные на величину расходов | B22: 182 | C22: 1 05 01020 01 0000 110 | D22: 1500 | E22: 1458.68241 | F22: 0.97245494
A23: Налог, взимаемый с налогоплательщиков, выбравших в качестве объекта налогообложения доходы, уменьшенные на величину расходов (за налоговые периоды, истекшие до 1 января 2011 года) | B23: 182 | C23: 1 05 01022 01 0000 110 | D23: 85 | E23: 81.74998 | F23: 0.9617644706
A24: Налог, взимаемый в виде стоимости патента в связи с применением упрощенной системы налогооблажения | B24: 182 | C24: 1 05 01041 02 0000 110 | D24: 9 | E24: 8.785 | F24: 0.9761111111
A25: Минимальный налог, зачисляемый в бюджеты субьектов РФ | B25: 182 | C25: 1 05 01050 01 0000 110 | D25: 750 | E25: 701.80692 | F25: 0.93574256
A26: Единый налог на вмененный доход для отдельных видов деятельности | B26: 182 | C26: 1 05 02000 02 0000 110 | D26: 4800 | E26: 4786.14888 | F26: 0.99711435
A27: Единый сельскохозяйственный налог | B27: 182 | C27: 1 05 03000 01 0000 110 | D27: 90 | E27: 90.10295 | F27: 1.001143889
A28: ГОСУДАРСТВЕННАЯ ПОШЛИНА | B28: 000 | C28: 1 08 00000 00 0000 000 | D28: =D29+D30+D31 -> 1122 | E28: =E29+E30+E31 -> 1139.95722 | F28: 1.016004652
A29: Государственная пошлина по делам, рассматриваемым в судах общей юрисдикции, мировыми судьями (за исключением Верховного Суда Российской Федерации) | B29: 182 | C29: 1 08 03010 01 0000 110 | D29: 230 | E29: 243.95722 | F29: 1.060683565
A30: Государственная пошлина за совершение действий, связанных с лицензированием, с проведением аттестации в случаях, если такая аттестация предусмотрена законодательством Российской Федерации, зачисляемая в бюджеты муниципальных районов | B30: 917 | C30: 1 08 07084 01 1000 110 | D30: 892 | E30: 896 | F30: 1.004484305
A31: Государственная пошлина за государственную регистрацию транспортных средств и иные юридически значимые действия, связанные с изменениями и выдачей документов на транспортные средства, выдачей регистрационных знаков, приемом квалификационных экзаменов на получение права на управление транспортными средствами | B31: 000 | C31: 1 08 07141 01 0000 110 | D31: 0
A32: ЗАДОЛЖЕННОСТЬ И ПЕРЕРАСЧЕТЫ ПО ОТМЕНЕННЫМ НАЛОГАМ, СБОРАМ И ИНЫМ ОБЯЗАТЕЛЬНЫМ ПЛАТЕЖАМ | B32: 182 | C32: 1 09 00000 00 0000 000 | D32: =D33+D34 -> 10 | E32: =E33+E34 -> 10.47603 | F32: 1.047603
A33: Налог на имущество предприятий | B33: 182 | C33: 1 09 04010 02 0000 110 | D33: 0.2 | E33: 0.12896 | F33: 0.6448
A34: Налог с продаж | B34: 182 | C34: 1 09 06010 02 0000 110 | D34: 9.8 | E34: 10.34707 | F34: 1.055823469
A35: ДОХОДЫ ОТ ИСПОЛЬЗОВАНИЯ ИМУЩЕСТВА, НАХОДЯЩЕГОСЯ В ГОСУДАРСТВЕННОЙ И МУНИЦИПАЛЬНОЙ СОБСТВЕННОСТИ | B35: 000 | C35: 1 11 00000 00 0000 000 | D35: =D36+D39 -> 12600 | E35: =E36+E39 -> 12240.52586 | F35: 0.9714703063
A36: Доходы, получаемые в виде арендной платы за земельные участки,государственная собственность на которые не разграничена и которые расположеныв границах поселений, а также средства от продажи права на заключение договоров аренды указанных земельных участков | B36: 000 | C36: 1 11 05013 10 0000 120 | D36: =D37+D38 -> 8800 | E36: =E37+E38 -> 8626.58903 | F36: 0.980294208
A37: Доходы, получаемые в виде арендной платы за земельные участки, государственная собственность на которые не разграничена и которые расположены в границах поселений, а также средства от продажи права на заключение договоров аренды указанных земельных участков | B37: 913 | C37: 1 11 05013 10 0000 120 | D37: 8000 | E37: 7770.78486 | F37: 0.9713481075
A38: Доходы, получаемые в виде арендной платы за земельные участки,государственная собственность на которые не разграничена и которые расположеныв границах поселений, а также средства от продажи права на заключение договоров аренды указанных земельных участков | B38: 950 | C38: 1 11 05013 10 0000 120 | D38: 800 | E38: 855.80417 | F38: 1.069755213
A39: Доходы от сдачи в аренду имущества, находящегося в оперативном управлении органов управления муниципальных районов и созданных ими учреждений (за исключением имущества муниципальных автономных учреждений) | B39: 913 | C39: 1 11 05035 05 0000 120 | D39: 3800 | E39: 3613.93683 | F39: 0.9510360079
A40: ПЛАТЕЖИ ПРИ ПОЛЬЗОВАНИИ ПРИРОДНЫМИ РЕСУРСАМИ | B40: 048 | C40: 1 12 00000 00 0000 000 | D40: =D41 -> 170 | E40: =E41 -> 157.46968 | F40: 0.9262922353
A41: Плата за негативное воздействие на окружающую среду | B41: 048 | C41: 1 12 01000 01 0000 120 | D41: =D42+D43+D44 -> 170 | E41: =E42+E43+E44 -> 157.46968 | F41: 0.9262922353
A42: Плата за выбросы загрязняющих веществ в атмосферный воздух стационарными объектами | B42: 048 | C42: 1 12 01010 01 0000 120 | D42: 90.48 | E42: 83.69948 | F42: 0.9250605659
A43: Плата за выбросы загрязняющих веществ в атмосферный воздух передвижными объектами | B43: 048 | C43: 1 12 01020 01 0000 120 | D43: 20.84 | E43: 17.87034 | F43: 0.8575019194
A44: Плата за размещение отходов производства и потребления | B44: 048 | C44: 1 12 01040 01 0000 120 | D44: 58.68 | E44: 55.89986 | F44: 0.9526220177
A45: ДОХОДЫ ОТ ОКАЗАНИЯ ПЛАТНЫХ УСЛУГ И КОМПЕНСАЦИИ ЗАТРАТ ГОСУДАРСТВА | B45: 000 | C45: 1 13 00000 00 0000 000 | D45: =D46 -> 6351.5 | E45: =E46 -> 6379.84348 | F45: 1.004462486
A46: Прочие доходы от оказания платных услуг (работ) получателями средств бюджетов муниципальных районов | B46: 000 | C46: 1 13 01000 00 0000 130 | D46: =D47+D48+D49+D50+D51 -> 6351.5 | E46: =E47+E48+E49+E50+E51 -> 6379.84348 | F46: 1.004462486
A47: Прочие доходы от оказания платных услуг (работ) получателями средств бюджетов муниципальных районов | B47: 907 | C47: 113 01995 05 0000 130 | D47: 6000 | E47: 6036.78517 | F47: 1.006130862
A48: Прочие доходы от оказания платных услуг (работ) получателями средств бюджетов муниципальных районов (МКУК МКЦ АЧРМО) | B48: 919 | C48: 113 01995 05 0000 130 | D48: 85 | E48: 84 | F48: 0.9882352941
A49: Прочие доходы от оказания платных услуг (работ) получателями средств бюджетов муниципальных районов (МКУК РИК МУЗЕЙ) | B49: 920 | C49: 113 01995 05 0000 130 | D49: 22 | E49: 22 | F49: 1
A50: Прочие доходы от оказания платных услуг (работ) получателями средств бюджетов муниципальных районов (МКУК МБЧР) | B50: 921 | C50: 113 01995 05 0000 130 | D50: 24.5 | E50: 22.635 | F50: 0.923877551
A51: Прочие доходы от оказания платных услуг (работ) получателями средств бюджетов муниципальных районов (МКОУ ДОД ДШИ) | B51: 922 | C51: 113 01995 05 0000 130 | D51: 220 | E51: 214.42331 | F51: 0.9746514091
A52: ДОХОДЫ ОТ ПРОДАЖИ МАТЕРИАЛЬНЫХ И НЕМАТЕРИАЛЬНЫХ АКТИВОВ | B52: 913 | C52: 1 14 00000 00 0000 000 | D52: =D53+D55 -> 20846.8 | E52: =E53+E55 -> 20782.67567 | F52: 0.9969240205
A53: Доходы от реализации имущества, находящегося в государственной и муниципальной собственности (за исключением имущества автономных учреждений, а также имущества государственных и муниципальных унитарных предприятий, в том числе казенных) | B53: 913 | C53: 1 14 02000 00 0000 000 | D53: =D54 -> 20246.8 | E53: =E54 -> 20201.171 | F53: 0.9977463599
A54: Доходы от реализации иного имущества, находящегося в собственности муниципальных районов (за исключением имущества муниципальных автономных учреждений, а также имущества муниципальных унитарных предприятий, в том числе казенных), в части реализации основных средств по указанному имуществу | B54: 913 | C54: 1 14 02053 05 0000 410 | D54: 20246.8 | E54: 20201.171 | F54: 0.9977463599
A55: Доходы от продажи земельных участков, находящихся в государственной и муниципальной собственности (за исключением земельных участков автономных учреждений) | B55: 913 | C55: 1 14 06000 00 0000 430 | D55: =D56 -> 600 | E55: =E56 -> 581.50467 | F55: 0.96917445
A56: Доходы от продажи земельных участков, государственная собственность на которые не разграничена и которые расположены в границах поселений | B56: 913 | C56: 1 14 06013 10 0000 430 | D56: 600 | E56: 581.50467 | F56: 0.96917445
A57: ШТРАФЫ, САНКЦИИ, ВОЗМЕЩЕНИЕ УЩЕРБА | B57: 000 | C57: 1 16 00000 00 0000 000 | D57: =D58+D59+D60+D61+D63+D62 -> 628 | E57: =E58+E59+E60+E61+E63+E62 -> 634.43998 | F57: 1.010254745
A58: Денежные взыскания (штрафы) за нарушение законодательства о налогах и сборах | B58: 182 | C58: 1 16 03000 01 0000 140 | D58: 47 | E58: 46.51532 | F58: 0.9896876596
A59: Денежные взыскания (штрафы) за административные правонарушения в области государственного регулирования производства и оборота этилового спирта, алкогольной и спиртосодержащей продукции | B59: 188 | C59: 1 16 08000 01 0000 140 | D59: 3.5 | E59: 3.5 | F59: 1
A60: Денежные взыскания (штрафы) за нарушение законодательства о недрах, об особо охраняемых природных территориях, об охране и использовании животного мира, об экологической экспертизе, в области охраны окружающей среды, земельного законодательства | B60: 000 | C60: 1 16 25000 01 0000 140 | D60: 63 | E60: 65.0191 | F60: 1.032049206
A61: Денежные взыскания (штрафы) за административные правонарушения в области дорожного движения | B61: 188 | C61: 1 16 30014 01 0000 140 | D61: 29 | E61: 28.9648 | F61: 0.9987862069
A62: Денежные взыскания (штрафы) за нарушение законодательства РФ об административных правонарушениях, предусмотренные статьей 20.25 Кодекса РФ об административных правонарушений | B62: 188 | C62: 1 16 43000 01 0000 140 | D62: 2 | E62: 2 | F62: 1
A63: Прочие поступления от денежных взысканий (штрафов) и иных сумм в возмещение ущерба, зачисляемые в бюджеты муниципальных районов | B63: 000 | C63: 1 16 90050 05 0000 140 | D63: 483.5 | E63: 488.44076 | F63: 1.010218738
A64: ПРОЧИЕ НЕНАЛОГОВЫЕ ДОХОДЫ | B64: 000 | C64: 1 17 00000 00 0000 000 | D64: =D65+D66 -> 531 | E64: =E65+E66 -> 739.58613 | F64: 1.392817571
A65: Невыясненные поступления | B65: 000 | C65: 1 17 01000 00 0000 180 | D65: 0 | E65: 198.54674 | F65: 0
A66: Прочие неналоговые доходы | B66: 000 | C66: 1 17 05000 00 0000 180 | D66: 531 | E66: 541.03939 | F66: 1.018906573
A67: БЕЗВОЗМЕЗДНЫЕ ПОСТУПЛЕНИЯ | B67: 000 | C67: 2 00 00000 00 0000 000 | D67: =D68+D123+D125 -> 556724.8954 | E67: =E68+E123+E125 -> 548166.556 | F67: 0.9846273456
A68: БЕЗВОЗМЕЗДНЫЕ ПОСТУПЛЕНИЯ ИЗ ДРУГИХ БЮДЖЕТОВ БЮДЖЕТНОЙ СИСТЕМЫ РФ | B68: 000 | C68: 2 02 00000 00 0000 151 | D68: =D69+D72+D90+D108 -> 551066.0954 | E68: =E69+E72+E90+E108 -> 542420.756 | F68: 0.9843116107
A69: ДОТАЦИИ БЮДЖЕТАМ МУНИЦИПАЛЬНЫХ ОБРАЗОВАНИЙ | B69: 000 | C69: 2 02 01000 00 0000 151 | D69: =D70+D71 -> 128485 | E69: =E70+E71 -> 128485 | F69: 1
A70: Дотации муниципальным районам на выравнивание уровня бюджетной обеспеченности | B70: 910 | C70: 2 02 01001 05 0000 151 | D70: 115567 | E70: 115567 | F70: 1
A71: Дотации муниципальным районам на поддержку мер по обеспечению сбалансированности бюджетов | B71: 910 | C71: 2 02 01003 05 0000 151 | D71: 12918 | E71: 12918 | F71: 1
A72: СУБСИДИИ БЮДЖЕТАМ МУНИЦИПАЛЬНЫХ ОБРАЗОВАНИЙ | B72: 000 | C72: 2 02 02000 00 0000 151 | D72: =D73+D74+D75+D77+D76 -> 93221.524 | E72: =E73+E74+E75+E77+E76 -> 93135.214 | F72: 0.9990741409
A73: Федеральная программа "Молодым семьям - доступное жилье на 2005-2019 годы" | B73: 917 | C73: 2 02 02051 05 0000 151 | D73: 166.824 | E73: 166.824 | F73: 1
A74: Долгосрочная целевая программа "Энергосбережение и повышение энергетической эффективности на территории Иркутской области на 2011-2015 годы и на период до 2020 года | B74: 910 | C74: 2 02 02150 05 0000 151 | D74: 471.4 | E74: 471.35 | F74: 0.999893933
A75: Областная государственная социальная программа "Молодым семьям- доступное жилье" на 2005-2019 годы" | B75: 917 | C75: 2 02 02008 05 0000 151 | D75: 190.656 | E75: 190.656 | F75: 1
A76: Долгосрочная целевая программа «Поддержка и развитие малого и среднего предпринимательства в Иркутской области» на 2011-2012 годы (за счет федерального бюджета) | B76: 917 | C76: 2 02 02009 05 0000 151 | D76: 240 | E76: 0 | F76: 0
A77: Прочие субсидии | B77: 000 | C77: 2 02 02999 05 0000 151 | D77: =D78+D79+D80+D81++D82+D84+D86+D85+D87+D89+D88 -> 92152.644 | E77: =E78+E79+E80+E81++E82+E84+E86+E85+E87+E89+E88 -> 92306.384 | F77: 1.001668319
A78: Субсидии на выплату заработной платы с начислениями на нее педагогическим работникам муниципальных дошкольных образовательных учреждений | B78: 907 | C78: 2 02 02999 05 0000 151 | D78: 7995 | E78: 7995 | F78: =E78/D78 -> 1
A79: Субсидия за счет средств долгосрочной целевой программы Иркутской области "Повышение эффективности бюджетных расходов Иркутской области на 2011-2013 годы" | B79: 910 | C79: 2 02 02999 05 0000 151 | D79: 33215 | E79: 33215 | F79: 1
A80: Погашение кредиторской задолженности учреждений, находящихся в ведении органов местного самоуправления муниципальных образований Иркутской области, по страховым взносам на обязательное пенсионное страхование, сложившейся за период с 1 января 2002 года до 31 декабря 2009 года, и по страховым взносам на обязательное пенсионное страхование, обязательное медицинское страхование и обязательное социальное страхование на случай временной нетрудоспособности и в связи с материнством за период 2010-2011 годы, а также пеней и штрафов, начисленных на задолженность 2010-2011 годов | B80: 910 | C80: 2 02 02999 05 0000 151 | D80: 1787 | E80: 1787 | F80: 1
A81: Погашение реструктуризированной кредиторской задолженности учреждений, находящихся в ведении органов местного самоуправления муниципальных образований Иркутской области, по страховым взносам на обязательное пенсионное страхование, сложившейся за период с 1 января 2002 года до 31 декабря 2009 года, и по страховым взносам на обязательное пенсионное страхование, обязательное медицинское страхование и обязательное социальное страхование на случай временной нетрудоспособности и в связи с материнством за период 2010-2011 годы, а также пеней и штрафов, начисленных на задолженность 2010-2011 годов | B81: 910 | C81: 2 02 02999 05 0000 151 | D81: 36982.5 | E81: 36982.5 | F81: 1
A82: Долгосрочная целевая программа Иркутской области "100 модельных домов культуры Приангарью" на 2011-2014 годы | B82: 917 | C82: 2 02 02999 05 0000 151 | D82: 1000 | E82: 1000 | F82: 1
A84: Долгосрочная целевая программа Иркутской области «Организация и обеспечение отдыха и оздоровления детей в Иркутской области на 2012-2014 годы» | B84: 907 | C84: 2 02 02999 05 0000 151 | D84: 2384.9 | E84: 2384.84 | F84: 0.9999748417
A85: Долгосрочная целевая программа поддержки и развития учреждений дошкольного образования в Иркутской области на 2009-2014 годы» | B85: 907 | C85: 2 02 02999 05 0000 151 | D85: 7857.244 | E85: 7857.244 | F85: 1
A86: Создание условий для оказания медицинской помощи населению на территории муниципального района (городского округа) Иркутской области в соответствии с территориальной программой государственных гарантий оказания гражданам Российской Федерации бесплатной медицинской помощи в Иркутской области на 2012 год, утвержденной постановлением Правительства Иркутской области от 30 декабря 2011 года №427-пп, и Законом Иркутской области от 5 марта 2010г. №4-ОЗ "Об отдельных вопросах здравоохранения в Иркутской области" | B86: 910 | C86: 2 02 02999 05 0000 151 | D86: 571 | E86: 571 | F86: 1
A87: Долгосрочная целевая программа «Поддержка и развитие малого и среднего предпринимательства в Иркутской области» на 2011-2012 годы (за счет областного бюджета) | B87: 917 | C87: 2 02 02999 05 0000 151 | D87: 60 | E87: 60 | F87: 1
A88: Долгосрочная целевая программа «Поддержка и развитие малого и среднего предпринимательства в Иркутской области» на 2011-2012 годы (за счет федерального бюджета) | B88: 917 | C88: 2 02 02999 05 0000 151 | D88: 0 | E88: 240 | F88: 0
A89: Подпрограмма «Подготовка объектов коммунальной инфраструктуры Иркутской области к отопительному сезону в 2011-2012 годах» | B89: 907 | C89: 2 02 02999 05 0000 151 | D89: 300 | E89: 213.8 | F89: 0.7126666667
A90: СУБВЕНЦИИ БЮДЖЕТАМ МУНИЦИПАЛЬНЫХ ОБРАЗОВАНИЙ | B90: 000 | C90: 2 02 03000 00 0000 151 | D90: =D92+D93+D94+D96+D97+D98+D99+D100+D101+D102+D103+D104+D105+D106 -> 295923.71 | E90: =E92+E93+E94+E96+E97+E98+E99+E100+E101+E102+E103+E104+E105+E106 -> 292447.2493 | F90: 0.9882521725
A91: Субвенции бюджетам муниципальных районов на осуществление полномочий по подготовке проведения статистических переписей | B91: 917 | C91: 2 02 03002 05 0000 151 | D91: 0
A92: Субвенции бюджетам муниципальных районов на составление списков кандидатов в присяжные заседатели федеральных судов общей юрисдикции в Российской Федерации | B92: 917 | C92: 2 02 03007 05 0000 151 | D92: 7.52 | E92: 7.52 | F92: 1
A93: Субвенции бюджетам на ежемесячное денежное вознаграждение за классное руководство | B93: 907 | C93: 2 02 03021 05 0000 151 | D93: 5162.3 | E93: 4948.2 | F93: 0.9585262383
A94: Субвенции бюджетам муниципальных образований на предоставление гражданам субсидий на оплату жилого помещения и коммунальных услуг | B94: 918 | C94: 2 02 03022 05 0000 151 | D94: 7129 | E94: 6892.54932 | F94: 0.96683256
A95: Субвенции местным бюджетам на выполнение переданных полномочий субъектов РФ | B95: 000 | C95: 2 02 03024 05 0000 151 | D95: =D96+D97+D98+D99+D100+D101+D102 -> 37807.2 | E95: =E96+E97+E98+E99+E100+E101+E102 -> 36429.05055 | F95: 0.9635479631
A96: Хранение, комплектование, учет и использование архивных документов, относящихся к областной государственной собственности | B96: 917 | C96: 2 02 03024 05 0000 151 | D96: 1027 | E96: 1024.21795 | F96: 0.9972910906
A97: Государственные полномочия в области охраны труда | B97: 917 | C97: 2 02 03024 05 0000 151 | D97: 532.9 | E97: 525.40273 | F97: 0.9859311878
A98: Определение персонального состава и обеспечение деятельности районных (городских), районных в городах комиссий по делам несовершеннолетних и защите их прав | B98: 917 | C98: 2 02 03024 05 0000 151 | D98: 1019.5 | E98: 628.07825 | F98: 0.6160649828
A99: Лицензирование розничной продажи алкогольной продукции | B99: 917 | C99: 2 02 03024 05 0000 151 | D99: 376.6 | E99: 375.8423 | F99: 0.997988051
A100: Определение персонального состава и обеспечение деятельности административных комиссий | B100: 917 | C100: 2 02 03024 05 0000 151 | D100: 532.9 | E100: 532.06932 | F100: 0.9984412085
A101: Предоставление мер социальной поддержки многодетным и малоимущим семьям | B101: 907 | C101: 2 02 03024 05 0000 151 | D101: 4145.3 | E101: 3170.44 | F101: 0.7648276361
A102: Осуществление отдельных областных полномочий в области охраны здоровья граждан | B102: 910 | C102: 2 02 03024 05 0000 151 | D102: 30173 | E102: 30173 | F102: 1
A103: Субвенции бюджетам муниципальных районов на обеспечение жилыми помещениями детей-сирот, детей, оставшихся без попечения родителей, а также детей, находящихся под опекой (попечительством), не имеющих закрепленного жилого помещения | B103: 913 | C103: 2 02 03026 05 0000 151 | D103: 1999.8 | E103: 1918.55 | F103: 0.9593709371
A104: Субвенции бюджетам муниципальных районов на обеспечение жилыми помещениями детей-сирот, детей, оставшихся без попечения родителей, а также детей, находящихся под опекой (попечительством), не имеющих закрепленного жилого помещения (федер.) | B104: 913 | C104: 2 02 03026 05 0000 151 | D104: 2070.29 | E104: 2070.29 | F104: 1
A105: Субвенция бюджетам муниципальных образований на денежные выплаты медицинскому персоналу фельдшерско-акушерских пунктов, врачам, фельдшерам и медицинским сестрам скорой медицинской помощи | B105: 910 | C105: 2 02 03055 05 0000 151 | D105: 4933 | E105: 3997.08944 | F105: 0.8102755808
A106: Прочие субвенции | B106: 000 | C106: 2 02 03999 05 0000 151 | D106: =D107 -> 236814.6 | E106: =E107 -> 236184 | F106: 0.9973371574
A107: Субвенция на обеспечение государственных гарантий прав граждан на получение общедоступного и бесплатного дошкольного, начального общего, основного общего, среднего (полного) общего образования, а также дополнительного образования в общеобразовательных учреждениях | B107: 907 | C107: 2 02 03999 05 0000 151 | D107: 236814.6 | E107: 236184 | F107: 0.9973371574
A108: ИНЫЕ МЕЖБЮДЖЕТНЫЕ ТРАНСФЕРТЫ | B108: 000 | C108: 2 02 04000 00 0000 151 | D108: =D109+D114+D116+D117+D115+D121 -> 33435.8614 | E108: =E109+E114+E116+E117+E115+E121 -> 28353.29265 | F108: 0.8479904947
A109: Межбюджетные трансферты, передаваемые бюджетам муниципальных районов из бюджетов поселений на осуществление части полномочий по решению вопросов местного значения в соответствии с заключенными соглашениями | B109: 000 | C109: 2 02 04014 05 0000 151 | D109: =D110+D111+D112+D113 -> 22276.4824 | E109: =E110+E111+E112+E113 -> 22185.14315 | F109: 0.9958997454
A110: Межбюджетные трансферты, передаваемые бюджетам муниципальных районов из бюджетов поселений на осуществление части полномочий по решению вопросов местного значения в соответствии с заключенными соглашениями | B110: 910 | C110: 2 02 04014 05 0000 151 | D110: 959.641 | E110: 898.50175 | F110: 0.9362894562
A111: Межбюджетные трансферты, передаваемые бюджетам муниципальных районов из бюджетов поселений на осуществление части полномочий по решению вопросов местного значения в соответствии с заключенными соглашениями (правила землепользования) | B111: 918 | C111: 2 02 04014 05 0000 151 | D111: 2780.46004 | E111: 2750.26004 | F111: 0.989138488
A112: Межбюджетные трансферты, передаваемые бюджетам муниципальных районов из бюджетов поселений на осуществление части полномочий по решению вопросов местного значения в соответствии с заключенными соглашениями (генплан 5%) | B112: 918 | C112: 2 02 04014 05 0000 151 | D112: 930.60136 | E112: 930.60136 | F112: 1
A113: Межбюджетные трансферты, передаваемые бюджетам муниципальных районов из бюджетов поселений на осуществление части полномочий по решению вопросов местного значения в соответствии с заключенными соглашениями (генплан ) | B113: 918 | C113: 2 02 04014 05 0000 151 | D113: 17605.78 | E113: 17605.78 | F113: 1
A114: Межбюджетные трансферты, передаваемые бюджетам муниципальных районов на комплектование книжных фондов библиотек муниципальных образований (областной бюджет) | B114: 910 | C114: 2 02 04025 05 0000 151 | D114: 150 | E114: 150 | F114: 1
A115: Межбюджетные трансферты, передаваемые бюджетам муниципальных районов на комплектование книжных фондов библиотек муниципальных образований (федеральный бюджет) | B115: 910 | C115: 2 02 04025 05 0000 151 | D115: 281 | E115: 281 | F115: 1
A116: Межбюджетные трансферты на укрепление материально-технической базы медицинских учреждений | B116: 910 | C116: 2 02 04034 05 0001 151 | D116: 9804.8 | E116: 4934.99575 | F116: 0.5033244686
A117: Межбюджетные трансферты на внедрение современных информационных систем в здравоохранение | B117: 910 | C117: 2 02 04034 05 0002 151 | D117: 759 | E117: 637.57495 | F117: 0.840019697
A118: Прочие межбюджетные трансферты, передаваемые бюджетам муниципальных районов | B118: 000 | C118: 2 02 04999 05 0000 151 | D118: =D119+D120 -> 0
A119: Дотации на возмещ.расходов местных бюджетов в связи с предоставлением льгот по оплате жилого помещения и коммунальных услуг педагогическим работникам, проживающим в сельской местности, рабочих поселках (пгт) и работающим в муниц.образоват.учреждениях | B119: 907 | C119: 2 02 04999 05 0000 151 | D119: 0
A120: Межбюджетные трансферты в целях финансовой поддержки муниципальных образований Иркутской области, осуществляющих эффективное управление бюджетными средствами | B120: 910 | C120: 2 02 04999 05 0000 151 | D120: 0
A121: ПРОЧИЕ МЕЖБЮДЖЕТНЫЕ ТРАНСФЕРТЫ | B121: 000 | C121: 2 02 04999 00 0000 151 | D121: =D122 -> 164.579 | E121: =E122 -> 164.5788 | F121: 0.9999987848
A122: Резервные фонды исполнительных органов государственной власти субъектов Российской Федерации | B122: 917 | C122: 2 02 04999 05 0000 151 | D122: 164.579 | E122: 164.5788 | F122: 0.9999987848
A123: ПРОЧИЕ БЕЗВОЗМЕЗДНЫЕ ПОСТУПЛЕНИЯ | B123: 000 | C123: 2 07 00000 00 0000 180 | D123: =D124 -> 5810 | E123: =E124 -> 5897 | F123: 1.014974182
A124: Прочие безвозмездные поступления в бюджеты муниципальных районов | B124: 000 | C124: 2 07 05000 05 0000 180 | D124: 5810 | E124: 5897 | F124: 1.014974182
A125: ВОЗВРАТ ОТСТАКОВ СУБСИДИЙ И СУБВЕНЦИЙ | B125: 000 | C125: 2 19 00000 00 0000 000 | D125: =D126 -> -151.2 | E125: =E126 -> -151.2 | F125: 1
A126: Возврат остатков субсидий и субвенций из бюджетов муниципальных районов | B126: 910 | C126: 2 19 05000 05 0000 180 | D126: -151.2 | E126: -151.2 | F126: 1
A127: ИТОГО ДОХОДОВ | B127: 000 | C127: 8 50 00000 00 0000 000 | D127: =D67+D12 -> 659568.1954 | E127: =E67+E12 -> 652924.9655 | F127: 0.9899279105
A129: Начальник финансового управления | E129: Ю.Н. Гайдук

Sheet прил.2
A6: Отчет об исполнении бюджета за 2012 год по доходам бюджета Черемховского районного муниципального образования по кодам видов доходов, подвидов доходов, классификации операций сектора государственного управления, относящихся к доходам бюджета
A9: Наименование | B9: Код бюджетной классификации | C9: План на год, тыс. руб. | D9: Исполнено, тыс. руб. | E9: % исполнения
B10: доходов районного бюджета
A11: 1 | B11: 3 | C11: 4 | D11: 5 | E11: 6
A12: НАЛОГОВЫЕ И НЕНАЛОГОВЫЕ ДОХОДЫ | B12: 1 00 00000 00 0000 000 | C12: =C13+C18+C28+C32+C35+C40+C45+C52+C57+C64 -> 102843.3 | D12: =D13+D18+D28+D32+D35+D40+D45+D52+D57+D64 -> 104758.4095 | E12: =D12/C12 -> 1.018621627
A13: НАЛОГИ НА ПРИБЫЛЬ, ДОХОДЫ | B13: 1 01 00000 00 0000 000 | C13: =C14+C15+C16+C17 -> 51800 | D13: =D14+D15+D16+D17 -> 53904.4777 | E13: =D13/C13 -> 1.040626983
A14: Налог на доходы физических лиц с доходов, источником которых является налоговый агент, за исключением доходов, в отношении которых исчисление и уплата налога осуществляются в соответствии со статьями 227,227¹ и 228 Налогового кодекса Российской Федерации | B14: 1 01 02010 01 0000 110 | C14: 51600 | D14: 53712.75112 | E14: 1.040944789
A15: Налог на доходы физических лиц с доходов, полученных от осуществления деятельности физическими лицами,зарегистрированными в качестве индивидуальных предпринимателей,нотариусов,занимающихся частной практикой,адвокатов,учредивших адвокатские кабинеты и других лиц, занимающихся частной практикой | B15: 1 01 02020 01 0000 110 | C15: 50 | D15: 49.19502 | E15: 0.9839004
A16: Налог на доходы физических лиц с доходов, полученных физическими лицами, не являющимися налоговыми резидентами | B16: 1 01 02030 01 0000 110 | C16: 147 | D16: 140.21046 | E16: 0.9538126531
A17: Налог на доходы физических лиц в виде фиксированных авансовых платежей с доходов, полученных физическими лицами, являющимися иностанными гражданами, осуществляющими трудовую деятельность по найму у физических лиц на основании патента | B17: 1 01 02040 01 0000 110 | C17: 3 | D17: 2.3211 | E17: 0.7737
A18: НАЛОГИ НА СОВОКУПНЫЙ ДОХОД | B18: 1 05 00000 00 0000 000 | C18: =C19+C26+C27 -> 8784 | D18: =D19+D26+D27 -> 8768.95778 | E18: 0.9982875433
A19: Налог, взимаемый в связи с применением упрощенной системы налогообложения | B19: 1 05 01000 00 0000 110 | C19: =C20+C22+C23+C24+C25+C21 -> 3894 | D19: =D20+D22+D23+D24+D25+D21 -> 3892.70595 | E19: 0.999667681
A20: Налог, взимаемый с налогоплательщиков, выбравших в качестве объекта налогообложения доходы | B20: 1 05 01010 01 0000 110 | C20: 1550 | D20: 1662.22828 | E20: 1.072405342
A21: Налог, взимаемый с налогоплательщиков, выбравших в качестве объекта налогообложения доходы (за налоговые периоды, истекшие до 1 января 2011 года) | B21: 1 05 01012 01 0000 110 | C21: 0 | D21: -20.54664 | E21: 0
A22: Налог, взимаемый с налогоплательщиков, выбравших в качестве объекта налогообложения доходы, уменьшенные на величину расходов | B22: 1 05 01020 01 0000 110 | C22: 1500 | D22: 1458.68241 | E22: 0.97245494
A23: Налог, взимаемый с налогоплательщиков, выбравших в качестве объекта налогообложения доходы, уменьшенные на величину расходов (за налоговые периоды, истекшие до 1 января 2011 года) | B23: 1 05 01022 01 0000 110 | C23: 85 | D23: 81.74998 | E23: 0.9617644706
A24: Налог, взимаемый в виде стоимости патента в связи с применением упрощенной системы налогооблажения | B24: 1 05 01041 02 0000 110 | C24: 9 | D24: 8.785 | E24: 0.9761111111
A25: Минимальный налог, зачисляемый в бюджеты субьектов РФ | B25: 1 05 01050 01 0000 110 | C25: 750 | D25: 701.80692 | E25: 0.93574256
A26: Единый налог на вмененный доход для отдельных видов деятельности | B26: 1 05 02000 02 0000 110 | C26: 4800 | D26: 4786.14888 | E26: 0.99711435
A27: Единый сельскохозяйственный налог | B27: 1 05 03000 01 0000 110 | C27: 90 | D27: 90.10295 | E27: 1.001143889
A28: ГОСУДАРСТВЕННАЯ ПОШЛИНА | B28: 1 08 00000 00 0000 000 | C28: =C29+C30+C31 -> 1122 | D28: =D29+D30+D31 -> 1139.95722 | E28: 1.016004652
A29: Государственная пошлина по делам, рассматриваемым в судах общей юрисдикции, мировыми судьями (за исключением Верховного Суда Российской Федерации) | B29: 1 08 03010 01 0000 110 | C29: 230 | D29: 243.95722 | E29: 1.060683565
A30: Государственная пошлина за совершение действий, связанных с лицензированием, с проведением аттестации в случаях, если такая аттестация предусмотрена законодательством Российской Федерации, зачисляемая в бюджеты муниципальных районов | B30: 1 08 07084 01 1000 110 | C30: 892 | D30: 896 | E30: 1.004484305
A31: Государственная пошлина за государственную регистрацию транспортных средств и иные юридически значимые действия, связанные с изменениями и выдачей документов на транспортные средства, выдачей регистрационных знаков, приемом квалификационных экзаменов на получение права на управление транспортными средствами | B31: 1 08 07141 01 0000 110 | C31: 0
A32: ЗАДОЛЖЕННОСТЬ И ПЕРЕРАСЧЕТЫ ПО ОТМЕНЕННЫМ НАЛОГАМ, СБОРАМ И ИНЫМ ОБЯЗАТЕЛЬНЫМ ПЛАТЕЖАМ | B32: 1 09 00000 00 0000 000 | C32: =C33+C34 -> 10 | D32: =D33+D34 -> 10.47603 | E32: 1.047603
A33: Налог на имущество предприятий | B33: 1 09 04010 02 0000 110 | C33: 0.2 | D33: 0.12896 | E33: 0.6448
A34: Налог с продаж | B34: 1 09 06010 02 0000 110 | C34: 9.8 | D34: 10.34707 | E34: 1.055823469
A35: ДОХОДЫ ОТ ИСПОЛЬЗОВАНИЯ ИМУЩЕСТВА, НАХОДЯЩЕГОСЯ В ГОСУДАРСТВЕННОЙ И МУНИЦИПАЛЬНОЙ СОБСТВЕННОСТИ | B35: 1 11 00000 00 0000 000 | C35: =C36+C39 -> 12600 | D35: =D36+D39 -> 12240.52586 | E35: 0.9714703063
A36: Доходы, получаемые в виде арендной платы за земельные участки,государственная собственность на которые не разграничена и которые расположеныв границах поселений, а также средства от продажи права на заключение договоров аренды указанных земельных участков | B36: 1 11 05013 10 0000 120 | C36: =C37+C38 -> 8800 | D36: =D37+D38 -> 8626.58903 | E36: 0.980294208
A37: Доходы, получаемые в виде арендной платы за земельные участки, государственная собственность на которые не разграничена и которые расположены в границах поселений, а также средства от продажи права на заключение договоров аренды указанных земельных участков | B37: 1 11 05013 10 0000 120 | C37: 8000 | D37: 7770.78486 | E37: 0.9713481075
A38: Доходы, получаемые в виде арендной платы за земельные участки,государственная собственность на которые не разграничена и которые расположеныв границах поселений, а также средства от продажи права на заключение договоров аренды указанных земельных участков | B38: 1 11 05013 10 0000 120 | C38: 800 | D38: 855.80417 | E38: 1.069755213
A39: Доходы от сдачи в аренду имущества, находящегося в оперативном управлении органов управления муниципальных районов и созданных ими учреждений (за исключением имущества муниципальных автономных учреждений) | B39: 1 11 05035 05 0000 120 | C39: 3800 | D39: 3613.93683 | E39: 0.9510360079
A40: ПЛАТЕЖИ ПРИ ПОЛЬЗОВАНИИ ПРИРОДНЫМИ РЕСУРСАМИ | B40: 1 12 00000 00 0000 000 | C40: =C41 -> 170 | D40: =D41 -> 157.46968 | E40: 0.9262922353
A41: Плата за негативное воздействие на окружающую среду | B41: 1 12 01000 01 0000 120 | C41: =C42+C43+C44 -> 170 | D41: =D42+D43+D44 -> 157.46968 | E41: 0.9262922353
A42: Плата за выбросы загрязняющих веществ в атмосферный воздух стационарными объектами | B42: 1 12 01010 01 0000 120 | C42: 90.48 | D42: 83.69948 | E42: 0.9250605659
A43: Плата за выбросы загрязняющих веществ в атмосферный воздух передвижными объектами | B43: 1 12 01020 01 0000 120 | C43: 20.84 | D43: 17.87034 | E43: 0.8575019194
A44: Плата за размещение отходов производства и потребления | B44: 1 12 01040 01 0000 120 | C44: 58.68 | D44: 55.89986 | E44: 0.9526220177
A45: ДОХОДЫ ОТ ОКАЗАНИЯ ПЛАТНЫХ УСЛУГ И КОМПЕНСАЦИИ ЗАТРАТ ГОСУДАРСТВА | B45: 1 13 00000 00 0000 000 | C45: =C46 -> 6351.5 | D45: =D46 -> 6379.84348 | E45: 1.004462486
A46: Прочие доходы от оказания платных услуг (работ) получателями средств бюджетов муниципальных районов | B46: 1 13 01000 00 0000 130 | C46: =C47+C48+C49+C50+C51 -> 6351.5 | D46: =D47+D48+D49+D50+D51 -> 6379.84348 | E46: 1.004462486
A47: Прочие доходы от оказания платных услуг (работ) получателями средств бюджетов муниципальных районов | B47: 113 01995 05 0000 130 | C47: 6000 | D47: 6036.78517 | E47: 1.006130862
A48: Прочие доходы от оказания платных услуг (работ) получателями средств бюджетов муниципальных районов (МКУК МКЦ АЧРМО) | B48: 113 01995 05 0000 130 | C48: 85 | D48: 84 | E48: 0.9882352941
A49: Прочие доходы от оказания платных услуг (работ) получателями средств бюджетов муниципальных районов (МКУК РИК МУЗЕЙ) | B49: 113 01995 05 0000 130 | C49: 22 | D49: 22 | E49: 1
A50: Прочие доходы от оказания платных услуг (работ) получателями средств бюджетов муниципальных районов (МКУК МБЧР) | B50: 113 01995 05 0000 130 | C50: 24.5 | D50: 22.635 | E50: 0.923877551
A51: Прочие доходы от оказания платных услуг (работ) получателями средств бюджетов муниципальных районов (МКОУ ДОД ДШИ) | B51: 113 01995 05 0000 130 | C51: 220 | D51: 214.42331 | E51: 0.9746514091
A52: ДОХОДЫ ОТ ПРОДАЖИ МАТЕРИАЛЬНЫХ И НЕМАТЕРИАЛЬНЫХ АКТИВОВ | B52: 1 14 00000 00 0000 000 | C52: =C53+C55 -> 20846.8 | D52: =D53+D55 -> 20782.67567 | E52: 0.9969240205
A53: Доходы от реализации имущества, находящегося в государственной и муниципальной собственности (за исключением имущества автономных учреждений, а также имущества государственных и муниципальных унитарных предприятий, в том числе казенных) | B53: 1 14 02000 00 0000 000 | C53: =C54 -> 20246.8 | D53: =D54 -> 20201.171 | E53: 0.9977463599
A54: Доходы от реализации иного имущества, находящегося в собственности муниципальных районов (за исключением имущества муниципальных автономных учреждений, а также имущества муниципальных унитарных предприятий, в том числе казенных), в части реализации основных средств по указанному имуществу | B54: 1 14 02053 05 0000 410 | C54: 20246.8 | D54: 20201.171 | E54: 0.9977463599
A55: Доходы от продажи земельных участков, находящихся в государственной и муниципальной собственности (за исключением земельных участков автономных учреждений) | B55: 1 14 06000 00 0000 430 | C55: =C56 -> 600 | D55: =D56 -> 581.50467 | E55: 0.96917445
A56: Доходы от продажи земельных участков, государственная собственность на которые не разграничена и которые расположены в границах поселений | B56: 1 14 06013 10 0000 430 | C56: 600 | D56: 581.50467 | E56: 0.96917445
A57: ШТРАФЫ, САНКЦИИ, ВОЗМЕЩЕНИЕ УЩЕРБА | B57: 1 16 00000 00 0000 000 | C57: =C58+C59+C60+C61+C63+C62 -> 628 | D57: =D58+D59+D60+D61+D63+D62 -> 634.43998 | E57: 1.010254745
A58: Денежные взыскания (штрафы) за нарушение законодательства о налогах и сборах | B58: 1 16 03000 01 0000 140 | C58: 47 | D58: 46.51532 | E58: 0.9896876596
A59: Денежные взыскания (штрафы) за административные правонарушения в области государственного регулирования производства и оборота этилового спирта, алкогольной и спиртосодержащей продукции | B59: 1 16 08000 01 0000 140 | C59: 3.5 | D59: 3.5 | E59: 1
A60: Денежные взыскания (штрафы) за нарушение законодательства о недрах, об особо охраняемых природных территориях, об охране и использовании животного мира, об экологической экспертизе, в области охраны окружающей среды, земельного законодательства | B60: 1 16 25000 01 0000 140 | C60: 63 | D60: 65.0191 | E60: 1.032049206
A61: Денежные взыскания (штрафы) за административные правонарушения в области дорожного движения | B61: 1 16 30014 01 0000 140 | C61: 29 | D61: 28.9648 | E61: 0.9987862069
A62: Денежные взыскания (штрафы) за нарушение законодательства РФ об административных правонарушениях, предусмотренные статьей 20.25 Кодекса РФ об административных правонарушений | B62: 1 16 43000 01 0000 140 | C62: 2 | D62: 2 | E62: 1
A63: Прочие поступления от денежных взысканий (штрафов) и иных сумм в возмещение ущерба, зачисляемые в бюджеты муниципальных районов | B63: 1 16 90050 05 0000 140 | C63: 483.5 | D63: 488.44076 | E63: 1.010218738
A64: ПРОЧИЕ НЕНАЛОГОВЫЕ ДОХОДЫ | B64: 1 17 00000 00 0000 000 | C64: =C65+C66 -> 531 | D64: =D65+D66 -> 739.58613 | E64: 1.392817571
A65: Невыясненные поступления | B65: 1 17 01000 00 0000 180 | C65: 0 | D65: 198.54674 | E65: 0
A66: Прочие неналоговые доходы | B66: 1 17 05000 00 0000 180 | C66: 531 | D66: 541.03939 | E66: 1.018906573
A67: БЕЗВОЗМЕЗДНЫЕ ПОСТУПЛЕНИЯ | B67: 2 00 00000 00 0000 000 | C67: =C68+C123+C125 -> 556724.8954 | D67: =D68+D123+D125 -> 548166.556 | E67: 0.9846273456
A68: БЕЗВОЗМЕЗДНЫЕ ПОСТУПЛЕНИЯ ИЗ ДРУГИХ БЮДЖЕТОВ БЮДЖЕТНОЙ СИСТЕМЫ РФ | B68: 2 02 00000 00 0000 151 | C68: =C69+C72+C90+C108 -> 551066.0954 | D68: =D69+D72+D90+D108 -> 542420.756 | E68: 0.9843116107
A69: ДОТАЦИИ БЮДЖЕТАМ МУНИЦИПАЛЬНЫХ ОБРАЗОВАНИЙ | B69: 2 02 01000 00 0000 151 | C69: =C70+C71 -> 128485 | D69: =D70+D71 -> 128485 | E69: 1
A70: Дотации муниципальным районам на выравнивание уровня бюджетной обеспеченности | B70: 2 02 01001 05 0000 151 | C70: 115567 | D70: 115567 | E70: 1
A71: Дотации муниципальным районам на поддержку мер по обеспечению сбалансированности бюджетов | B71: 2 02 01003 05 0000 151 | C71: 12918 | D71: 12918 | E71: 1
A72: СУБСИДИИ БЮДЖЕТАМ МУНИЦИПАЛЬНЫХ ОБРАЗОВАНИЙ | B72: 2 02 02000 00 0000 151 | C72: =C73+C74+C75+C77+C76 -> 93221.524 | D72: =D73+D74+D75+D77+D76 -> 93135.214 | E72: 0.9990741409
A73: Федеральная программа "Молодым семьям - доступное жилье на 2005-2019 годы" | B73: 2 02 02051 05 0000 151 | C73: 166.824 | D73: 166.824 | E73: 1
A74: Долгосрочная целевая программа "Энергосбережение и повышение энергетической эффективности на территории Иркутской области на 2011-2015 годы и на период до 2020 года | B74: 2 02 02150 05 0000 151 | C74: 471.4 | D74: 471.35 | E74: 0.999893933
A75: Областная государственная социальная программа "Молодым семьям- доступное жилье" на 2005-2019 годы" | B75: 2 02 02008 05 0000 151 | C75: 190.656 | D75: 190.656 | E75: 1
A76: Долгосрочная целевая программа «Поддержка и развитие малого и среднего предпринимательства в Иркутской области» на 2011-2012 годы (за счет федерального бюджета) | B76: 2 02 02009 05 0000 151 | C76: 240 | D76: 0 | E76: 0
A77: Прочие субсидии | B77: 2 02 02999 05 0000 151 | C77: =C78+C79+C80+C81++C82+C84+C86+C85+C87+C89+C88 -> 92152.644 | D77: =D78+D79+D80+D81++D82+D84+D86+D85+D87+D89+D88 -> 92306.384 | E77: 1.001668319
A78: Субсидии на выплату заработной платы с начислениями на нее педагогическим работникам муниципальных дошкольных образовательных учреждений | B78: 2 02 02999 05 0000 151 | C78: 7995 | D78: 7995 | E78: =D78/C78 -> 1
A79: Субсидия за счет средств долгосрочной целевой программы Иркутской области "Повышение эффективности бюджетных расходов Иркутской области на 2011-2013 годы" | B79: 2 02 02999 05 0000 151 | C79: 33215 | D79: 33215 | E79: 1
A80: Погашение кредиторской задолженности учреждений, находящихся в ведении органов местного самоуправления муниципальных образований Иркутской области, по страховым взносам на обязательное пенсионное страхование, сложившейся за период с 1 января 2002 года до 31 декабря 2009 года, и по страховым взносам на обязательное пенсионное страхование, обязательное медицинское страхование и обязательное социальное страхование на случай временной нетрудоспособности и в связи с материнством за период 2010-2011 годы, а также пеней и штрафов, начисленных на задолженность 2010-2011 годов | B80: 2 02 02999 05 0000 151 | C80: 1787 | D80: 1787 | E80: 1
A81: Погашение реструктуризированной кредиторской задолженности учреждений, находящихся в ведении органов местного самоуправления муниципальных образований Иркутской области, по страховым взносам на обязательное пенсионное страхование, сложившейся за период с 1 января 2002 года до 31 декабря 2009 года, и по страховым взносам на обязательное пенсионное страхование, обязательное медицинское страхование и обязательное социальное страхование на случай временной нетрудоспособности и в связи с материнством за период 2010-2011 годы, а также пеней и штрафов, начисленных на задолженность 2010-2011 годов | B81: 2 02 02999 05 0000 151 | C81: 36982.5 | D81: 36982.5 | E81: 1
A82: Долгосрочная целевая программа Иркутской области "100 модельных домов культуры Приангарью" на 2011-2014 годы | B82: 2 02 02999 05 0000 151 | C82: 1000 | D82: 1000 | E82: 1
A84: Долгосрочная целевая программа Иркутской области «Организация и обеспечение отдыха и оздоровления детей в Иркутской области на 2012-2014 годы» | B84: 2 02 02999 05 0000 151 | C84: 2384.9 | D84: 2384.84 | E84: 0.9999748417
A85: Долгосрочная целевая программа поддержки и развития учреждений дошкольного образования в Иркутской области на 2009-2014 годы» | B85: 2 02 02999 05 0000 151 | C85: 7857.244 | D85: 7857.244 | E85: 1
A86: Создание условий для оказания медицинской помощи населению на территории муниципального района (городского округа) Иркутской области в соответствии с территориальной программой государственных гарантий оказания гражданам Российской Федерации бесплатной медицинской помощи в Иркутской области на 2012 год, утвержденной постановлением Правительства Иркутской области от 30 декабря 2011 года №427-пп, и Законом Иркутской области от 5 марта 2010г. №4-ОЗ "Об отдельных вопросах здравоохранения в Иркутской области" | B86: 2 02 02999 05 0000 151 | C86: 571 | D86: 571 | E86: 1
A87: Долгосрочная целевая программа «Поддержка и развитие малого и среднего предпринимательства в Иркутской области» на 2011-2012 годы (за счет областного бюджета) | B87: 2 02 02999 05 0000 151 | C87: 60 | D87: 60 | E87: 1
A88: Долгосрочная целевая программа «Поддержка и развитие малого и среднего предпринимательства в Иркутской области» на 2011-2012 годы (за счет федерального бюджета) | B88: 2 02 02999 05 0000 151 | C88: 0 | D88: 240 | E88: 0
A89: Подпрограмма «Подготовка объектов коммунальной инфраструктуры Иркутской области к отопительному сезону в 2011-2012 годах» | B89: 2 02 02999 05 0000 151 | C89: 300 | D89: 213.8 | E89: 0.7126666667
A90: СУБВЕНЦИИ БЮДЖЕТАМ МУНИЦИПАЛЬНЫХ ОБРАЗОВАНИЙ | B90: 2 02 03000 00 0000 151 | C90: =C92+C93+C94+C96+C97+C98+C99+C100+C101+C102+C103+C104+C105+C106 -> 295923.71 | D90: =D92+D93+D94+D96+D97+D98+D99+D100+D101+D102+D103+D104+D105+D106 -> 292447.2493 | E90: 0.9882521725
A91: Субвенции бюджетам муниципальных районов на осуществление полномочий по подготовке проведения статистических переписей | B91: 2 02 03002 05 0000 151 | C91: 0
A92: Субвенции бюджетам муниципальных районов на составление списков кандидатов в присяжные заседатели федеральных судов общей юрисдикции в Российской Федерации | B92: 2 02 03007 05 0000 151 | C92: 7.52 | D92: 7.52 | E92: 1
A93: Субвенции бюджетам на ежемесячное денежное вознаграждение за классное руководство | B93: 2 02 03021 05 0000 151 | C93: 5162.3 | D93: 4948.2 | E93: 0.9585262383
A94: Субвенции бюджетам муниципальных образований на предоставление гражданам субсидий на оплату жилого помещения и коммунальных услуг | B94: 2 02 03022 05 0000 151 | C94: 7129 | D94: 6892.54932 | E94: 0.96683256
A95: Субвенции местным бюджетам на выполнение переданных полномочий субъектов РФ | B95: 2 02 03024 05 0000 151 | C95: =C96+C97+C98+C99+C100+C101+C102 -> 37807.2 | D95: =D96+D97+D98+D99+D100+D101+D102 -> 36429.05055 | E95: 0.9635479631
A96: Хранение, комплектование, учет и использование архивных документов, относящихся к областной государственной собственности | B96: 2 02 03024 05 0000 151 | C96: 1027 | D96: 1024.21795 | E96: 0.9972910906
A97: Государственные полномочия в области охраны труда | B97: 2 02 03024 05 0000 151 | C97: 532.9 | D97: 525.40273 | E97: 0.9859311878
A98: Определение персонального состава и обеспечение деятельности районных (городских), районных в городах комиссий по делам несовершеннолетних и защите их прав | B98: 2 02 03024 05 0000 151 | C98: 1019.5 | D98: 628.07825 | E98: 0.6160649828
A99: Лицензирование розничной продажи алкогольной продукции | B99: 2 02 03024 05 0000 151 | C99: 376.6 | D99: 375.8423 | E99: 0.997988051
A100: Определение персонального состава и обеспечение деятельности административных комиссий | B100: 2 02 03024 05 0000 151 | C100: 532.9 | D100: 532.06932 | E100: 0.9984412085
A101: Предоставление мер социальной поддержки многодетным и малоимущим семьям | B101: 2 02 03024 05 0000 151 | C101: 4145.3 | D101: 3170.44 | E101: 0.7648276361
A102: Осуществление отдельных областных полномочий в области охраны здоровья граждан | B102: 2 02 03024 05 0000 151 | C102: 30173 | D102: 30173 | E102: 1
A103: Субвенции бюджетам муниципальных районов на обеспечение жилыми помещениями детей-сирот, детей, оставшихся без попечения родителей, а также детей, находящихся под опекой (попечительством), не имеющих закрепленного жилого помещения | B103: 2 02 03026 05 0000 151 | C103: 1999.8 | D103: 1918.55 | E103: 0.9593709371
A104: Субвенции бюджетам муниципальных районов на обеспечение жилыми помещениями детей-сирот, детей, оставшихся без попечения родителей, а также детей, находящихся под опекой (попечительством), не имеющих закрепленного жилого помещения (федер.) | B104: 2 02 03026 05 0000 151 | C104: 2070.29 | D104: 2070.29 | E104: 1
A105: Субвенция бюджетам муниципальных образований на денежные выплаты медицинскому персоналу фельдшерско-акушерских пунктов, врачам, фельдшерам и медицинским сестрам скорой медицинской помощи | B105: 2 02 03055 05 0000 151 | C105: 4933 | D105: 3997.08944 | E105: 0.8102755808
A106: Прочие субвенции | B106: 2 02 03999 05 0000 151 | C106: =C107 -> 236814.6 | D106: =D107 -> 236184 | E106: 0.9973371574
A107: Субвенция на обеспечение государственных гарантий прав граждан на получение общедоступного и бесплатного дошкольного, начального общего, основного общего, среднего (полного) общего образования, а также дополнительного образования в общеобразовательных учреждениях | B107: 2 02 03999 05 0000 151 | C107: 236814.6 | D107: 236184 | E107: 0.9973371574
A108: ИНЫЕ МЕЖБЮДЖЕТНЫЕ ТРАНСФЕРТЫ | B108: 2 02 04000 00 0000 151 | C108: =C109+C114+C116+C117+C115+C121 -> 33435.8614 | D108: =D109+D114+D116+D117+D115+D121 -> 28353.29265 | E108: 0.8479904947
A109: Межбюджетные трансферты, передаваемые бюджетам муниципальных районов из бюджетов поселений на осуществление части полномочий по решению вопросов местного значения в соответствии с заключенными соглашениями | B109: 2 02 04014 05 0000 151 | C109: =C110+C111+C112+C113 -> 22276.4824 | D109: =D110+D111+D112+D113 -> 22185.14315 | E109: 0.9958997454
A110: Межбюджетные трансферты, передаваемые бюджетам муниципальных районов из бюджетов поселений на осуществление части полномочий по решению вопросов местного значения в соответствии с заключенными соглашениями | B110: 2 02 04014 05 0000 151 | C110: 959.641 | D110: 898.50175 | E110: 0.9362894562
A111: Межбюджетные трансферты, передаваемые бюджетам муниципальных районов из бюджетов поселений на осуществление части полномочий по решению вопросов местного значения в соответствии с заключенными соглашениями (правила землепользования) | B111: 2 02 04014 05 0000 151 | C111: 2780.46004 | D111: 2750.26004 | E111: 0.989138488
A112: Межбюджетные трансферты, передаваемые бюджетам муниципальных районов из бюджетов поселений на осуществление части полномочий по решению вопросов местного значения в соответствии с заключенными соглашениями (генплан 5%) | B112: 2 02 04014 05 0000 151 | C112: 930.60136 | D112: 930.60136 | E112: 1
A113: Межбюджетные трансферты, передаваемые бюджетам муниципальных районов из бюджетов поселений на осуществление части полномочий по решению вопросов местного значения в соответствии с заключенными соглашениями (генплан ) | B113: 2 02 04014 05 0000 151 | C113: 17605.78 | D113: 17605.78 | E113: 1
A114: Межбюджетные трансферты, передаваемые бюджетам муниципальных районов на комплектование книжных фондов библиотек муниципальных образований (областной бюджет) | B114: 2 02 04025 05 0000 151 | C114: 150 | D114: 150 | E114: 1
A115: Межбюджетные трансферты, передаваемые бюджетам муниципальных районов на комплектование книжных фондов библиотек муниципальных образований (федеральный бюджет) | B115: 2 02 04025 05 0000 151 | C115: 281 | D115: 281 | E115: 1
A116: Межбюджетные трансферты на укрепление материально-технической базы медицинских учреждений | B116: 2 02 04034 05 0001 151 | C116: 9804.8 | D116: 4934.99575 | E116: 0.5033244686
A117: Межбюджетные трансферты на внедрение современных информационных систем в здравоохранение | B117: 2 02 04034 05 0002 151 | C117: 759 | D117: 637.57495 | E117: 0.840019697
A118: Прочие межбюджетные трансферты, передаваемые бюджетам муниципальных районов | B118: 2 02 04999 05 0000 151 | C118: =C119+C120 -> 0
A119: Дотации на возмещ.расходов местных бюджетов в связи с предоставлением льгот по оплате жилого помещения и коммунальных услуг педагогическим работникам, проживающим в сельской местности, рабочих поселках (пгт) и работающим в муниц.образоват.учреждениях | B119: 2 02 04999 05 0000 151 | C119: 0
A120: Межбюджетные трансферты в целях финансовой поддержки муниципальных образований Иркутской области, осуществляющих эффективное управление бюджетными средствами | B120: 2 02 04999 05 0000 151 | C120: 0
A121: ПРОЧИЕ МЕЖБЮДЖЕТНЫЕ ТРАНСФЕРТЫ | B121: 2 02 04999 00 0000 151 | C121: =C122 -> 164.579 | D121: =D122 -> 164.5788 | E121: 0.9999987848
A122: Резервные фонды исполнительных органов государственной власти субъектов Российской Федерации | B122: 2 02 04999 05 0000 151 | C122: 164.579 | D122: 164.5788 | E122: 0.9999987848
A123: ПРОЧИЕ БЕЗВОЗМЕЗДНЫЕ ПОСТУПЛЕНИЯ | B123: 2 07 00000 00 0000 180 | C123: =C124 -> 5810 | D123: =D124 -> 5897 | E123: 1.014974182
A124: Прочие безвозмездные поступления в бюджеты муниципальных районов | B124: 2 07 05000 05 0000 180 | C124: 5810 | D124: 5897 | E124: 1.014974182
A125: ВОЗВРАТ ОТСТАКОВ СУБСИДИЙ И СУБВЕНЦИЙ | B125: 2 19 00000 00 0000 000 | C125: =C126 -> -151.2 | D125: =D126 -> -151.2 | E125: 1
A126: Возврат остатков субсидий и субвенций из бюджетов муниципальных районов | B126: 2 19 05000 05 0000 180 | C126: -151.2 | D126: -151.2 | E126: 1
A127: ИТОГО ДОХОДОВ | B127: 8 50 00000 00 0000 000 | C127: =C67+C12 -> 659568.1954 | D127: =D67+D12 -> 652924.9655 | E127: 0.9899279105
A129: Начальник финансового управления | D129: Ю.Н. Гайдук

Sheet прил3
A7: Отчет об исполнении бюджета Черемховского районного муниципального образования за 2012 год по разделам, подразделам, целевым статьям, видам расходов классификации бюджетов
A10: Наименование показателя | B10: Код | F10: План на год, тыс. руб. | G10: Исполнено, тыс. руб. | H10: % исполнения
B11: раздела | C11: подраздела | D11: целевой статьи | E11: вида расходов
A12: 1 | B12: 2 | C12: 3 | D12: 4 | E12: 5 | F12: 6 | G12: 7 | H12: 8
A13: ОБЩЕГОСУДАРСТВЕННЫЕ ВОПРОСЫ | B13: 1 | C13: 0 | D13: 0 | E13: 0 | F13: 77828.1 | G13: 75090.5 | H13: 0.9648250439
A14: Функционирование высшего должностного лица субъекта Российской Федерации и муниципального образования | B14: 1 | C14: 2 | D14: 0 | E14: 0 | F14: 2034.5 | G14: 2014.9 | H14: 0.9903661833
A15: Руководство и управление в сфере установленных функций органов государственной власти субъектов Российской Федерации и органов местного самоуправления | B15: 1 | C15: 2 | D15: 20000 | E15: 0 | F15: 2034.5 | G15: 2014.9 | H15: 0.9903661833
A16: Глава муниципального образования | B16: 1 | C16: 2 | D16: 20300 | E16: 0 | F16: 2034.5 | G16: 2014.9 | H16: 0.9903661833
A17: Выполнение функций органами местного самоуправления | B17: 1 | C17: 2 | D17: 20300 | E17: 500 | F17: 2034.5 | G17: 2014.9 | H17: 0.9903661833
A18: Функционирование законодательных (представительных) органов государственной власти и представительных органов муниципальных образований | B18: 1 | C18: 3 | D18: 0 | E18: 0 | F18: 1601.4 | G18: 1581.6 | H18: 0.9876358187
A19: Руководство и управление в сфере установленных функций органов государственной власти субъектов Российской Федерации и органов местного самоуправления | B19: 1 | C19: 3 | D19: 20000 | E19: 0 | F19: 1599.8 | G19: 1580 | H19: 0.9876234529
A20: Центральный аппарат | B20: 1 | C20: 3 | D20: 20400 | E20: 0 | F20: 638.2 | G20: 624.4 | H20: 0.9783766844
A21: Выполнение функций органами местного самоуправления | B21: 1 | C21: 3 | D21: 20400 | E21: 500 | F21: 638.2 | G21: 624.4 | H21: 0.9783766844
A22: Председатель представительного органа муниципального образования | B22: 1 | C22: 3 | D22: 21100 | E22: 0 | F22: 961.6 | G22: 955.6 | H22: 0.9937603993
A23: Выполнение функций органами местного самоуправления | B23: 1 | C23: 3 | D23: 21100 | E23: 500 | F23: 961.6 | G23: 955.6 | H23: 0.9937603993
A24: Погашение кредиторской задолженности учреждений, находящихся в ведении органов местного самоуправления муниципальных образований Иркутской области, по единому социальному налогу, зачисляемому в федеральный бюджет, Фонд социального страхования Российской Федерации, Федеральный фонд обязательного медицинского страхования и территориальные фонды обязательного медицинского страхования | B24: 1 | C24: 3 | D24: 5900000 | E24: 0 | F24: 1.6 | G24: 1.6 | H24: 1
A25: Выполнение функций органами местного самоуправления | B25: 1 | C25: 3 | D25: 5900000 | E25: 500 | F25: 1.6 | G25: 1.6 | H25: 1
A26: Функционирование Правительства Российской Федерации, высших исполнительных органов государственной власти субъектов Российской Федерации, местных администраций | B26: 1 | C26: 4 | D26: 0 | E26: 0 | F26: 28868.2 | G26: 28640.2 | H26: 0.9921020362
A27: Руководство и управление в сфере установленных функций органов государственной власти субъектов Российской Федерации и органов местного самоуправления | B27: 1 | C27: 4 | D27: 20000 | E27: 0 | F27: 28717.7 | G27: 28515.1 | H27: 0.9929451175
A28: Центральный аппарат | B28: 1 | C28: 4 | D28: 20400 | E28: 0 | F28: 28717.7 | G28: 28515.1 | H28: 0.9929451175
A29: Выполнение функций органами местного самоуправления | B29: 1 | C29: 4 | D29: 20400 | E29: 500 | F29: 28717.7 | G29: 28515.1 | H29: 0.9929451175
A30: Погашение кредиторской задолженности учреждений, находящихся в ведении органов местного самоуправления муниципальных образований Иркутской области, по единому социальному налогу, зачисляемому в федеральный бюджет, Фонд социального страхования Российской Федерации, Федеральный фонд обязательного медицинского страхования и территориальные фонды обязательного медицинского страхования | B30: 1 | C30: 4 | D30: 5900000 | E30: 0 | F30: 100.5 | G30: 100.5 | H30: 1
A31: Выполнение функций органами местного самоуправления | B31: 1 | C31: 4 | D31: 5900000 | E31: 500 | F31: 100.5 | G31: 100.5 | H31: 1
A32: Целевые программы муниципальных образований | B32: 1 | C32: 4 | D32: 7950000 | E32: 0 | F32: 50 | G32: 24.6 | H32: 0.492
A33: Долгосрочная целевая программа Черемховского районного муниципального образования "Повышение эффективности бюджетных расходов Черемховского районного муниципального образования на 2012-2013 годы" | B33: 1 | C33: 4 | D33: 7950200 | E33: 0 | F33: 50 | G33: 24.6 | H33: 0.492
A34: Выполнение функций органами местного самоуправления | B34: 1 | C34: 4 | D34: 7950200 | E34: 500 | F34: 50 | G34: 24.6 | H34: 0.492
A35: Судебная система | B35: 1 | C35: 5 | D35: 0 | E35: 0 | F35: 7.5 | G35: 7.5 | H35: 1
A36: Руководство и управление в сфере установленных функций | B36: 1 | C36: 5 | D36: 10000 | E36: 0 | F36: 7.5 | G36: 7.5 | H36: 1
A37: Составление (изменение и дополнение) списков кандидатов в присяжные заседатели федеральных судов общей юрисдикции в Российской Федерации | B37: 1 | C37: 5 | D37: 14000 | E37: 0 | F37: 7.5 | G37: 7.5 | H37: 1
A38: Выполнение функций органами местного самоуправления | B38: 1 | C38: 5 | D38: 14000 | E38: 500 | F38: 7.5 | G38: 7.5 | H38: 1
A39: Обеспечение деятельности финансовых, налоговых и таможенных органов и органов финансового (финансово-бюджетного) надзора | B39: 1 | C39: 6 | D39: 0 | E39: 0 | F39: 9208.2 | G39: 9128.9 | H39: 0.9913881106
A40: Руководство и управление в сфере установленных функций органов государственной власти субъектов Российской Федерации и органов местного самоуправления | B40: 1 | C40: 6 | D40: 20000 | E40: 0 | F40: 9158.2 | G40: 9128.9 | H40: 0.9968006814
A41: Центральный аппарат | B41: 1 | C41: 6 | D41: 20400 | E41: 0 | F41: 8460.3 | G41: 8437.8 | H41: 0.9973405198
A42: Выполнение функций органами местного самоуправления | B42: 1 | C42: 6 | D42: 20400 | E42: 500 | F42: 8460.3 | G42: 8437.8 | H42: 0.9973405198
A43: Руководитель контрольно-счетной палаты муниципального образования и его заместители | B43: 1 | C43: 6 | D43: 22500 | E43: 0 | F43: 697.9 | G43: 691.1 | H43: 0.9902564837
A44: Выполнение функций органами местного самоуправления | B44: 1 | C44: 6 | D44: 22500 | E44: 500 | F44: 697.9 | G44: 691.1 | H44: 0.9902564837
A45: Целевые программы муниципальных образований | B45: 1 | C45: 6 | D45: 7950000 | E45: 0 | F45: 50 | G45: 0 | H45: 0
A46: Долгосрочная целевая программа Черемховского районного муниципального образования "Повышение эффективности бюджетных расходов Черемховского районного муниципального образования на 2012-2013 годы" | B46: 1 | C46: 6 | D46: 7950200 | E46: 0 | F46: 50 | G46: 0 | H46: 0
A47: Выполнение функций органами местного самоуправления | B47: 1 | C47: 6 | D47: 7950200 | E47: 500 | F47: 50 | G47: 0 | H47: 0
A48: Другие общегосударственные вопросы | B48: 1 | C48: 13 | D48: 0 | E48: 0 | F48: 36108.3 | G48: 33717.4 | H48: 0.933785307
A49: Руководство и управление в сфере установленных функций органов государственной власти субъектов Российской Федерации и органов местного самоуправления | B49: 1 | C49: 13 | D49: 20000 | E49: 0 | F49: 18849 | G49: 18790.1 | H49: 0.9968751658
A50: Центральный аппарат | B50: 1 | C50: 13 | D50: 20400 | E50: 0 | F50: 3289.3 | G50: 3254.9 | H50: 0.9895418478
A51: Выполнение функций органами местного самоуправления | B51: 1 | C51: 13 | D51: 20400 | E51: 500 | F51: 3289.3 | G51: 3254.9 | H51: 0.9895418478
A52: Осуществление областных государственных полномочий по хранению, комплектованию, учету и использованию архивных документов, относящихся к государственной собственности Иркутской области | B52: 1 | C52: 13 | D52: 24000 | E52: 0 | F52: 1027 | G52: 1024.2 | H52: 0.9972736125
A53: Выполнение функций органами местного самоуправления | B53: 1 | C53: 13 | D53: 24000 | E53: 500 | F53: 1027 | G53: 1024.2 | H53: 0.9972736125
A54: Осуществление областных государственных полномочий по определению персонального состава и обеспечению деятельности административных комиссий | B54: 1 | C54: 13 | D54: 24300 | E54: 0 | F54: 532.9 | G54: 532.1 | H54: 0.9984987803
A55: Выполнение функций органами местного самоуправления | B55: 1 | C55: 13 | D55: 24300 | E55: 500 | F55: 532.9 | G55: 532.1 | H55: 0.9984987803
A56: Осуществление отдельных государственных полномочий в области производства и оборота этилового спирта, алкогольной и спиртосодержащей продукции | B56: 1 | C56: 13 | D56: 24400 | E56: 0 | F56: 376.6 | G56: 375.8 | H56: 0.9978757302
A57: Выполнение функций органами местного самоуправления | B57: 1 | C57: 13 | D57: 24400 | E57: 500 | F57: 376.6 | G57: 375.8 | H57: 0.9978757302
A58: Осуществление отдельных областных государственных полномочий в области охраны труда | B58: 1 | C58: 13 | D58: 24500 | E58: 0 | F58: 532.9 | G58: 525.4 | H58: 0.9859260649
A59: Выполнение функций органами местного самоуправления | B59: 1 | C59: 13 | D59: 24500 | E59: 500 | F59: 532.9 | G59: 525.4 | H59: 0.9859260649
A60: Обеспечение деятельности подведомственных учреждений | B60: 1 | C60: 13 | D60: 29900 | E60: 0 | F60: 13090.3 | G60: 13077.7 | H60: 0.9990374552
A61: Выполнение функций казенными учреждениями | B61: 1 | C61: 13 | D61: 29900 | E61: 001 | F61: 13090.3 | G61: 13077.7 | H61: 0.9990374552
A62: Реализация государственных функций, связанных с общегосударственным управлением | B62: 1 | C62: 13 | D62: 920000 | E62: 0 | F62: 4306.7 | G62: 3657.6 | H62: 0.8492813523
A63: Выполнение других обязательств государства | B63: 1 | C63: 13 | D63: 920300 | E63: 0 | F63: 4306.7 | G63: 3657.6 | H63: 0.8492813523
A64: Выполнение функций органами местного самоуправления | B64: 1 | C64: 13 | D64: 920300 | E64: 500 | F64: 4306.7 | G64: 3657.6 | H64: 0.8492813523
A65: Учреждения по обеспечению хозяйственного обслуживания | B65: 1 | C65: 13 | D65: 930000 | E65: 0 | F65: 7889.4 | G65: 7889.4 | H65: 1
A66: Обеспечение деятельности подведомственных учреждений | B66: 1 | C66: 13 | D66: 939900 | E66: 0 | F66: 7889.4 | G66: 7889.4 | H66: 1
A67: Субсидии некоммерческим организациям | B67: 1 | C67: 13 | D67: 939900 | E67: 019 | F67: 407.8 | G67: 407.8 | H67: 1
A68: Субсидии бюджетным учреждениям на финансовое обеспечение муниципального задания на оказание муниципальных услуг (выполнение работ) | B68: 1 | C68: 13 | D68: 939900 | E68: 611 | F68: 7481.2 | G68: 7481.2 | H68: 1
A69: Субсидии бюджетным учреждениям на иные цели | B69: 1 | C69: 13 | D69: 939900 | E69: 612 | F69: 0.4 | G69: 0.4 | H69: 1
A70: Погашение кредиторской задолженности учреждений, находящихся в ведении органов местного самоуправления муниципальных образований Иркутской области, по единому социальному налогу, зачисляемому в федеральный бюджет, Фонд социального страхования Российской Федерации, Федеральный фонд обязательного медицинского страхования и территориальные фонды обязательного медицинского страхования | B70: 1 | C70: 13 | D70: 5900000 | E70: 0 | F70: 33.4 | G70: 33.4 | H70: 1
A71: Выполнение функций казенными учреждениями | B71: 1 | C71: 13 | D71: 5900000 | E71: 001 | F71: 32.8 | G71: 32.8 | H71: 1
A72: Выполнение функций органами местного самоуправления | B72: 1 | C72: 13 | D72: 5900000 | E72: 500 | F72: 0.6 | G72: 0.6 | H72: 1
A73: Целевые программы муниципальных образований | B73: 1 | C73: 13 | D73: 7950000 | E73: 0 | F73: 5029.8 | G73: 3346.9 | H73: 0.6654141318
A74: Выполнение функций органами местного самоуправления | B74: 1 | C74: 13 | D74: 7950000 | E74: 500 | F74: 2795 | G74: 1157.6 | H74: 0.4141681574
A75: Долгосрочная целевая программа Черемховского районного муниципального образования "Повышение эффективности бюджетных расходов Черемховского районного муниципального образования на 2012-2013 годы" | B75: 1 | C75: 13 | D75: 7950200 | E75: 0 | F75: 2234.8 | G75: 2189.3 | H75: 0.9796402363
A76: Выполнение функций казенными учреждениями | B76: 1 | C76: 13 | D76: 7950200 | E76: 001 | F76: 2234.8 | G76: 2189.3 | H76: 0.9796402363
A77: НАЦИОНАЛЬНАЯ ЭКОНОМИКА | B77: 4 | C77: 0 | D77: 0 | E77: 0 | F77: 24637.3 | G77: 24150 | H77: 0.9802210469
A78: Другие вопросы в области национальной экономики | B78: 4 | C78: 12 | D78: 0 | E78: 0 | F78: 24637.3 | G78: 24150 | H78: 0.9802210469
A79: Мероприятия в области строительства, архитектуры и градостроительства | B79: 4 | C79: 12 | D79: 3380000 | E79: 0 | F79: 3711.1 | G79: 3680.9 | H79: 0.9918622511
A80: Подготовка проектов генеральных планов муниципальных образований Черемховского районного муниципального образования | B80: 4 | C80: 12 | D80: 3380100 | E80: 0 | F80: 930.6 | G80: 930.6 | H80: 1
A81: Выполнение функций органами местного самоуправления | B81: 4 | C81: 12 | D81: 3380100 | E81: 500 | F81: 930.6 | G81: 930.6 | H81: 1
A82: Подготовка проектов правил землепользования и застройки муниципальных образований Черемховского районного муниципального образования | B82: 4 | C82: 12 | D82: 3380200 | E82: 0 | F82: 2780.5 | G82: 2750.3 | H82: 0.9891386441
A83: Выполнение функций органами местного самоуправления | B83: 4 | C83: 12 | D83: 3380200 | E83: 500 | F83: 2780.5 | G83: 2750.3 | H83: 0.9891386441
A84: Малое и среднее предпринимательство | B84: 4 | C84: 12 | D84: 3450000 | E84: 0 | F84: 240 | G84: 224 | H84: 0.9333333333
A85: Субсидии на государственную поддержку малого и среднего предпринимательства, включая крестьянские (фермерские) хозяйства | B85: 4 | C85: 12 | D85: 3450100 | E85: 0 | F85: 240 | G85: 224 | H85: 0.9333333333
A86: Субсидии юридическим лицам | B86: 4 | C86: 12 | D86: 3450100 | E86: 006 | F86: 240 | G86: 224 | H86: 0.9333333333
A87: Региональные целевые программы | B87: 4 | C87: 12 | D87: 5220000 | E87: 0 | F87: 19130.2 | G87: 19130.2 | H87: 1
A88: Долгосрочная целевая программа «Поддержка и развитие малого и среднего предпринимательства в Иркутской области» на 2011-2012 годы | B88: 4 | C88: 12 | D88: 5222400 | E88: 0 | F88: 60 | G88: 60 | H88: 1
A89: Субсидии юридическим лицам | B89: 4 | C89: 12 | D89: 5222400 | E89: 006 | F89: 60 | G89: 60 | H89: 1
A90: Долгосрочная целевая программа Иркутской области «Стимулирование жилищного строительства в Иркутской области на 2011-2015 годы» | B90: 4 | C90: 12 | D90: 5225700 | E90: 0 | F90: 19070.2 | G90: 19070.2 | H90: 1
A91: Подпрограмма "Территориальное планирование муниципальных образований Иркутской области на 2011-2012 годы" | B91: 4 | C91: 12 | D91: 5225701 | E91: 0 | F91: 19070.2 | G91: 19070.2 | H91: 1
A92: Выполнение функций органами местного самоуправления | B92: 4 | C92: 12 | D92: 5225701 | E92: 500 | F92: 19070.2 | G92: 19070.2 | H92: 1
A93: Целевые программы муниципальных образований | B93: 4 | C93: 12 | D93: 7950000 | E93: 0 | F93: 1556 | G93: 1115 | H93: 0.7165809769
A94: Субсидии юридическим лицам | B94: 4 | C94: 12 | D94: 7950000 | E94: 006 | F94: 16 | G94: 16 | H94: 1
A95: Выполнение функций органами местного самоуправления | B95: 4 | C95: 12 | D95: 7950000 | E95: 500 | F95: 1540 | G95: 1099 | H95: 0.7136363636
A96: ЖИЛИЩНО-КОММУНАЛЬНОЕ ХОЗЯЙСТВО | B96: 5 | C96: 0 | D96: 0 | E96: 0 | F96: 11372.1 | G96: 9434.8 | H96: 0.8296444808
A97: Жилищное хозяйство | B97: 5 | C97: 1 | D97: 0 | E97: 0 | F97: 644.7 | G97: 644.7 | H97: 1
A98: Поддержка жилищного хозяйства | B98: 5 | C98: 1 | D98: 3500000 | E98: 0 | F98: 644.7 | G98: 644.7 | H98: 1
A99: Капитальный ремонт государственного жилищного фонда субъектов Российской Федерации и муниципального жилищного фонда | B99: 5 | C99: 1 | D99: 3500200 | E99: 0 | F99: 273.9 | G99: 273.9 | H99: 1
A100: Субсидии юридическим лицам | B100: 5 | C100: 1 | D100: 3500200 | E100: 006 | F100: 174.9 | G100: 174.9 | H100: 1
A101: Выполнение функций органами местного самоуправления | B101: 5 | C101: 1 | D101: 3500200 | E101: 500 | F101: 99 | G101: 99 | H101: 1
A102: Мероприятия в области жилищного хозяйства | B102: 5 | C102: 1 | D102: 3500300 | E102: 0 | F102: 370.8 | G102: 370.8 | H102: 1
A103: Выполнение функций органами местного самоуправления | B103: 5 | C103: 1 | D103: 3500300 | E103: 500 | F103: 370.8 | G103: 370.8 | H103: 1
A104: Коммунальное хозяйство | B104: 5 | C104: 2 | D104: 0 | E104: 0 | F104: 4295.5 | G104: 2388.9 | H104: 0.5561401467
A105: Резервные фонды | B105: 5 | C105: 2 | D105: 700000 | E105: 0 | F105: 464.6 | G105: 464.6 | H105: 1
A106: Резервные фонды исполнительных органов государственной власти субъектов Российской Федерации | B106: 5 | C106: 2 | D106: 700400 | E106: 0 | F106: 164.6 | G106: 164.6 | H106: 1
A107: Выполнение функций органами местного самоуправления | B107: 5 | C107: 2 | D107: 700400 | E107: 500 | F107: 164.6 | G107: 164.6 | H107: 1
A108: Резервные фонды местных администраций | B108: 5 | C108: 2 | D108: 700500 | E108: 0 | F108: 300 | G108: 300 | H108: 1
A109: Выполнение функций органами местного самоуправления | B109: 5 | C109: 2 | D109: 700500 | E109: 500 | F109: 300 | G109: 300 | H109: 1
A110: Поддержка коммунального хозяйства | B110: 5 | C110: 2 | D110: 3510000 | E110: 0 | F110: 3806.8 | G110: 1900.2 | H110: 0.499159399
A111: Мероприятия в области коммунального хозяйства | B111: 5 | C111: 2 | D111: 3510500 | E111: 0 | F111: 3806.8 | G111: 1900.2 | H111: 0.499159399
A112: Выполнение функций органами местного самоуправления | B112: 5 | C112: 2 | D112: 3510500 | E112: 500 | F112: 3806.8 | G112: 1900.2 | H112: 0.499159399
A113: Региональные целевые программы | B113: 5 | C113: 2 | D113: 5220000 | E113: 0 | F113: 24.1 | G113: 24.1 | H113: 1
A114: Долгосрочная целевая программа «Энергосбережение и повышение энергетической эффективности на территории Иркутской области на 2011-2015 годы и на период до 2020 года» | B114: 5 | C114: 2 | D114: 5225400 | E114: 0 | F114: 24.1 | G114: 24.1 | H114: 1
A115: Иные межбюджетные трансферты | B115: 5 | C115: 2 | D115: 5225400 | E115: 017 | F115: 24.1 | G115: 24.1 | H115: 1
A116: Другие вопросы в области жилищно-коммунального хозяйства | B116: 5 | C116: 5 | D116: 0 | E116: 0 | F116: 6431.9 | G116: 6401.2 | H116: 0.9952269158
A117: Руководство и управление в сфере установленных функций органов государственной власти субъектов Российской Федерации и органов местного самоуправления | B117: 5 | C117: 5 | D117: 20000 | E117: 0 | F117: 6431.3 | G117: 6400.6 | H117: 0.9952264705
A118: Центральный аппарат | B118: 5 | C118: 5 | D118: 20400 | E118: 0 | F118: 4741.4 | G118: 4712.2 | H118: 0.9938414814
A119: Выполнение функций органами местного самоуправления | B119: 5 | C119: 5 | D119: 20400 | E119: 500 | F119: 4741.4 | G119: 4712.2 | H119: 0.9938414814
A120: Осуществление областных государственных полномочий по предоставлению гражданам субсидий на оплату жилых помещений и коммунальных услуг | B120: 5 | C120: 5 | D120: 24700 | E120: 0 | F120: 729.9 | G120: 728.3 | H120: 0.9978079189
A121: Содержание и обеспечение деятельности муниципальных служащих, осуществляющих областные государственные полномочия по предоставлению гражданам субсидий на оплату жилых помещений и коммунальных услуг | B121: 5 | C121: 5 | D121: 24701 | E121: 0 | F121: 729.9 | G121: 728.3 | H121: 0.9978079189
A122: Выполнение функций органами местного самоуправления | B122: 5 | C122: 5 | D122: 24701 | E122: 500 | F122: 729.9 | G122: 728.3 | H122: 0.9978079189
A123: Обеспечение деятельности подведомственных учреждений | B123: 5 | C123: 5 | D123: 29900 | E123: 0 | F123: 960 | G123: 960 | H123: 1
A124: Субсидии некоммерческим организациям | B124: 5 | C124: 5 | D124: 29900 | E124: 019 | F124: 48.4 | G124: 48.4 | H124: 1
A125: Субсидии бюджетным учреждениям на финансовое обеспечение муниципального задания на оказание муниципальных услуг (выполнение работ) | B125: 5 | C125: 5 | D125: 29900 | E125: 611 | F125: 911.6 | G125: 911.6 | H125: 1
A126: Субсидии бюджетным учреждениям на иные цели | B126: 5 | C126: 5 | D126: 29900 | E126: 612 | F126: 0 | G126: 0.1 | H126: 0
A127: Погашение кредиторской задолженности учреждений, находящихся в ведении органов местного самоуправления муниципальных образований Иркутской области, по единому социальному налогу, зачисляемому в федеральный бюджет, Фонд социального страхования Российской Федерации, Федеральный фонд обязательного медицинского страхования и территориальные фонды обязательного медицинского страхования | B127: 5 | C127: 5 | D127: 5900000 | E127: 0 | F127: 0.6 | G127: 0.6 | H127: 1
A128: Выполнение функций органами местного самоуправления | B128: 5 | C128: 5 | D128: 5900000 | E128: 500 | F128: 0.6 | G128: 0.6 | H128: 1
A129: ОБРАЗОВАНИЕ | B129: 7 | C129: 0 | D129: 0 | E129: 0 | F129: 441655.9 | G129: 432986 | H129: 0.9803695592
A130: Дошкольное образование | B130: 7 | C130: 1 | D130: 0 | E130: 0 | F130: 97602.6 | G130: 93166.5 | H130: 0.9545493665
A131: Детские дошкольные учреждения | B131: 7 | C131: 1 | D131: 4200000 | E131: 0 | F131: 74226.7 | G131: 72824.7 | H131: 0.9811119179
A132: Обеспечение деятельности подведомственных учреждений | B132: 7 | C132: 1 | D132: 4209900 | E132: 0 | F132: 74226.7 | G132: 72824.7 | H132: 0.9811119179
A133: Выполнение функций казенными учреждениями | B133: 7 | C133: 1 | D133: 4209900 | E133: 001 | F133: 74226.7 | G133: 72824.7 | H133: 0.9811119179
A134: Региональные целевые программы | B134: 7 | C134: 1 | D134: 5220000 | E134: 0 | F134: 7979.3 | G134: 4951.7 | H134: 0.6205682203
A135: Областная государственная целевая программа поддержки и развития учреждений дошкольного образования в Иркутской области на 2009-2014 годы | B135: 7 | C135: 1 | D135: 5223700 | E135: 0 | F135: 7857.3 | G135: 4829.7 | H135: 0.6146767974
A136: Выполнение функций казенными учреждениями | B136: 7 | C136: 1 | D136: 5223700 | E136: 001 | F136: 7857.3 | G136: 4829.7 | H136: 0.6146767974
A137: Долгосрочная целевая программа «Энергосбережение и повышение энергетической эффективности на территории Иркутской области на 2011-2015 годы и на период до 2020 года» | B137: 7 | C137: 1 | D137: 5225400 | E137: 0 | F137: 122 | G137: 122 | H137: 1
A138: Выполнение функций казенными учреждениями | B138: 7 | C138: 1 | D138: 5225400 | E138: 001 | F138: 122 | G138: 122 | H138: 1
A139: Выплата заработной платы с начислениями на нее педагогическим работникам муниципальных дошкольных образовательных учреждений и муниципальных учреждений дополнительного образования | B139: 7 | C139: 1 | D139: 5890000 | E139: 0 | F139: 5719 | G139: 5719 | H139: 1
A140: Выполнение функций казенными учреждениями | B140: 7 | C140: 1 | D140: 5890000 | E140: 001 | F140: 5719 | G140: 5719 | H140: 1
A141: Погашение кредиторской задолженности учреждений, находящихся в ведении органов местного самоуправления муниципальных образований Иркутской области, по единому социальному налогу, зачисляемому в федеральный бюджет, Фонд социального страхования Российской Федерации, Федеральный фонд обязательного медицинского страхования и территориальные фонды обязательного медицинского страхования | B141: 7 | C141: 1 | D141: 5900000 | E141: 0 | F141: 591.3 | G141: 591.3 | H141: 1
A142: Выполнение функций казенными учреждениями | B142: 7 | C142: 1 | D142: 5900000 | E142: 001 | F142: 591.3 | G142: 591.3 | H142: 1
A143: Целевые программы муниципальных образований | B143: 7 | C143: 1 | D143: 7950000 | E143: 0 | F143: 9086.3 | G143: 9079.8 | H143: 0.9992846373
A144: Мероприятия в сфере образования | B144: 7 | C144: 1 | D144: 7950000 | E144: 022 | F144: 987 | G144: 987 | H144: 1
A145: Мероприятия по обеспечению пожарной безопасности | B145: 7 | C145: 1 | D145: 7950000 | E145: 450 | F145: 1000 | G145: 1000 | H145: 1
A146: Долгосрочная целевая программа Черемховского районного муниципального образования "Повышение эффективности бюджетных расходов Черемховского районного муниципального образования на 2012-2013 годы" | B146: 7 | C146: 1 | D146: 7950200 | E146: 0 | F146: 7099.3 | G146: 7092.8 | H146: 0.9990844168
A147: Выполнение функций казенными учреждениями | B147: 7 | C147: 1 | D147: 7950200 | E147: 001 | F147: 7099.3 | G147: 7092.8 | H147: 0.9990844168
A148: Общее образование | B148: 7 | C148: 2 | D148: 0 | E148: 0 | F148: 331383.3 | G148: 327266.8 | H148: 0.9875778291
A149: Руководство и управление в сфере установленных функций органов государственной власти субъектов Российской Федерации и органов местного самоуправления | B149: 7 | C149: 2 | D149: 20000 | E149: 0 | F149: 236986.7 | G149: 236355.7 | H149: 0.9973374033
A150: Обеспечение государственных гарантий прав граждан на получение общедоступного и бесплатного дошкольного, начального общего, основного общего, среднего (полного) общего образования, а также дополнительного образования в общеобразовательных учреждениях | B150: 7 | C150: 2 | D150: 25000 | E150: 0 | F150: 236986.7 | G150: 236355.7 | H150: 0.9973374033
A151: Выполнение функций казенными учреждениями | B151: 7 | C151: 2 | D151: 25000 | E151: 001 | F151: 236986.7 | G151: 236355.7 | H151: 0.9973374033
A152: Школы - детские сады, школы начальные, неполные средние и средние | B152: 7 | C152: 2 | D152: 4210000 | E152: 0 | F152: 47870.1 | G152: 45850.8 | H152: 0.9578170925
A153: Обеспечение деятельности подведомственных учреждений | B153: 7 | C153: 2 | D153: 4219900 | E153: 0 | F153: 47870.1 | G153: 45850.8 | H153: 0.9578170925
A154: Выполнение функций казенными учреждениями | B154: 7 | C154: 2 | D154: 4219900 | E154: 001 | F154: 47870.1 | G154: 45850.8 | H154: 0.9578170925
A155: Учреждения по внешкольной работе с детьми | B155: 7 | C155: 2 | D155: 4230000 | E155: 0 | F155: 22019.2 | G155: 20930.2 | H155: 0.9505431623
A156: Обеспечение деятельности подведомственных учреждений | B156: 7 | C156: 2 | D156: 4239900 | E156: 0 | F156: 22019.2 | G156: 20930.2 | H156: 0.9505431623
A157: Выполнение функций казенными учреждениями | B157: 7 | C157: 2 | D157: 4239900 | E157: 001 | F157: 22019.2 | G157: 20930.2 | H157: 0.9505431623
A158: Иные безвозмездные и безвозвратные перечисления | B158: 7 | C158: 2 | D158: 5200000 | E158: 0 | F158: 5162.3 | G158: 4895.9 | H158: 0.9483950952
A159: Ежемесячное денежное вознаграждение за классное руководство | B159: 7 | C159: 2 | D159: 5200900 | E159: 0 | F159: 5162.3 | G159: 4895.9 | H159: 0.9483950952
A160: Выполнение функций казенными учреждениями | B160: 7 | C160: 2 | D160: 5200900 | E160: 001 | F160: 5162.3 | G160: 4895.9 | H160: 0.9483950952
A161: Региональные целевые программы | B161: 7 | C161: 2 | D161: 5220000 | E161: 0 | F161: 1414.2 | G161: 1328 | H161: 0.9390468109
A162: Долгосрочная целевая программа "Социальное развитие села Иркутской области на 2011-2014 годы" | B162: 7 | C162: 2 | D162: 5221800 | E162: 0 | F162: 789 | G162: 789 | H162: 1
A163: Бюджетные инвестиции | B163: 7 | C163: 2 | D163: 5221800 | E163: 003 | F163: 789 | G163: 789 | H163: 1
A164: Долгосрочная целевая программа «Модернизация объектов коммунальной инфраструктуры Иркутской области на 2011-2013 годы» | B164: 7 | C164: 2 | D164: 5222000 | E164: 0 | F164: 300 | G164: 213.8 | H164: 0.7126666667
A165: Подпрограмма «Подготовка объектов коммунальной инфраструктуры Иркутской области к отопительному сезону в 2011-2013 годах» | B165: 7 | C165: 2 | D165: 5222001 | E165: 0 | F165: 300 | G165: 213.8 | H165: 0.7126666667
A166: Выполнение функций казенными учреждениями | B166: 7 | C166: 2 | D166: 5222001 | E166: 001 | F166: 300 | G166: 213.8 | H166: 0.7126666667
A167: Долгосрочная целевая программа «Энергосбережение и повышение энергетической эффективности на территории Иркутской области на 2011-2015 годы и на период до 2020 года» | B167: 7 | C167: 2 | D167: 5225400 | E167: 0 | F167: 325.2 | G167: 325.2 | H167: 1
A168: Выполнение функций казенными учреждениями | B168: 7 | C168: 2 | D168: 5225400 | E168: 001 | F168: 325.2 | G168: 325.2 | H168: 1
A169: Выплата заработной платы с начислениями на нее педагогическим работникам муниципальных дошкольных образовательных учреждений и муниципальных учреждений дополнительного образования | B169: 7 | C169: 2 | D169: 5890000 | E169: 0 | F169: 2276 | G169: 2276 | H169: 1
A170: Выполнение функций казенными учреждениями | B170: 7 | C170: 2 | D170: 5890000 | E170: 001 | F170: 2276 | G170: 2276 | H170: 1
A171: Погашение кредиторской задолженности учреждений, находящихся в ведении органов местного самоуправления муниципальных образований Иркутской области, по единому социальному налогу, зачисляемому в федеральный бюджет, Фонд социального страхования Российской Федерации, Федеральный фонд обязательного медицинского страхования и территориальные фонды обязательного медицинского страхования | B171: 7 | C171: 2 | D171: 5900000 | E171: 0 | F171: 877.4 | G171: 877.4 | H171: 1
A172: Выполнение функций казенными учреждениями | B172: 7 | C172: 2 | D172: 5900000 | E172: 001 | F172: 877.4 | G172: 877.4 | H172: 1
A173: Целевые программы муниципальных образований | B173: 7 | C173: 2 | D173: 7950000 | E173: 0 | F173: 14777.4 | G173: 14752.8 | H173: 0.9983352958
A174: Мероприятия в сфере образования | B174: 7 | C174: 2 | D174: 7950000 | E174: 022 | F174: 1881.6 | G174: 1875.1 | H174: 0.9965454932
A175: Мероприятия по обеспечению пожарной безопасности | B175: 7 | C175: 2 | D175: 7950000 | E175: 450 | F175: 700 | G175: 683 | H175: 0.9757142857
A176: Мероприятия по повышению энергетической эффективности | B176: 7 | C176: 2 | D176: 7950000 | E176: 451 | F176: 600 | G176: 598.9 | H176: 0.9981666667
A177: Долгосрочная целевая программа Черемховского районного муниципального образования "Повышение эффективности бюджетных расходов Черемховского районного муниципального образования на 2012-2013 годы" | B177: 7 | C177: 2 | D177: 7950200 | E177: 0 | F177: 11595.8 | G177: 11595.9 | H177: 1.000008624
A178: Выполнение функций казенными учреждениями | B178: 7 | C178: 2 | D178: 7950200 | E178: 001 | F178: 11595.8 | G178: 11595.9 | H178: 1.000008624
A179: Молодежная политика и оздоровление детей | B179: 7 | C179: 7 | D179: 0 | E179: 0 | F179: 2615 | G179: 2614.9 | H179: 0.9999617591
A180: Организационно-воспитательная работа с молодежью | B180: 7 | C180: 7 | D180: 4310000 | E180: 0 | F180: 106 | G180: 106 | H180: 1
A181: Проведение мероприятий для детей и молодежи | B181: 7 | C181: 7 | D181: 4310100 | E181: 0 | F181: 106 | G181: 106 | H181: 1
A182: Выполнение функций органами местного самоуправления | B182: 7 | C182: 7 | D182: 4310100 | E182: 500 | F182: 106 | G182: 106 | H182: 1
A183: Мероприятия по проведению оздоровительной кампании детей | B183: 7 | C183: 7 | D183: 4320000 | E183: 0 | F183: 24.1 | G183: 24.1 | H183: 1
A184: Оплата стоимости набора продуктов питания для детей в организованных органами местного самоуправления оздоровительных лагерях с дневным пребыванием детей за счет средств областного бюджета | B184: 7 | C184: 7 | D184: 4320300 | E184: 0 | F184: 24.1 | G184: 24.1 | H184: 1
A185: Оплата стоимости набора продуктов питания для детей в организованных органами местного самоуправления оздоровительных лагерях с дневным пребыванием детей за счет средств местного бюджета | B185: 7 | C185: 7 | D185: 4320302 | E185: 0 | F185: 24.1 | G185: 24.1 | H185: 1
A186: Выполнение функций казенными учреждениями | B186: 7 | C186: 7 | D186: 4320302 | E186: 001 | F186: 24.1 | G186: 24.1 | H186: 1
A187: Региональные целевые программы | B187: 7 | C187: 7 | D187: 5220000 | E187: 0 | F187: 2384.9 | G187: 2384.8 | H187: 0.9999580695
A188: Долгосрочная целевая программа Иркутской области "Организация и обеспечение отдыха и оздоровления детей в Иркутской области на 2012-2014гг." | B188: 7 | C188: 7 | D188: 5226200 | E188: 0 | F188: 2384.9 | G188: 2384.8 | H188: 0.9999580695
A189: Выполнение функций казенными учреждениями | B189: 7 | C189: 7 | D189: 5226200 | E189: 001 | F189: 2384.9 | G189: 2384.8 | H189: 0.9999580695
A190: Целевые программы муниципальных образований | B190: 7 | C190: 7 | D190: 7950000 | E190: 0 | F190: 100 | G190: 100 | H190: 1
A191: Выполнение функций органами местного самоуправления | B191: 7 | C191: 7 | D191: 7950000 | E191: 500 | F191: 100 | G191: 100 | H191: 1
A192: Другие вопросы в области образования | B192: 7 | C192: 9 | D192: 0 | E192: 0 | F192: 10055 | G192: 9937.8 | H192: 0.9883441074
A193: Руководство и управление в сфере установленных функций органов государственной власти субъектов Российской Федерации и органов местного самоуправления | B193: 7 | C193: 9 | D193: 20000 | E193: 0 | F193: 3723.5 | G193: 3606.4 | H193: 0.9685510944
A194: Центральный аппарат | B194: 7 | C194: 9 | D194: 20400 | E194: 0 | F194: 3723.5 | G194: 3606.4 | H194: 0.9685510944
A195: Выполнение функций органами местного самоуправления | B195: 7 | C195: 9 | D195: 20400 | E195: 500 | F195: 3723.5 | G195: 3606.4 | H195: 0.9685510944
A196: Учебно-методические кабинеты, централизованные бухгалтерии, группы хозяйственного обслуживания, учебные фильмотеки, межшкольные учебно-производственные комбинаты, логопедические пункты | B196: 7 | C196: 9 | D196: 4520000 | E196: 0 | F196: 6315.7 | G196: 6315.6 | H196: 0.9999841664
A197: Обеспечение деятельности подведомственных учреждений | B197: 7 | C197: 9 | D197: 4529900 | E197: 0 | F197: 6315.7 | G197: 6315.6 | H197: 0.9999841664
A198: Субсидии некоммерческим организациям | B198: 7 | C198: 9 | D198: 4529900 | E198: 019 | F198: 193.6 | G198: 193.6 | H198: 1
A199: Субсидии бюджетным учреждениям на финансовое обеспечение муниципального задания на оказание муниципальных услуг (выполнение работ) | B199: 7 | C199: 9 | D199: 4529900 | E199: 611 | F199: 6011.8 | G199: 6011.7 | H199: 0.999983366
A200: Субсидии бюджетным учреждениям на иные цели | B200: 7 | C200: 9 | D200: 4529900 | E200: 612 | F200: 110.3 | G200: 110.3 | H200: 1
A201: Погашение кредиторской задолженности учреждений, находящихся в ведении органов местного самоуправления муниципальных образований Иркутской области, по единому социальному налогу, зачисляемому в федеральный бюджет, Фонд социального страхования Российской Федерации, Федеральный фонд обязательного медицинского страхования и территориальные фонды обязательного медицинского страхования | B201: 7 | C201: 9 | D201: 5900000 | E201: 0 | F201: 15.8 | G201: 15.8 | H201: 1
A202: Выполнение функций органами местного самоуправления | B202: 7 | C202: 9 | D202: 5900000 | E202: 500 | F202: 15.8 | G202: 15.8 | H202: 1
A203: КУЛЬТУРА И КИНЕМАТОГРАФИЯ | B203: 8 | C203: 0 | D203: 0 | E203: 0 | F203: 20585.4 | G203: 19401.4 | H203: 0.9424835077
A204: Культура | B204: 8 | C204: 1 | D204: 0 | E204: 0 | F204: 19552.2 | G204: 18370 | H204: 0.9395362159
A205: Учреждения культуры и мероприятия в сфере культуры и кинематографии | B205: 8 | C205: 1 | D205: 4400000 | E205: 0 | F205: 6637.2 | G205: 5973 | H205: 0.8999276803
A206: Комплектование книжных фондов библиотек муниципальных образований и государственных библиотек городов Москвы и Санкт-Петербурга | B206: 8 | C206: 1 | D206: 4400200 | E206: 0 | F206: 431 | G206: 431 | H206: 1
A207: Комплектование книжных фондов библиотек муниципальных образований и государственных библиотек городов Москвы и Санкт-Петербурга за счет средств федерального бюджета | B207: 8 | C207: 1 | D207: 4400201 | E207: 0 | F207: 281 | G207: 281 | H207: 1
A208: Выполнение функций казенными учреждениями | B208: 8 | C208: 1 | D208: 4400201 | E208: 001 | F208: 281 | G208: 281 | H208: 1
... 177 more rows

Sheet прил4
A7: Отчет об исполнении бюджета Черемховского районного муниципального образования за 2012 год по разделам и подразделам классификации расходов бюджетов
A10: Наименование показателя | B10: Код | F10: План на год, тыс. руб. | G10: Исполнено, тыс. руб. | H10: % исполнения
B11: раздела | C11: подраздела | D11: целевой статьи | E11: вида расходов
A12: 1 | B12: 2 | C12: 3 | D12: 4 | E12: 5 | F12: 4 | G12: 5 | H12: 6
A13: ОБЩЕГОСУДАРСТВЕННЫЕ ВОПРОСЫ | B13: 1 | C13: 0 | D13: 0 | E13: 0 | F13: 77828.1 | G13: 75090.5 | H13: 0.9648250439
A14: Функционирование высшего должностного лица субъекта Российской Федерации и муниципального образования | B14: 1 | C14: 2 | D14: 0 | E14: 0 | F14: 2034.5 | G14: 2014.9 | H14: 0.9903661833
A15: Руководство и управление в сфере установленных функций органов государственной власти субъектов Российской Федерации и органов местного самоуправления | B15: 1 | C15: 2 | D15: 20000 | E15: 0 | F15: 2034.5 | G15: 2014.9 | H15: 0.9903661833
A16: Глава муниципального образования | B16: 1 | C16: 2 | D16: 20300 | E16: 0 | F16: 2034.5 | G16: 2014.9 | H16: 0.9903661833
A17: Выполнение функций органами местного самоуправления | B17: 1 | C17: 2 | D17: 20300 | E17: 500 | F17: 2034.5 | G17: 2014.9 | H17: 0.9903661833
A18: Функционирование законодательных (представительных) органов государственной власти и представительных органов муниципальных образований | B18: 1 | C18: 3 | D18: 0 | E18: 0 | F18: 1601.4 | G18: 1581.6 | H18: 0.9876358187
A19: Руководство и управление в сфере установленных функций органов государственной власти субъектов Российской Федерации и органов местного самоуправления | B19: 1 | C19: 3 | D19: 20000 | E19: 0 | F19: 1599.8 | G19: 1580 | H19: 0.9876234529
A20: Центральный аппарат | B20: 1 | C20: 3 | D20: 20400 | E20: 0 | F20: 638.2 | G20: 624.4 | H20: 0.9783766844
A21: Выполнение функций органами местного самоуправления | B21: 1 | C21: 3 | D21: 20400 | E21: 500 | F21: 638.2 | G21: 624.4 | H21: 0.9783766844
A22: Председатель представительного органа муниципального образования | B22: 1 | C22: 3 | D22: 21100 | E22: 0 | F22: 961.6 | G22: 955.6 | H22: 0.9937603993
A23: Выполнение функций органами местного самоуправления | B23: 1 | C23: 3 | D23: 21100 | E23: 500 | F23: 961.6 | G23: 955.6 | H23: 0.9937603993
A24: Погашение кредиторской задолженности учреждений, находящихся в ведении органов местного самоуправления муниципальных образований Иркутской области, по единому социальному налогу, зачисляемому в федеральный бюджет, Фонд социального страхования Российской Федерации, Федеральный фонд обязательного медицинского страхования и территориальные фонды обязательного медицинского страхования | B24: 1 | C24: 3 | D24: 5900000 | E24: 0 | F24: 1.6 | G24: 1.6 | H24: 1
A25: Выполнение функций органами местного самоуправления | B25: 1 | C25: 3 | D25: 5900000 | E25: 500 | F25: 1.6 | G25: 1.6 | H25: 1
A26: Функционирование Правительства Российской Федерации, высших исполнительных органов государственной власти субъектов Российской Федерации, местных администраций | B26: 1 | C26: 4 | D26: 0 | E26: 0 | F26: 28868.2 | G26: 28640.2 | H26: 0.9921020362
A27: Руководство и управление в сфере установленных функций органов государственной власти субъектов Российской Федерации и органов местного самоуправления | B27: 1 | C27: 4 | D27: 20000 | E27: 0 | F27: 28717.7 | G27: 28515.1 | H27: 0.9929451175
A28: Центральный аппарат | B28: 1 | C28: 4 | D28: 20400 | E28: 0 | F28: 28717.7 | G28: 28515.1 | H28: 0.9929451175
A29: Выполнение функций органами местного самоуправления | B29: 1 | C29: 4 | D29: 20400 | E29: 500 | F29: 28717.7 | G29: 28515.1 | H29: 0.9929451175
A30: Погашение кредиторской задолженности учреждений, находящихся в ведении органов местного самоуправления муниципальных образований Иркутской области, по единому социальному налогу, зачисляемому в федеральный бюджет, Фонд социального страхования Российской Федерации, Федеральный фонд обязательного медицинского страхования и территориальные фонды обязательного медицинского страхования | B30: 1 | C30: 4 | D30: 5900000 | E30: 0 | F30: 100.5 | G30: 100.5 | H30: 1
A31: Выполнение функций органами местного самоуправления | B31: 1 | C31: 4 | D31: 5900000 | E31: 500 | F31: 100.5 | G31: 100.5 | H31: 1
A32: Целевые программы муниципальных образований | B32: 1 | C32: 4 | D32: 7950000 | E32: 0 | F32: 50 | G32: 24.6 | H32: 0.492
A33: Долгосрочная целевая программа Черемховского районного муниципального образования "Повышение эффективности бюджетных расходов Черемховского районного муниципального образования на 2012-2013 годы" | B33: 1 | C33: 4 | D33: 7950200 | E33: 0 | F33: 50 | G33: 24.6 | H33: 0.492
A34: Выполнение функций органами местного самоуправления | B34: 1 | C34: 4 | D34: 7950200 | E34: 500 | F34: 50 | G34: 24.6 | H34: 0.492
A35: Судебная система | B35: 1 | C35: 5 | D35: 0 | E35: 0 | F35: 7.5 | G35: 7.5 | H35: 1
A36: Руководство и управление в сфере установленных функций | B36: 1 | C36: 5 | D36: 10000 | E36: 0 | F36: 7.5 | G36: 7.5 | H36: 1
A37: Составление (изменение и дополнение) списков кандидатов в присяжные заседатели федеральных судов общей юрисдикции в Российской Федерации | B37: 1 | C37: 5 | D37: 14000 | E37: 0 | F37: 7.5 | G37: 7.5 | H37: 1
A38: Выполнение функций органами местного самоуправления | B38: 1 | C38: 5 | D38: 14000 | E38: 500 | F38: 7.5 | G38: 7.5 | H38: 1
A39: Обеспечение деятельности финансовых, налоговых и таможенных органов и органов финансового (финансово-бюджетного) надзора | B39: 1 | C39: 6 | D39: 0 | E39: 0 | F39: 9208.2 | G39: 9128.9 | H39: 0.9913881106
A40: Руководство и управление в сфере установленных функций органов государственной власти субъектов Российской Федерации и органов местного самоуправления | B40: 1 | C40: 6 | D40: 20000 | E40: 0 | F40: 9158.2 | G40: 9128.9 | H40: 0.9968006814
A41: Центральный аппарат | B41: 1 | C41: 6 | D41: 20400 | E41: 0 | F41: 8460.3 | G41: 8437.8 | H41: 0.9973405198
A42: Выполнение функций органами местного самоуправления | B42: 1 | C42: 6 | D42: 20400 | E42: 500 | F42: 8460.3 | G42: 8437.8 | H42: 0.9973405198
A43: Руководитель контрольно-счетной палаты муниципального образования и его заместители | B43: 1 | C43: 6 | D43: 22500 | E43: 0 | F43: 697.9 | G43: 691.1 | H43: 0.9902564837
A44: Выполнение функций органами местного самоуправления | B44: 1 | C44: 6 | D44: 22500 | E44: 500 | F44: 697.9 | G44: 691.1 | H44: 0.9902564837
A45: Целевые программы муниципальных образований | B45: 1 | C45: 6 | D45: 7950000 | E45: 0 | F45: 50 | G45: 0 | H45: 0
A46: Долгосрочная целевая программа Черемховского районного муниципального образования "Повышение эффективности бюджетных расходов Черемховского районного муниципального образования на 2012-2013 годы" | B46: 1 | C46: 6 | D46: 7950200 | E46: 0 | F46: 50 | G46: 0 | H46: 0
A47: Выполнение функций органами местного самоуправления | B47: 1 | C47: 6 | D47: 7950200 | E47: 500 | F47: 50 | G47: 0 | H47: 0
A48: Другие общегосударственные вопросы | B48: 1 | C48: 13 | D48: 0 | E48: 0 | F48: 36108.3 | G48: 33717.4 | H48: 0.933785307
A49: Руководство и управление в сфере установленных функций органов государственной власти субъектов Российской Федерации и органов местного самоуправления | B49: 1 | C49: 13 | D49: 20000 | E49: 0 | F49: 18849 | G49: 18790.1 | H49: 0.9968751658
A50: Центральный аппарат | B50: 1 | C50: 13 | D50: 20400 | E50: 0 | F50: 3289.3 | G50: 3254.9 | H50: 0.9895418478
A51: Выполнение функций органами местного самоуправления | B51: 1 | C51: 13 | D51: 20400 | E51: 500 | F51: 3289.3 | G51: 3254.9 | H51: 0.9895418478
A52: Осуществление областных государственных полномочий по хранению, комплектованию, учету и использованию архивных документов, относящихся к государственной собственности Иркутской области | B52: 1 | C52: 13 | D52: 24000 | E52: 0 | F52: 1027 | G52: 1024.2 | H52: 0.9972736125
A53: Выполнение функций органами местного самоуправления | B53: 1 | C53: 13 | D53: 24000 | E53: 500 | F53: 1027 | G53: 1024.2 | H53: 0.9972736125
A54: Осуществление областных государственных полномочий по определению персонального состава и обеспечению деятельности административных комиссий | B54: 1 | C54: 13 | D54: 24300 | E54: 0 | F54: 532.9 | G54: 532.1 | H54: 0.9984987803
A55: Выполнение функций органами местного самоуправления | B55: 1 | C55: 13 | D55: 24300 | E55: 500 | F55: 532.9 | G55: 532.1 | H55: 0.9984987803
A56: Осуществление отдельных государственных полномочий в области производства и оборота этилового спирта, алкогольной и спиртосодержащей продукции | B56: 1 | C56: 13 | D56: 24400 | E56: 0 | F56: 376.6 | G56: 375.8 | H56: 0.9978757302
A57: Выполнение функций органами местного самоуправления | B57: 1 | C57: 13 | D57: 24400 | E57: 500 | F57: 376.6 | G57: 375.8 | H57: 0.9978757302
A58: Осуществление отдельных областных государственных полномочий в области охраны труда | B58: 1 | C58: 13 | D58: 24500 | E58: 0 | F58: 532.9 | G58: 525.4 | H58: 0.9859260649
A59: Выполнение функций органами местного самоуправления | B59: 1 | C59: 13 | D59: 24500 | E59: 500 | F59: 532.9 | G59: 525.4 | H59: 0.9859260649
A60: Обеспечение деятельности подведомственных учреждений | B60: 1 | C60: 13 | D60: 29900 | E60: 0 | F60: 13090.3 | G60: 13077.7 | H60: 0.9990374552
A61: Выполнение функций казенными учреждениями | B61: 1 | C61: 13 | D61: 29900 | E61: 001 | F61: 13090.3 | G61: 13077.7 | H61: 0.9990374552
A62: Реализация государственных функций, связанных с общегосударственным управлением | B62: 1 | C62: 13 | D62: 920000 | E62: 0 | F62: 4306.7 | G62: 3657.6 | H62: 0.8492813523
A63: Выполнение других обязательств государства | B63: 1 | C63: 13 | D63: 920300 | E63: 0 | F63: 4306.7 | G63: 3657.6 | H63: 0.8492813523
A64: Выполнение функций органами местного самоуправления | B64: 1 | C64: 13 | D64: 920300 | E64: 500 | F64: 4306.7 | G64: 3657.6 | H64: 0.8492813523
A65: Учреждения по обеспечению хозяйственного обслуживания | B65: 1 | C65: 13 | D65: 930000 | E65: 0 | F65: 7889.4 | G65: 7889.4 | H65: 1
A66: Обеспечение деятельности подведомственных учреждений | B66: 1 | C66: 13 | D66: 939900 | E66: 0 | F66: 7889.4 | G66: 7889.4 | H66: 1
A67: Субсидии некоммерческим организациям | B67: 1 | C67: 13 | D67: 939900 | E67: 019 | F67: 407.8 | G67: 407.8 | H67: 1
A68: Субсидии бюджетным учреждениям на финансовое обеспечение муниципального задания на оказание муниципальных услуг (выполнение работ) | B68: 1 | C68: 13 | D68: 939900 | E68: 611 | F68: 7481.2 | G68: 7481.2 | H68: 1
A69: Субсидии бюджетным учреждениям на иные цели | B69: 1 | C69: 13 | D69: 939900 | E69: 612 | F69: 0.4 | G69: 0.4 | H69: 1
A70: Погашение кредиторской задолженности учреждений, находящихся в ведении органов местного самоуправления муниципальных образований Иркутской области, по единому социальному налогу, зачисляемому в федеральный бюджет, Фонд социального страхования Российской Федерации, Федеральный фонд обязательного медицинского страхования и территориальные фонды обязательного медицинского страхования | B70: 1 | C70: 13 | D70: 5900000 | E70: 0 | F70: 33.4 | G70: 33.4 | H70: 1
A71: Выполнение функций казенными учреждениями | B71: 1 | C71: 13 | D71: 5900000 | E71: 001 | F71: 32.8 | G71: 32.8 | H71: 1
A72: Выполнение функций органами местного самоуправления | B72: 1 | C72: 13 | D72: 5900000 | E72: 500 | F72: 0.6 | G72: 0.6 | H72: 1
A73: Целевые программы муниципальных образований | B73: 1 | C73: 13 | D73: 7950000 | E73: 0 | F73: 5029.8 | G73: 3346.9 | H73: 0.6654141318
A74: Выполнение функций органами местного самоуправления | B74: 1 | C74: 13 | D74: 7950000 | E74: 500 | F74: 2795 | G74: 1157.6 | H74: 0.4141681574
A75: Долгосрочная целевая программа Черемховского районного муниципального образования "Повышение эффективности бюджетных расходов Черемховского районного муниципального образования на 2012-2013 годы" | B75: 1 | C75: 13 | D75: 7950200 | E75: 0 | F75: 2234.8 | G75: 2189.3 | H75: 0.9796402363
A76: Выполнение функций казенными учреждениями | B76: 1 | C76: 13 | D76: 7950200 | E76: 001 | F76: 2234.8 | G76: 2189.3 | H76: 0.9796402363
A77: НАЦИОНАЛЬНАЯ ЭКОНОМИКА | B77: 4 | C77: 0 | D77: 0 | E77: 0 | F77: 24637.3 | G77: 24150 | H77: 0.9802210469
A78: Другие вопросы в области национальной экономики | B78: 4 | C78: 12 | D78: 0 | E78: 0 | F78: 24637.3 | G78: 24150 | H78: 0.9802210469
A79: Мероприятия в области строительства, архитектуры и градостроительства | B79: 4 | C79: 12 | D79: 3380000 | E79: 0 | F79: 3711.1 | G79: 3680.9 | H79: 0.9918622511
A80: Подготовка проектов генеральных планов муниципальных образований Черемховского районного муниципального образования | B80: 4 | C80: 12 | D80: 3380100 | E80: 0 | F80: 930.6 | G80: 930.6 | H80: 1
A81: Выполнение функций органами местного самоуправления | B81: 4 | C81: 12 | D81: 3380100 | E81: 500 | F81: 930.6 | G81: 930.6 | H81: 1
A82: Подготовка проектов правил землепользования и застройки муниципальных образований Черемховского районного муниципального образования | B82: 4 | C82: 12 | D82: 3380200 | E82: 0 | F82: 2780.5 | G82: 2750.3 | H82: 0.9891386441
A83: Выполнение функций органами местного самоуправления | B83: 4 | C83: 12 | D83: 3380200 | E83: 500 | F83: 2780.5 | G83: 2750.3 | H83: 0.9891386441
A84: Малое и среднее предпринимательство | B84: 4 | C84: 12 | D84: 3450000 | E84: 0 | F84: 240 | G84: 224 | H84: 0.9333333333
A85: Субсидии на государственную поддержку малого и среднего предпринимательства, включая крестьянские (фермерские) хозяйства | B85: 4 | C85: 12 | D85: 3450100 | E85: 0 | F85: 240 | G85: 224 | H85: 0.9333333333
A86: Субсидии юридическим лицам | B86: 4 | C86: 12 | D86: 3450100 | E86: 006 | F86: 240 | G86: 224 | H86: 0.9333333333
A87: Региональные целевые программы | B87: 4 | C87: 12 | D87: 5220000 | E87: 0 | F87: 19130.2 | G87: 19130.2 | H87: 1
A88: Долгосрочная целевая программа «Поддержка и развитие малого и среднего предпринимательства в Иркутской области» на 2011-2012 годы | B88: 4 | C88: 12 | D88: 5222400 | E88: 0 | F88: 60 | G88: 60 | H88: 1
A89: Субсидии юридическим лицам | B89: 4 | C89: 12 | D89: 5222400 | E89: 006 | F89: 60 | G89: 60 | H89: 1
A90: Долгосрочная целевая программа Иркутской области «Стимулирование жилищного строительства в Иркутской области на 2011-2015 годы» | B90: 4 | C90: 12 | D90: 5225700 | E90: 0 | F90: 19070.2 | G90: 19070.2 | H90: 1
A91: Подпрограмма "Территориальное планирование муниципальных образований Иркутской области на 2011-2012 годы" | B91: 4 | C91: 12 | D91: 5225701 | E91: 0 | F91: 19070.2 | G91: 19070.2 | H91: 1
A92: Выполнение функций органами местного самоуправления | B92: 4 | C92: 12 | D92: 5225701 | E92: 500 | F92: 19070.2 | G92: 19070.2 | H92: 1
A93: Целевые программы муниципальных образований | B93: 4 | C93: 12 | D93: 7950000 | E93: 0 | F93: 1556 | G93: 1115 | H93: 0.7165809769
A94: Субсидии юридическим лицам | B94: 4 | C94: 12 | D94: 7950000 | E94: 006 | F94: 16 | G94: 16 | H94: 1
A95: Выполнение функций органами местного самоуправления | B95: 4 | C95: 12 | D95: 7950000 | E95: 500 | F95: 1540 | G95: 1099 | H95: 0.7136363636
A96: ЖИЛИЩНО-КОММУНАЛЬНОЕ ХОЗЯЙСТВО | B96: 5 | C96: 0 | D96: 0 | E96: 0 | F96: 11372.1 | G96: 9434.8 | H96: 0.8296444808
A97: Жилищное хозяйство | B97: 5 | C97: 1 | D97: 0 | E97: 0 | F97: 644.7 | G97: 644.7 | H97: 1
A98: Поддержка жилищного хозяйства | B98: 5 | C98: 1 | D98: 3500000 | E98: 0 | F98: 644.7 | G98: 644.7 | H98: 1
A99: Капитальный ремонт государственного жилищного фонда субъектов Российской Федерации и муниципального жилищного фонда | B99: 5 | C99: 1 | D99: 3500200 | E99: 0 | F99: 273.9 | G99: 273.9 | H99: 1
A100: Субсидии юридическим лицам | B100: 5 | C100: 1 | D100: 3500200 | E100: 006 | F100: 174.9 | G100: 174.9 | H100: 1
A101: Выполнение функций органами местного самоуправления | B101: 5 | C101: 1 | D101: 3500200 | E101: 500 | F101: 99 | G101: 99 | H101: 1
A102: Мероприятия в области жилищного хозяйства | B102: 5 | C102: 1 | D102: 3500300 | E102: 0 | F102: 370.8 | G102: 370.8 | H102: 1
A103: Выполнение функций органами местного самоуправления | B103: 5 | C103: 1 | D103: 3500300 | E103: 500 | F103: 370.8 | G103: 370.8 | H103: 1
A104: Коммунальное хозяйство | B104: 5 | C104: 2 | D104: 0 | E104: 0 | F104: 4295.5 | G104: 2388.9 | H104: 0.5561401467
A105: Резервные фонды | B105: 5 | C105: 2 | D105: 700000 | E105: 0 | F105: 464.6 | G105: 464.6 | H105: 1
A106: Резервные фонды исполнительных органов государственной власти субъектов Российской Федерации | B106: 5 | C106: 2 | D106: 700400 | E106: 0 | F106: 164.6 | G106: 164.6 | H106: 1
A107: Выполнение функций органами местного самоуправления | B107: 5 | C107: 2 | D107: 700400 | E107: 500 | F107: 164.6 | G107: 164.6 | H107: 1
A108: Резервные фонды местных администраций | B108: 5 | C108: 2 | D108: 700500 | E108: 0 | F108: 300 | G108: 300 | H108: 1
A109: Выполнение функций органами местного самоуправления | B109: 5 | C109: 2 | D109: 700500 | E109: 500 | F109: 300 | G109: 300 | H109: 1
A110: Поддержка коммунального хозяйства | B110: 5 | C110: 2 | D110: 3510000 | E110: 0 | F110: 3806.8 | G110: 1900.2 | H110: 0.499159399
A111: Мероприятия в области коммунального хозяйства | B111: 5 | C111: 2 | D111: 3510500 | E111: 0 | F111: 3806.8 | G111: 1900.2 | H111: 0.499159399
A112: Выполнение функций органами местного самоуправления | B112: 5 | C112: 2 | D112: 3510500 | E112: 500 | F112: 3806.8 | G112: 1900.2 | H112: 0.499159399
A113: Региональные целевые программы | B113: 5 | C113: 2 | D113: 5220000 | E113: 0 | F113: 24.1 | G113: 24.1 | H113: 1
A114: Долгосрочная целевая программа «Энергосбережение и повышение энергетической эффективности на территории Иркутской области на 2011-2015 годы и на период до 2020 года» | B114: 5 | C114: 2 | D114: 5225400 | E114: 0 | F114: 24.1 | G114: 24.1 | H114: 1
A115: Иные межбюджетные трансферты | B115: 5 | C115: 2 | D115: 5225400 | E115: 017 | F115: 24.1 | G115: 24.1 | H115: 1
A116: Другие вопросы в области жилищно-коммунального хозяйства | B116: 5 | C116: 5 | D116: 0 | E116: 0 | F116: 6431.9 | G116: 6401.2 | H116: 0.9952269158
A117: Руководство и управление в сфере установленных функций органов государственной власти субъектов Российской Федерации и органов местного самоуправления | B117: 5 | C117: 5 | D117: 20000 | E117: 0 | F117: 6431.3 | G117: 6400.6 | H117: 0.9952264705
A118: Центральный аппарат | B118: 5 | C118: 5 | D118: 20400 | E118: 0 | F118: 4741.4 | G118: 4712.2 | H118: 0.9938414814
A119: Выполнение функций органами местного самоуправления | B119: 5 | C119: 5 | D119: 20400 | E119: 500 | F119: 4741.4 | G119: 4712.2 | H119: 0.9938414814
A120: Осуществление областных государственных полномочий по предоставлению гражданам субсидий на оплату жилых помещений и коммунальных услуг | B120: 5 | C120: 5 | D120: 24700 | E120: 0 | F120: 729.9 | G120: 728.3 | H120: 0.9978079189
A121: Содержание и обеспечение деятельности муниципальных служащих, осуществляющих областные государственные полномочия по предоставлению гражданам субсидий на оплату жилых помещений и коммунальных услуг | B121: 5 | C121: 5 | D121: 24701 | E121: 0 | F121: 729.9 | G121: 728.3 | H121: 0.9978079189
A122: Выполнение функций органами местного самоуправления | B122: 5 | C122: 5 | D122: 24701 | E122: 500 | F122: 729.9 | G122: 728.3 | H122: 0.9978079189
A123: Обеспечение деятельности подведомственных учреждений | B123: 5 | C123: 5 | D123: 29900 | E123: 0 | F123: 960 | G123: 960 | H123: 1
A124: Субсидии некоммерческим организациям | B124: 5 | C124: 5 | D124: 29900 | E124: 019 | F124: 48.4 | G124: 48.4 | H124: 1
A125: Субсидии бюджетным учреждениям на финансовое обеспечение муниципального задания на оказание муниципальных услуг (выполнение работ) | B125: 5 | C125: 5 | D125: 29900 | E125: 611 | F125: 911.6 | G125: 911.6 | H125: 1
A126: Субсидии бюджетным учреждениям на иные цели | B126: 5 | C126: 5 | D126: 29900 | E126: 612 | F126: 0 | G126: 0.1 | H126: 0
A127: Погашение кредиторской задолженности учреждений, находящихся в ведении органов местного самоуправления муниципальных образований Иркутской области, по единому социальному налогу, зачисляемому в федеральный бюджет, Фонд социального страхования Российской Федерации, Федеральный фонд обязательного медицинского страхования и территориальные фонды обязательного медицинского страхования | B127: 5 | C127: 5 | D127: 5900000 | E127: 0 | F127: 0.6 | G127: 0.6 | H127: 1
A128: Выполнение функций органами местного самоуправления | B128: 5 | C128: 5 | D128: 5900000 | E128: 500 | F128: 0.6 | G128: 0.6 | H128: 1
A129: ОБРАЗОВАНИЕ | B129: 7 | C129: 0 | D129: 0 | E129: 0 | F129: 441655.9 | G129: 432986 | H129: 0.9803695592
A130: Дошкольное образование | B130: 7 | C130: 1 | D130: 0 | E130: 0 | F130: 97602.6 | G130: 93166.5 | H130: 0.9545493665
A131: Детские дошкольные учреждения | B131: 7 | C131: 1 | D131: 4200000 | E131: 0 | F131: 74226.7 | G131: 72824.7 | H131: 0.9811119179
A132: Обеспечение деятельности подведомственных учреждений | B132: 7 | C132: 1 | D132: 4209900 | E132: 0 | F132: 74226.7 | G132: 72824.7 | H132: 0.9811119179
A133: Выполнение функций казенными учреждениями | B133: 7 | C133: 1 | D133: 4209900 | E133: 001 | F133: 74226.7 | G133: 72824.7 | H133: 0.9811119179
A134: Региональные целевые программы | B134: 7 | C134: 1 | D134: 5220000 | E134: 0 | F134: 7979.3 | G134: 4951.7 | H134: 0.6205682203
A135: Областная государственная целевая программа поддержки и развития учреждений дошкольного образования в Иркутской области на 2009-2014 годы | B135: 7 | C135: 1 | D135: 5223700 | E135: 0 | F135: 7857.3 | G135: 4829.7 | H135: 0.6146767974
A136: Выполнение функций казенными учреждениями | B136: 7 | C136: 1 | D136: 5223700 | E136: 001 | F136: 7857.3 | G136: 4829.7 | H136: 0.6146767974
A137: Долгосрочная целевая программа «Энергосбережение и повышение энергетической эффективности на территории Иркутской области на 2011-2015 годы и на период до 2020 года» | B137: 7 | C137: 1 | D137: 5225400 | E137: 0 | F137: 122 | G137: 122 | H137: 1
A138: Выполнение функций казенными учреждениями | B138: 7 | C138: 1 | D138: 5225400 | E138: 001 | F138: 122 | G138: 122 | H138: 1
A139: Выплата заработной платы с начислениями на нее педагогическим работникам муниципальных дошкольных образовательных учреждений и муниципальных учреждений дополнительного образования | B139: 7 | C139: 1 | D139: 5890000 | E139: 0 | F139: 5719 | G139: 5719 | H139: 1
A140: Выполнение функций казенными учреждениями | B140: 7 | C140: 1 | D140: 5890000 | E140: 001 | F140: 5719 | G140: 5719 | H140: 1
A141: Погашение кредиторской задолженности учреждений, находящихся в ведении органов местного самоуправления муниципальных образований Иркутской области, по единому социальному налогу, зачисляемому в федеральный бюджет, Фонд социального страхования Российской Федерации, Федеральный фонд обязательного медицинского страхования и территориальные фонды обязательного медицинского страхования | B141: 7 | C141: 1 | D141: 5900000 | E141: 0 | F141: 591.3 | G141: 591.3 | H141: 1
A142: Выполнение функций казенными учреждениями | B142: 7 | C142: 1 | D142: 5900000 | E142: 001 | F142: 591.3 | G142: 591.3 | H142: 1
A143: Целевые программы муниципальных образований | B143: 7 | C143: 1 | D143: 7950000 | E143: 0 | F143: 9086.3 | G143: 9079.8 | H143: 0.9992846373
A144: Мероприятия в сфере образования | B144: 7 | C144: 1 | D144: 7950000 | E144: 022 | F144: 987 | G144: 987 | H144: 1
A145: Мероприятия по обеспечению пожарной безопасности | B145: 7 | C145: 1 | D145: 7950000 | E145: 450 | F145: 1000 | G145: 1000 | H145: 1
A146: Долгосрочная целевая программа Черемховского районного муниципального образования "Повышение эффективности бюджетных расходов Черемховского районного муниципального образования на 2012-2013 годы" | B146: 7 | C146: 1 | D146: 7950200 | E146: 0 | F146: 7099.3 | G146: 7092.8 | H146: 0.9990844168
A147: Выполнение функций казенными учреждениями | B147: 7 | C147: 1 | D147: 7950200 | E147: 001 | F147: 7099.3 | G147: 7092.8 | H147: 0.9990844168
A148: Общее образование | B148: 7 | C148: 2 | D148: 0 | E148: 0 | F148: 331383.3 | G148: 327266.8 | H148: 0.9875778291
A149: Руководство и управление в сфере установленных функций органов государственной власти субъектов Российской Федерации и органов местного самоуправления | B149: 7 | C149: 2 | D149: 20000 | E149: 0 | F149: 236986.7 | G149: 236355.7 | H149: 0.9973374033
A150: Обеспечение государственных гарантий прав граждан на получение общедоступного и бесплатного дошкольного, начального общего, основного общего, среднего (полного) общего образования, а также дополнительного образования в общеобразовательных учреждениях | B150: 7 | C150: 2 | D150: 25000 | E150: 0 | F150: 236986.7 | G150: 236355.7 | H150: 0.9973374033
A151: Выполнение функций казенными учреждениями | B151: 7 | C151: 2 | D151: 25000 | E151: 001 | F151: 236986.7 | G151: 236355.7 | H151: 0.9973374033
A152: Школы - детские сады, школы начальные, неполные средние и средние | B152: 7 | C152: 2 | D152: 4210000 | E152: 0 | F152: 47870.1 | G152: 45850.8 | H152: 0.9578170925
A153: Обеспечение деятельности подведомственных учреждений | B153: 7 | C153: 2 | D153: 4219900 | E153: 0 | F153: 47870.1 | G153: 45850.8 | H153: 0.9578170925
A154: Выполнение функций казенными учреждениями | B154: 7 | C154: 2 | D154: 4219900 | E154: 001 | F154: 47870.1 | G154: 45850.8 | H154: 0.9578170925
A155: Учреждения по внешкольной работе с детьми | B155: 7 | C155: 2 | D155: 4230000 | E155: 0 | F155: 22019.2 | G155: 20930.2 | H155: 0.9505431623
A156: Обеспечение деятельности подведомственных учреждений | B156: 7 | C156: 2 | D156: 4239900 | E156: 0 | F156: 22019.2 | G156: 20930.2 | H156: 0.9505431623
A157: Выполнение функций казенными учреждениями | B157: 7 | C157: 2 | D157: 4239900 | E157: 001 | F157: 22019.2 | G157: 20930.2 | H157: 0.9505431623
A158: Иные безвозмездные и безвозвратные перечисления | B158: 7 | C158: 2 | D158: 5200000 | E158: 0 | F158: 5162.3 | G158: 4895.9 | H158: 0.9483950952
A159: Ежемесячное денежное вознаграждение за классное руководство | B159: 7 | C159: 2 | D159: 5200900 | E159: 0 | F159: 5162.3 | G159: 4895.9 | H159: 0.9483950952
A160: Выполнение функций казенными учреждениями | B160: 7 | C160: 2 | D160: 5200900 | E160: 001 | F160: 5162.3 | G160: 4895.9 | H160: 0.9483950952
A161: Региональные целевые программы | B161: 7 | C161: 2 | D161: 5220000 | E161: 0 | F161: 1414.2 | G161: 1328 | H161: 0.9390468109
A162: Долгосрочная целевая программа "Социальное развитие села Иркутской области на 2011-2014 годы" | B162: 7 | C162: 2 | D162: 5221800 | E162: 0 | F162: 789 | G162: 789 | H162: 1
A163: Бюджетные инвестиции | B163: 7 | C163: 2 | D163: 5221800 | E163: 003 | F163: 789 | G163: 789 | H163: 1
A164: Долгосрочная целевая программа «Модернизация объектов коммунальной инфраструктуры Иркутской области на 2011-2013 годы» | B164: 7 | C164: 2 | D164: 5222000 | E164: 0 | F164: 300 | G164: 213.8 | H164: 0.7126666667
A165: Подпрограмма «Подготовка объектов коммунальной инфраструктуры Иркутской области к отопительному сезону в 2011-2013 годах» | B165: 7 | C165: 2 | D165: 5222001 | E165: 0 | F165: 300 | G165: 213.8 | H165: 0.7126666667
A166: Выполнение функций казенными учреждениями | B166: 7 | C166: 2 | D166: 5222001 | E166: 001 | F166: 300 | G166: 213.8 | H166: 0.7126666667
A167: Долгосрочная целевая программа «Энергосбережение и повышение энергетической эффективности на территории Иркутской области на 2011-2015 годы и на период до 2020 года» | B167: 7 | C167: 2 | D167: 5225400 | E167: 0 | F167: 325.2 | G167: 325.2 | H167: 1
A168: Выполнение функций казенными учреждениями | B168: 7 | C168: 2 | D168: 5225400 | E168: 001 | F168: 325.2 | G168: 325.2 | H168: 1
A169: Выплата заработной платы с начислениями на нее педагогическим работникам муниципальных дошкольных образовательных учреждений и муниципальных учреждений дополнительного образования | B169: 7 | C169: 2 | D169: 5890000 | E169: 0 | F169: 2276 | G169: 2276 | H169: 1
A170: Выполнение функций казенными учреждениями | B170: 7 | C170: 2 | D170: 5890000 | E170: 001 | F170: 2276 | G170: 2276 | H170: 1
A171: Погашение кредиторской задолженности учреждений, находящихся в ведении органов местного самоуправления муниципальных образований Иркутской области, по единому социальному налогу, зачисляемому в федеральный бюджет, Фонд социального страхования Российской Федерации, Федеральный фонд обязательного медицинского страхования и территориальные фонды обязательного медицинского страхования | B171: 7 | C171: 2 | D171: 5900000 | E171: 0 | F171: 877.4 | G171: 877.4 | H171: 1
A172: Выполнение функций казенными учреждениями | B172: 7 | C172: 2 | D172: 5900000 | E172: 001 | F172: 877.4 | G172: 877.4 | H172: 1
A173: Целевые программы муниципальных образований | B173: 7 | C173: 2 | D173: 7950000 | E173: 0 | F173: 14777.4 | G173: 14752.8 | H173: 0.9983352958
A174: Мероприятия в сфере образования | B174: 7 | C174: 2 | D174: 7950000 | E174: 022 | F174: 1881.6 | G174: 1875.1 | H174: 0.9965454932
A175: Мероприятия по обеспечению пожарной безопасности | B175: 7 | C175: 2 | D175: 7950000 | E175: 450 | F175: 700 | G175: 683 | H175: 0.9757142857
A176: Мероприятия по повышению энергетической эффективности | B176: 7 | C176: 2 | D176: 7950000 | E176: 451 | F176: 600 | G176: 598.9 | H176: 0.9981666667
A177: Долгосрочная целевая программа Черемховского районного муниципального образования "Повышение эффективности бюджетных расходов Черемховского районного муниципального образования на 2012-2013 годы" | B177: 7 | C177: 2 | D177: 7950200 | E177: 0 | F177: 11595.8 | G177: 11595.9 | H177: 1.000008624
A178: Выполнение функций казенными учреждениями | B178: 7 | C178: 2 | D178: 7950200 | E178: 001 | F178: 11595.8 | G178: 11595.9 | H178: 1.000008624
A179: Молодежная политика и оздоровление детей | B179: 7 | C179: 7 | D179: 0 | E179: 0 | F179: 2615 | G179: 2614.9 | H179: 0.9999617591
A180: Организационно-воспитательная работа с молодежью | B180: 7 | C180: 7 | D180: 4310000 | E180: 0 | F180: 106 | G180: 106 | H180: 1
A181: Проведение мероприятий для детей и молодежи | B181: 7 | C181: 7 | D181: 4310100 | E181: 0 | F181: 106 | G181: 106 | H181: 1
A182: Выполнение функций органами местного самоуправления | B182: 7 | C182: 7 | D182: 4310100 | E182: 500 | F182: 106 | G182: 106 | H182: 1
A183: Мероприятия по проведению оздоровительной кампании детей | B183: 7 | C183: 7 | D183: 4320000 | E183: 0 | F183: 24.1 | G183: 24.1 | H183: 1
A184: Оплата стоимости набора продуктов питания для детей в организованных органами местного самоуправления оздоровительных лагерях с дневным пребыванием детей за счет средств областного бюджета | B184: 7 | C184: 7 | D184: 4320300 | E184: 0 | F184: 24.1 | G184: 24.1 | H184: 1
A185: Оплата стоимости набора продуктов питания для детей в организованных органами местного самоуправления оздоровительных лагерях с дневным пребыванием детей за счет средств местного бюджета | B185: 7 | C185: 7 | D185: 4320302 | E185: 0 | F185: 24.1 | G185: 24.1 | H185: 1
A186: Выполнение функций казенными учреждениями | B186: 7 | C186: 7 | D186: 4320302 | E186: 001 | F186: 24.1 | G186: 24.1 | H186: 1
A187: Региональные целевые программы | B187: 7 | C187: 7 | D187: 5220000 | E187: 0 | F187: 2384.9 | G187: 2384.8 | H187: 0.9999580695
A188: Долгосрочная целевая программа Иркутской области "Организация и обеспечение отдыха и оздоровления детей в Иркутской области на 2012-2014гг." | B188: 7 | C188: 7 | D188: 5226200 | E188: 0 | F188: 2384.9 | G188: 2384.8 | H188: 0.9999580695
A189: Выполнение функций казенными учреждениями | B189: 7 | C189: 7 | D189: 5226200 | E189: 001 | F189: 2384.9 | G189: 2384.8 | H189: 0.9999580695
A190: Целевые программы муниципальных образований | B190: 7 | C190: 7 | D190: 7950000 | E190: 0 | F190: 100 | G190: 100 | H190: 1
A191: Выполнение функций органами местного самоуправления | B191: 7 | C191: 7 | D191: 7950000 | E191: 500 | F191: 100 | G191: 100 | H191: 1
A192: Другие вопросы в области образования | B192: 7 | C192: 9 | D192: 0 | E192: 0 | F192: 10055 | G192: 9937.8 | H192: 0.9883441074
A193: Руководство и управление в сфере установленных функций органов государственной власти субъектов Российской Федерации и органов местного самоуправления | B193: 7 | C193: 9 | D193: 20000 | E193: 0 | F193: 3723.5 | G193: 3606.4 | H193: 0.9685510944
A194: Центральный аппарат | B194: 7 | C194: 9 | D194: 20400 | E194: 0 | F194: 3723.5 | G194: 3606.4 | H194: 0.9685510944
A195: Выполнение функций органами местного самоуправления | B195: 7 | C195: 9 | D195: 20400 | E195: 500 | F195: 3723.5 | G195: 3606.4 | H195: 0.9685510944
A196: Учебно-методические кабинеты, централизованные бухгалтерии, группы хозяйственного обслуживания, учебные фильмотеки, межшкольные учебно-производственные комбинаты, логопедические пункты | B196: 7 | C196: 9 | D196: 4520000 | E196: 0 | F196: 6315.7 | G196: 6315.6 | H196: 0.9999841664
A197: Обеспечение деятельности подведомственных учреждений | B197: 7 | C197: 9 | D197: 4529900 | E197: 0 | F197: 6315.7 | G197: 6315.6 | H197: 0.9999841664
A198: Субсидии некоммерческим организациям | B198: 7 | C198: 9 | D198: 4529900 | E198: 019 | F198: 193.6 | G198: 193.6 | H198: 1
A199: Субсидии бюджетным учреждениям на финансовое обеспечение муниципального задания на оказание муниципальных услуг (выполнение работ) | B199: 7 | C199: 9 | D199: 4529900 | E199: 611 | F199: 6011.8 | G199: 6011.7 | H199: 0.999983366
A200: Субсидии бюджетным учреждениям на иные цели | B200: 7 | C200: 9 | D200: 4529900 | E200: 612 | F200: 110.3 | G200: 110.3 | H200: 1
A201: Погашение кредиторской задолженности учреждений, находящихся в ведении органов местного самоуправления муниципальных образований Иркутской области, по единому социальному налогу, зачисляемому в федеральный бюджет, Фонд социального страхования Российской Федерации, Федеральный фонд обязательного медицинского страхования и территориальные фонды обязательного медицинского страхования | B201: 7 | C201: 9 | D201: 5900000 | E201: 0 | F201: 15.8 | G201: 15.8 | H201: 1
A202: Выполнение функций органами местного самоуправления | B202: 7 | C202: 9 | D202: 5900000 | E202: 500 | F202: 15.8 | G202: 15.8 | H202: 1
A203: КУЛЬТУРА И КИНЕМАТОГРАФИЯ | B203: 8 | C203: 0 | D203: 0 | E203: 0 | F203: 20585.4 | G203: 19401.4 | H203: 0.9424835077
A204: Культура | B204: 8 | C204: 1 | D204: 0 | E204: 0 | F204: 19552.2 | G204: 18370 | H204: 0.9395362159
A205: Учреждения культуры и мероприятия в сфере культуры и кинематографии | B205: 8 | C205: 1 | D205: 4400000 | E205: 0 | F205: 6637.2 | G205: 5973 | H205: 0.8999276803
A206: Комплектование книжных фондов библиотек муниципальных образований и государственных библиотек городов Москвы и Санкт-Петербурга | B206: 8 | C206: 1 | D206: 4400200 | E206: 0 | F206: 431 | G206: 431 | H206: 1
A207: Комплектование книжных фондов библиотек муниципальных образований и государственных библиотек городов Москвы и Санкт-Петербурга за счет средств федерального бюджета | B207: 8 | C207: 1 | D207: 4400201 | E207: 0 | F207: 281 | G207: 281 | H207: 1
A208: Выполнение функций казенными учреждениями | B208: 8 | C208: 1 | D208: 4400201 | E208: 001 | F208: 281 | G208: 281 | H208: 1
... 177 more rows

Sheet прил5
A6: Отчет об исполнении бюджета Черемховского районного муниципального образования по ведомственной структуре расходов бюджета за 2012 год
A9: Наименование показателя | B9: Код | G9: План на год, тыс. руб. | H9: Исполнено, тыс. руб. | I9: % исполнения
B10: ГРБС | C10: раздела | D10: подраздела | E10: целевой статьи | F10: вида расходов
A11: 1 | B11: 2 | C11: 3 | D11: 4 | E11: 5 | F11: 6 | G11: 8 | H11: 9 | I11: 10
A12: МБУЗ Михайловская ЦРБ | B12: 903 | C12: 0 | D12: 0 | E12: 0 | F12: 0 | G12: 7929.5 | H12: 7929.5 | I12: 1
A13: ЗДРАВООХРАНЕНИЕ | B13: 903 | C13: 9 | D13: 0 | E13: 0 | F13: 0 | G13: 7929.5 | H13: 7929.5 | I13: 1
A14: Стационарная медицинская помощь | B14: 903 | C14: 9 | D14: 1 | E14: 0 | F14: 0 | G14: 4608.7 | H14: 4608.6 | I14: 0.9999783019
A15: Руководство и управление в сфере установленных функций органов государственной власти субъектов Российской Федерации и органов местного самоуправления | B15: 903 | C15: 9 | D15: 1 | E15: 20000 | F15: 0 | G15: 2773 | H15: 2772.9 | I15: 0.999963938
A16: Осуществление отдельных областных государственных полномочий в области охраны здоровья граждан | B16: 903 | C16: 9 | D16: 1 | E16: 25200 | F16: 0 | G16: 2773 | H16: 2772.9 | I16: 0.999963938
A17: Выполнение функций казенными учреждениями | B17: 903 | C17: 9 | D17: 1 | E17: 25200 | F17: 001 | G17: 2773 | H17: 2772.9 | I17: 0.999963938
A18: Больницы, клиники, госпитали, медико-санитарные части | B18: 903 | C18: 9 | D18: 1 | E18: 4700000 | F18: 0 | G18: 1835.7 | H18: 1835.7 | I18: 1
A19: Обеспечение деятельности подведомственных учреждений | B19: 903 | C19: 9 | D19: 1 | E19: 4709900 | F19: 0 | G19: 1835.7 | H19: 1835.7 | I19: 1
A20: Выполнение функций казенными учреждениями | B20: 903 | C20: 9 | D20: 1 | E20: 4709900 | F20: 001 | G20: 1835.7 | H20: 1835.7 | I20: 1
A21: Амбулаторная помощь | B21: 903 | C21: 9 | D21: 2 | E21: 0 | F21: 0 | G21: 1360 | H21: 1360 | I21: 1
A22: Руководство и управление в сфере установленных функций органов государственной власти субъектов Российской Федерации и органов местного самоуправления | B22: 903 | C22: 9 | D22: 2 | E22: 20000 | F22: 0 | G22: 510 | H22: 510 | I22: 1
A23: Осуществление отдельных областных государственных полномочий в области охраны здоровья граждан | B23: 903 | C23: 9 | D23: 2 | E23: 25200 | F23: 0 | G23: 510 | H23: 510 | I23: 1
A24: Выполнение функций казенными учреждениями | B24: 903 | C24: 9 | D24: 2 | E24: 25200 | F24: 001 | G24: 510 | H24: 510 | I24: 1
A25: Поликлиники, амбулатории, диагностические центры | B25: 903 | C25: 9 | D25: 2 | E25: 4710000 | F25: 0 | G25: 227 | H25: 227 | I25: 1
A26: Обеспечение деятельности подведомственных учреждений | B26: 903 | C26: 9 | D26: 2 | E26: 4719900 | F26: 0 | G26: 227 | H26: 227 | I26: 1
A27: Выполнение функций казенными учреждениями | B27: 903 | C27: 9 | D27: 2 | E27: 4719900 | F27: 001 | G27: 227 | H27: 227 | I27: 1
A28: Фельдшерско-акушерские пункты | B28: 903 | C28: 9 | D28: 2 | E28: 4780000 | F28: 0 | G28: 573 | H28: 573 | I28: 1
A29: Обеспечение деятельности подведомственных учреждений | B29: 903 | C29: 9 | D29: 2 | E29: 4789900 | F29: 0 | G29: 573 | H29: 573 | I29: 1
A30: Выполнение функций казенными учреждениями | B30: 903 | C30: 9 | D30: 2 | E30: 4789900 | F30: 001 | G30: 573 | H30: 573 | I30: 1
A31: Целевые программы муниципальных образований | B31: 903 | C31: 9 | D31: 2 | E31: 7950000 | F31: 0 | G31: 50 | H31: 50 | I31: 1
A32: Мероприятия в области здравоохранения | B32: 903 | C32: 9 | D32: 2 | E32: 7950000 | F32: 079 | G32: 50 | H32: 50 | I32: 1
A33: Медицинская помощь в дневных стационарах всех типов | B33: 903 | C33: 9 | D33: 3 | E33: 0 | F33: 0 | G33: 0.6 | H33: 0.6 | I33: 1
A34: Больницы, клиники, госпитали, медико-санитарные части | B34: 903 | C34: 9 | D34: 3 | E34: 4700000 | F34: 0 | G34: 0.6 | H34: 0.6 | I34: 1
A35: Обеспечение деятельности подведомственных учреждений | B35: 903 | C35: 9 | D35: 3 | E35: 4709900 | F35: 0 | G35: 0.6 | H35: 0.6 | I35: 1
A36: Выполнение функций казенными учреждениями | B36: 903 | C36: 9 | D36: 3 | E36: 4709900 | F36: 001 | G36: 0.6 | H36: 0.6 | I36: 1
A37: Скорая медицинская помощь | B37: 903 | C37: 9 | D37: 4 | E37: 0 | F37: 0 | G37: 1960.2 | H37: 1960.2 | I37: 1
A38: Руководство и управление в сфере установленных функций органов государственной власти субъектов Российской Федерации и органов местного самоуправления | B38: 903 | C38: 9 | D38: 4 | E38: 20000 | F38: 0 | G38: 1628.2 | H38: 1628.2 | I38: 1
A39: Осуществление отдельных областных государственных полномочий в области охраны здоровья граждан | B39: 903 | C39: 9 | D39: 4 | E39: 25200 | F39: 0 | G39: 1628.2 | H39: 1628.2 | I39: 1
A40: Выполнение функций казенными учреждениями | B40: 903 | C40: 9 | D40: 4 | E40: 25200 | F40: 001 | G40: 1628.2 | H40: 1628.2 | I40: 1
A41: Больницы, клиники, госпитали, медико-санитарные части | B41: 903 | C41: 9 | D41: 4 | E41: 4700000 | F41: 0 | G41: 332 | H41: 332 | I41: 1
A42: Обеспечение деятельности подведомственных учреждений | B42: 903 | C42: 9 | D42: 4 | E42: 4709900 | F42: 0 | G42: 332 | H42: 332 | I42: 1
A43: Выполнение функций казенными учреждениями | B43: 903 | C43: 9 | D43: 4 | E43: 4709900 | F43: 001 | G43: 332 | H43: 332 | I43: 1
A44: Отдел по культуре и библиотечному обслуживанию АЧРМО | B44: 904 | C44: 0 | D44: 0 | E44: 0 | F44: 0 | G44: 1033.2 | H44: 1031.4 | I44: 0.9982578397
A45: КУЛЬТУРА И КИНЕМАТОГРАФИЯ | B45: 904 | C45: 8 | D45: 0 | E45: 0 | F45: 0 | G45: 1033.2 | H45: 1031.4 | I45: 0.9982578397
A46: Другие вопросы в области культуры, кинематографии | B46: 904 | C46: 8 | D46: 4 | E46: 0 | F46: 0 | G46: 1033.2 | H46: 1031.4 | I46: 0.9982578397
A47: Руководство и управление в сфере установленных функций органов государственной власти субъектов Российской Федерации и органов местного самоуправления | B47: 904 | C47: 8 | D47: 4 | E47: 20000 | F47: 0 | G47: 1033.2 | H47: 1031.4 | I47: 0.9982578397
A48: Центральный аппарат | B48: 904 | C48: 8 | D48: 4 | E48: 20400 | F48: 0 | G48: 1033.2 | H48: 1031.4 | I48: 0.9982578397
A49: Выполнение функций органами местного самоуправления | B49: 904 | C49: 8 | D49: 4 | E49: 20400 | F49: 500 | G49: 1033.2 | H49: 1031.4 | I49: 0.9982578397
A50: Отдел образования АЧРМО | B50: 907 | C50: 0 | D50: 0 | E50: 0 | F50: 0 | G50: 438903.3 | H50: 429519.9 | I50: 0.9786208033
A51: ОБРАЗОВАНИЕ | B51: 907 | C51: 7 | D51: 0 | E51: 0 | F51: 0 | G51: 434758 | H51: 426349.4 | I51: 0.9806591253
A52: Дошкольное образование | B52: 907 | C52: 7 | D52: 1 | E52: 0 | F52: 0 | G52: 97602.5 | H52: 93166.5 | I52: 0.9545503445
A53: Детские дошкольные учреждения | B53: 907 | C53: 7 | D53: 1 | E53: 4200000 | F53: 0 | G53: 74226.6 | H53: 72824.7 | I53: 0.9811132397
A54: Обеспечение деятельности подведомственных учреждений | B54: 907 | C54: 7 | D54: 1 | E54: 4209900 | F54: 0 | G54: 74226.6 | H54: 72824.7 | I54: 0.9811132397
A55: Выполнение функций казенными учреждениями | B55: 907 | C55: 7 | D55: 1 | E55: 4209900 | F55: 001 | G55: 74226.6 | H55: 72824.7 | I55: 0.9811132397
A56: Региональные целевые программы | B56: 907 | C56: 7 | D56: 1 | E56: 5220000 | F56: 0 | G56: 7979.3 | H56: 4951.7 | I56: 0.6205682203
A57: Областная государственная целевая программа поддержки и развития учреждений дошкольного образования в Иркутской области на 2009-2014 годы | B57: 907 | C57: 7 | D57: 1 | E57: 5223700 | F57: 0 | G57: 7857.3 | H57: 4829.7 | I57: 0.6146767974
A58: Выполнение функций казенными учреждениями | B58: 907 | C58: 7 | D58: 1 | E58: 5223700 | F58: 001 | G58: 7857.3 | H58: 4829.7 | I58: 0.6146767974
A59: Долгосрочная целевая программа «Энергосбережение и повышение энергетической эффективности на территории Иркутской области на 2011-2015 годы и на период до 2020 года» | B59: 907 | C59: 7 | D59: 1 | E59: 5225400 | F59: 0 | G59: 122 | H59: 122 | I59: 1
A60: Выполнение функций казенными учреждениями | B60: 907 | C60: 7 | D60: 1 | E60: 5225400 | F60: 001 | G60: 122 | H60: 122 | I60: 1
A61: Выплата заработной платы с начислениями на нее педагогическим работникам муниципальных дошкольных образовательных учреждений и муниципальных учреждений дополнительного образования | B61: 907 | C61: 7 | D61: 1 | E61: 5890000 | F61: 0 | G61: 5719 | H61: 5719 | I61: 1
A62: Выполнение функций казенными учреждениями | B62: 907 | C62: 7 | D62: 1 | E62: 5890000 | F62: 001 | G62: 5719 | H62: 5719 | I62: 1
A63: Погашение кредиторской задолженности учреждений, находящихся в ведении органов местного самоуправления муниципальных образований Иркутской области, по единому социальному налогу, зачисляемому в федеральный бюджет, Фонд социального страхования Российской Федерации, Федеральный фонд обязательного медицинского страхования и территориальные фонды обязательного медицинского страхования | B63: 907 | C63: 7 | D63: 1 | E63: 5900000 | F63: 0 | G63: 591.3 | H63: 591.3 | I63: 1
A64: Выполнение функций казенными учреждениями | B64: 907 | C64: 7 | D64: 1 | E64: 5900000 | F64: 001 | G64: 591.3 | H64: 591.3 | I64: 1
A65: Целевые программы муниципальных образований | B65: 907 | C65: 7 | D65: 1 | E65: 7950000 | F65: 0 | G65: 9086.3 | H65: 9079.8 | I65: 0.9992846373
A66: Мероприятия в сфере образования | B66: 907 | C66: 7 | D66: 1 | E66: 7950000 | F66: 022 | G66: 987 | H66: 987 | I66: 1
A67: Мероприятия по обеспечению пожарной безопасности | B67: 907 | C67: 7 | D67: 1 | E67: 7950000 | F67: 450 | G67: 1000 | H67: 1000 | I67: 1
A68: Долгосрочная целевая программа Черемховского районного муниципального образования "Повышение эффективности бюджетных расходов Черемховского районного муниципального образования на 2012-2013 годы" | B68: 907 | C68: 7 | D68: 1 | E68: 7950200 | F68: 0 | G68: 7099.3 | H68: 7092.8 | I68: 0.9990844168
A69: Выполнение функций казенными учреждениями | B69: 907 | C69: 7 | D69: 1 | E69: 7950200 | F69: 001 | G69: 7099.3 | H69: 7092.8 | I69: 0.9990844168
A70: Общее образование | B70: 907 | C70: 7 | D70: 2 | E70: 0 | F70: 0 | G70: 324691.5 | H70: 320836.2 | I70: 0.9881262675
A71: Руководство и управление в сфере установленных функций органов государственной власти субъектов Российской Федерации и органов местного самоуправления | B71: 907 | C71: 7 | D71: 2 | E71: 20000 | F71: 0 | G71: 236986.7 | H71: 236355.7 | I71: 0.9973374033
A72: Обеспечение государственных гарантий прав граждан на получение общедоступного и бесплатного дошкольного, начального общего, основного общего, среднего (полного) общего образования, а также дополнительного образования в общеобразовательных учреждениях | B72: 907 | C72: 7 | D72: 2 | E72: 25000 | F72: 0 | G72: 236986.7 | H72: 236355.7 | I72: 0.9973374033
A73: Выполнение функций казенными учреждениями | B73: 907 | C73: 7 | D73: 2 | E73: 25000 | F73: 001 | G73: 236986.7 | H73: 236355.7 | I73: 0.9973374033
A74: Школы - детские сады, школы начальные, неполные средние и средние | B74: 907 | C74: 7 | D74: 2 | E74: 4210000 | F74: 0 | G74: 47870.1 | H74: 45850.8 | I74: 0.9578170925
A75: Обеспечение деятельности подведомственных учреждений | B75: 907 | C75: 7 | D75: 2 | E75: 4219900 | F75: 0 | G75: 47870.1 | H75: 45850.8 | I75: 0.9578170925
A76: Выполнение функций казенными учреждениями | B76: 907 | C76: 7 | D76: 2 | E76: 4219900 | F76: 001 | G76: 47870.1 | H76: 45850.8 | I76: 0.9578170925
A77: Учреждения по внешкольной работе с детьми | B77: 907 | C77: 7 | D77: 2 | E77: 4230000 | F77: 0 | G77: 16199.8 | H77: 15365.6 | I77: 0.9485055371
A78: Обеспечение деятельности подведомственных учреждений | B78: 907 | C78: 7 | D78: 2 | E78: 4239900 | F78: 0 | G78: 16199.8 | H78: 15365.6 | I78: 0.9485055371
A79: Выполнение функций казенными учреждениями | B79: 907 | C79: 7 | D79: 2 | E79: 4239900 | F79: 001 | G79: 16199.8 | H79: 15365.6 | I79: 0.9485055371
A80: Иные безвозмездные и безвозвратные перечисления | B80: 907 | C80: 7 | D80: 2 | E80: 5200000 | F80: 0 | G80: 5162.3 | H80: 4895.9 | I80: 0.9483950952
A81: Ежемесячное денежное вознаграждение за классное руководство | B81: 907 | C81: 7 | D81: 2 | E81: 5200900 | F81: 0 | G81: 5162.3 | H81: 4895.9 | I81: 0.9483950952
A82: Выполнение функций казенными учреждениями | B82: 907 | C82: 7 | D82: 2 | E82: 5200900 | F82: 001 | G82: 5162.3 | H82: 4895.9 | I82: 0.9483950952
A83: Региональные целевые программы | B83: 907 | C83: 7 | D83: 2 | E83: 5220000 | F83: 0 | G83: 1414.2 | H83: 1328 | I83: 0.9390468109
A84: Долгосрочная целевая программа "Социальное развитие села Иркутской области на 2011-2014 годы" | B84: 907 | C84: 7 | D84: 2 | E84: 5221800 | F84: 0 | G84: 789 | H84: 789 | I84: 1
A85: Бюджетные инвестиции | B85: 907 | C85: 7 | D85: 2 | E85: 5221800 | F85: 003 | G85: 789 | H85: 789 | I85: 1
A86: Долгосрочная целевая программа «Модернизация объектов коммунальной инфраструктуры Иркутской области на 2011-2013 годы» | B86: 907 | C86: 7 | D86: 2 | E86: 5222000 | F86: 0 | G86: 300 | H86: 213.8 | I86: 0.7126666667
A87: Подпрограмма «Подготовка объектов коммунальной инфраструктуры Иркутской области к отопительному сезону в 2011-2013 годах» | B87: 907 | C87: 7 | D87: 2 | E87: 5222001 | F87: 0 | G87: 300 | H87: 213.8 | I87: 0.7126666667
A88: Выполнение функций казенными учреждениями | B88: 907 | C88: 7 | D88: 2 | E88: 5222001 | F88: 001 | G88: 300 | H88: 213.8 | I88: 0.7126666667
A89: Долгосрочная целевая программа «Энергосбережение и повышение энергетической эффективности на территории Иркутской области на 2011-2015 годы и на период до 2020 года» | B89: 907 | C89: 7 | D89: 2 | E89: 5225400 | F89: 0 | G89: 325.2 | H89: 325.2 | I89: 1
A90: Выполнение функций казенными учреждениями | B90: 907 | C90: 7 | D90: 2 | E90: 5225400 | F90: 001 | G90: 325.2 | H90: 325.2 | I90: 1
A91: Выплата заработной платы с начислениями на нее педагогическим работникам муниципальных дошкольных образовательных учреждений и муниципальных учреждений дополнительного образования | B91: 907 | C91: 7 | D91: 2 | E91: 5890000 | F91: 0 | G91: 2276 | H91: 2276 | I91: 1
A92: Выполнение функций казенными учреждениями | B92: 907 | C92: 7 | D92: 2 | E92: 5890000 | F92: 001 | G92: 2276 | H92: 2276 | I92: 1
A93: Погашение кредиторской задолженности учреждений, находящихся в ведении органов местного самоуправления муниципальных образований Иркутской области, по единому социальному налогу, зачисляемому в федеральный бюджет, Фонд социального страхования Российской Федерации, Федеральный фонд обязательного медицинского страхования и территориальные фонды обязательного медицинского страхования | B93: 907 | C93: 7 | D93: 2 | E93: 5900000 | F93: 0 | G93: 877 | H93: 877 | I93: 1
A94: Выполнение функций казенными учреждениями | B94: 907 | C94: 7 | D94: 2 | E94: 5900000 | F94: 001 | G94: 877 | H94: 877 | I94: 1
A95: Целевые программы муниципальных образований | B95: 907 | C95: 7 | D95: 2 | E95: 7950000 | F95: 0 | G95: 13905.4 | H95: 13887.2 | I95: 0.998691156
A96: Мероприятия в сфере образования | B96: 907 | C96: 7 | D96: 2 | E96: 7950000 | F96: 022 | G96: 1640 | H96: 1640 | I96: 1
A97: Мероприятия по обеспечению пожарной безопасности | B97: 907 | C97: 7 | D97: 2 | E97: 7950000 | F97: 450 | G97: 700 | H97: 683 | I97: 0.9757142857
A98: Мероприятия по повышению энергетической эффективности | B98: 907 | C98: 7 | D98: 2 | E98: 7950000 | F98: 451 | G98: 600 | H98: 598.9 | I98: 0.9981666667
A99: Долгосрочная целевая программа Черемховского районного муниципального образования "Повышение эффективности бюджетных расходов Черемховского районного муниципального образования на 2012-2013 годы" | B99: 907 | C99: 7 | D99: 2 | E99: 7950200 | F99: 0 | G99: 10965.4 | H99: 10965.4 | I99: 1
A100: Выполнение функций казенными учреждениями | B100: 907 | C100: 7 | D100: 2 | E100: 7950200 | F100: 001 | G100: 10965.4 | H100: 10965.4 | I100: 1
A101: Молодежная политика и оздоровление детей | B101: 907 | C101: 7 | D101: 7 | E101: 0 | F101: 0 | G101: 2409 | H101: 2408.9 | I101: 0.999958489
A102: Мероприятия по проведению оздоровительной кампании детей | B102: 907 | C102: 7 | D102: 7 | E102: 4320000 | F102: 0 | G102: 24.1 | H102: 24.1 | I102: 1
A103: Оплата стоимости набора продуктов питания для детей в организованных органами местного самоуправления оздоровительных лагерях с дневным пребыванием детей за счет средств областного бюджета | B103: 907 | C103: 7 | D103: 7 | E103: 4320300 | F103: 0 | G103: 24.1 | H103: 24.1 | I103: 1
A104: Оплата стоимости набора продуктов питания для детей в организованных органами местного самоуправления оздоровительных лагерях с дневным пребыванием детей за счет средств местного бюджета | B104: 907 | C104: 7 | D104: 7 | E104: 4320302 | F104: 0 | G104: 24.1 | H104: 24.1 | I104: 1
A105: Выполнение функций казенными учреждениями | B105: 907 | C105: 7 | D105: 7 | E105: 4320302 | F105: 001 | G105: 24.1 | H105: 24.1 | I105: 1
A106: Региональные целевые программы | B106: 907 | C106: 7 | D106: 7 | E106: 5220000 | F106: 0 | G106: 2384.9 | H106: 2384.8 | I106: 0.9999580695
A107: Долгосрочная целевая программа Иркутской области "Организация и обеспечение отдыха и оздоровления детей в Иркутской области на 2012-2014гг." | B107: 907 | C107: 7 | D107: 7 | E107: 5226200 | F107: 0 | G107: 2384.9 | H107: 2384.8 | I107: 0.9999580695
A108: Выполнение функций казенными учреждениями | B108: 907 | C108: 7 | D108: 7 | E108: 5226200 | F108: 001 | G108: 2384.9 | H108: 2384.8 | I108: 0.9999580695
A109: Другие вопросы в области образования | B109: 907 | C109: 7 | D109: 9 | E109: 0 | F109: 0 | G109: 10055 | H109: 9937.8 | I109: 0.9883441074
A110: Руководство и управление в сфере установленных функций органов государственной власти субъектов Российской Федерации и органов местного самоуправления | B110: 907 | C110: 7 | D110: 9 | E110: 20000 | F110: 0 | G110: 3723.5 | H110: 3606.4 | I110: 0.9685510944
A111: Центральный аппарат | B111: 907 | C111: 7 | D111: 9 | E111: 20400 | F111: 0 | G111: 3723.5 | H111: 3606.4 | I111: 0.9685510944
A112: Выполнение функций органами местного самоуправления | B112: 907 | C112: 7 | D112: 9 | E112: 20400 | F112: 500 | G112: 3723.5 | H112: 3606.4 | I112: 0.9685510944
A113: Учебно-методические кабинеты, централизованные бухгалтерии, группы хозяйственного обслуживания, учебные фильмотеки, межшкольные учебно-производственные комбинаты, логопедические пункты | B113: 907 | C113: 7 | D113: 9 | E113: 4520000 | F113: 0 | G113: 6315.7 | H113: 6315.6 | I113: 0.9999841664
A114: Обеспечение деятельности подведомственных учреждений | B114: 907 | C114: 7 | D114: 9 | E114: 4529900 | F114: 0 | G114: 6315.7 | H114: 6315.6 | I114: 0.9999841664
A115: Субсидии некоммерческим организациям | B115: 907 | C115: 7 | D115: 9 | E115: 4529900 | F115: 019 | G115: 193.6 | H115: 193.6 | I115: 1
A116: Субсидии бюджетным учреждениям на финансовое обеспечение муниципального задания на оказание муниципальных услуг (выполнение работ) | B116: 907 | C116: 7 | D116: 9 | E116: 4529900 | F116: 611 | G116: 6011.8 | H116: 6011.7 | I116: 0.999983366
A117: Субсидии бюджетным учреждениям на иные цели | B117: 907 | C117: 7 | D117: 9 | E117: 4529900 | F117: 612 | G117: 110.3 | H117: 110.3 | I117: 1
A118: Погашение кредиторской задолженности учреждений, находящихся в ведении органов местного самоуправления муниципальных образований Иркутской области, по единому социальному налогу, зачисляемому в федеральный бюджет, Фонд социального страхования Российской Федерации, Федеральный фонд обязательного медицинского страхования и территориальные фонды обязательного медицинского страхования | B118: 907 | C118: 7 | D118: 9 | E118: 5900000 | F118: 0 | G118: 15.8 | H118: 15.8 | I118: 1
A119: Выполнение функций органами местного самоуправления | B119: 907 | C119: 7 | D119: 9 | E119: 5900000 | F119: 500 | G119: 15.8 | H119: 15.8 | I119: 1
A120: СОЦИАЛЬНАЯ ПОЛИТИКА | B120: 907 | C120: 10 | D120: 0 | E120: 0 | F120: 0 | G120: 4145.3 | H120: 3170.4 | I120: 0.7648179866
A121: Социальное обеспечение населения | B121: 907 | C121: 10 | D121: 3 | E121: 0 | F121: 0 | G121: 4145.3 | H121: 3170.4 | I121: 0.7648179866
A122: Руководство и управление в сфере установленных функций органов государственной власти субъектов Российской Федерации и органов местного самоуправления | B122: 907 | C122: 10 | D122: 3 | E122: 20000 | F122: 0 | G122: 4145.3 | H122: 3170.4 | I122: 0.7648179866
A123: Осуществление отдельных областных государственных полномочий по предоставлению мер социальной поддержки многодетным и малоимущим семьям | B123: 907 | C123: 10 | D123: 3 | E123: 24600 | F123: 0 | G123: 4145.3 | H123: 3170.4 | I123: 0.7648179866
A124: Социальные выплаты | B124: 907 | C124: 10 | D124: 3 | E124: 24600 | F124: 005 | G124: 4145.3 | H124: 3170.4 | I124: 0.7648179866
A125: Финансовое управление администрации ЧРМО | B125: 910 | C125: 0 | D125: 0 | E125: 0 | F125: 0 | G125: 33557.2 | H125: 30375.8 | I125: 0.9051947123
A126: ОБЩЕГОСУДАРСТВЕННЫЕ ВОПРОСЫ | B126: 910 | C126: 1 | D126: 0 | E126: 0 | F126: 0 | G126: 23298.1 | H126: 23179.1 | I126: 0.9948922874
A127: Обеспечение деятельности финансовых, налоговых и таможенных органов и органов финансового (финансово-бюджетного) надзора | B127: 910 | C127: 1 | D127: 6 | E127: 0 | F127: 0 | G127: 7895.3 | H127: 7834.4 | I127: 0.9922865502
A128: Руководство и управление в сфере установленных функций органов государственной власти субъектов Российской Федерации и органов местного самоуправления | B128: 910 | C128: 1 | D128: 6 | E128: 20000 | F128: 0 | G128: 7845.3 | H128: 7834.4 | I128: 0.9986106331
A129: Центральный аппарат | B129: 910 | C129: 1 | D129: 6 | E129: 20400 | F129: 0 | G129: 7845.3 | H129: 7834.4 | I129: 0.9986106331
A130: Выполнение функций органами местного самоуправления | B130: 910 | C130: 1 | D130: 6 | E130: 20400 | F130: 500 | G130: 7845.3 | H130: 7834.4 | I130: 0.9986106331
A131: Целевые программы муниципальных образований | B131: 910 | C131: 1 | D131: 6 | E131: 7950000 | F131: 0 | G131: 50 | H131: 0 | I131: 0
A132: Долгосрочная целевая программа Черемховского районного муниципального образования "Повышение эффективности бюджетных расходов Черемховского районного муниципального образования на 2012-2013 годы" | B132: 910 | C132: 1 | D132: 6 | E132: 7950200 | F132: 0 | G132: 50 | H132: 0 | I132: 0
A133: Выполнение функций органами местного самоуправления | B133: 910 | C133: 1 | D133: 6 | E133: 7950200 | F133: 500 | G133: 50 | H133: 0 | I133: 0
A134: Другие общегосударственные вопросы | B134: 910 | C134: 1 | D134: 13 | E134: 0 | F134: 0 | G134: 15402.8 | H134: 15344.7 | I134: 0.9962279586
A135: Руководство и управление в сфере установленных функций органов государственной власти субъектов Российской Федерации и органов местного самоуправления | B135: 910 | C135: 1 | D135: 13 | E135: 20000 | F135: 0 | G135: 13090.3 | H135: 13077.7 | I135: 0.9990374552
A136: Обеспечение деятельности подведомственных учреждений | B136: 910 | C136: 1 | D136: 13 | E136: 29900 | F136: 0 | G136: 13090.3 | H136: 13077.7 | I136: 0.9990374552
A137: Выполнение функций казенными учреждениями | B137: 910 | C137: 1 | D137: 13 | E137: 29900 | F137: 001 | G137: 13090.3 | H137: 13077.7 | I137: 0.9990374552
A138: Реализация государственных функций, связанных с общегосударственным управлением | B138: 910 | C138: 1 | D138: 13 | E138: 920000 | F138: 0 | G138: 44.9 | H138: 44.9 | I138: 1
A139: Выполнение других обязательств государства | B139: 910 | C139: 1 | D139: 13 | E139: 920300 | F139: 0 | G139: 44.9 | H139: 44.9 | I139: 1
A140: Выполнение функций органами местного самоуправления | B140: 910 | C140: 1 | D140: 13 | E140: 920300 | F140: 500 | G140: 44.9 | H140: 44.9 | I140: 1
A141: Погашение кредиторской задолженности учреждений, находящихся в ведении органов местного самоуправления муниципальных образований Иркутской области, по единому социальному налогу, зачисляемому в федеральный бюджет, Фонд социального страхования Российской Федерации, Федеральный фонд обязательного медицинского страхования и территориальные фонды обязательного медицинского страхования | B141: 910 | C141: 1 | D141: 13 | E141: 5900000 | F141: 0 | G141: 32.8 | H141: 32.8 | I141: 1
A142: Выполнение функций казенными учреждениями | B142: 910 | C142: 1 | D142: 13 | E142: 5900000 | F142: 001 | G142: 32.8 | H142: 32.8 | I142: 1
A143: Целевые программы муниципальных образований | B143: 910 | C143: 1 | D143: 13 | E143: 7950000 | F143: 0 | G143: 2234.8 | H143: 2189.3 | I143: 0.9796402363
A144: Долгосрочная целевая программа Черемховского районного муниципального образования "Повышение эффективности бюджетных расходов Черемховского районного муниципального образования на 2012-2013 годы" | B144: 910 | C144: 1 | D144: 13 | E144: 7950200 | F144: 0 | G144: 2234.8 | H144: 2189.3 | I144: 0.9796402363
A145: Выполнение функций казенными учреждениями | B145: 910 | C145: 1 | D145: 13 | E145: 7950200 | F145: 001 | G145: 2234.8 | H145: 2189.3 | I145: 0.9796402363
A146: ЖИЛИЩНО-КОММУНАЛЬНОЕ ХОЗЯЙСТВО | B146: 910 | C146: 5 | D146: 0 | E146: 0 | F146: 0 | G146: 24.1 | H146: 24.1 | I146: 1
A147: Коммунальное хозяйство | B147: 910 | C147: 5 | D147: 2 | E147: 0 | F147: 0 | G147: 24.1 | H147: 24.1 | I147: 1
A148: Региональные целевые программы | B148: 910 | C148: 5 | D148: 2 | E148: 5220000 | F148: 0 | G148: 24.1 | H148: 24.1 | I148: 1
A149: Долгосрочная целевая программа «Энергосбережение и повышение энергетической эффективности на территории Иркутской области на 2011-2015 годы и на период до 2020 года» | B149: 910 | C149: 5 | D149: 2 | E149: 5225400 | F149: 0 | G149: 24.1 | H149: 24.1 | I149: 1
A150: Иные межбюджетные трансферты | B150: 910 | C150: 5 | D150: 2 | E150: 5225400 | F150: 017 | G150: 24.1 | H150: 24.1 | I150: 1
A151: МЕЖБЮДЖЕТНЫЕ ТРАНСФЕРТЫ ОБЩЕГО ХАРАКТЕРА БЮДЖЕТАМ СУБЪЕКТОВ РОССИЙСКОЙ ФЕДЕРАЦИИ И МУНИЦИПАЛЬНЫХ ОБРАЗОВАНИЙ | B151: 910 | C151: 14 | D151: 0 | E151: 0 | F151: 0 | G151: 10235 | H151: 7172.6 | I151: 0.7007914021
A152: Дотации на выравнивание бюджетной обеспеченности субъектов Российской Федерации и муниципальных образований | B152: 910 | C152: 14 | D152: 1 | E152: 0 | F152: 0 | G152: 3500 | H152: 529 | I152: 0.1511428571
A153: Выравнивание бюджетной обеспечености | B153: 910 | C153: 14 | D153: 1 | E153: 5160000 | F153: 0 | G153: 3500 | H153: 529 | I153: 0.1511428571
A154: Выравнивание бюджетной обеспеченности | B154: 910 | C154: 14 | D154: 1 | E154: 5160100 | F154: 0 | G154: 3500 | H154: 529 | I154: 0.1511428571
A155: Выравнивание бюджетной обеспеченности поселений из районного фонда финансовой поддержки | B155: 910 | C155: 14 | D155: 1 | E155: 5160130 | F155: 0 | G155: 3500 | H155: 529 | I155: 0.1511428571
A156: Фонд финансовой поддержки | B156: 910 | C156: 14 | D156: 1 | E156: 5160130 | F156: 008 | G156: 3500 | H156: 529 | I156: 0.1511428571
A157: Прочие межбюджетные трансферты общего характера бюджетам субъектов Российской Федерации и муниципальных образований | B157: 910 | C157: 14 | D157: 3 | E157: 0 | F157: 0 | G157: 6735 | H157: 6643.6 | I157: 0.9864291017
A158: Межбюджетные трансферты | B158: 910 | C158: 14 | D158: 3 | E158: 5210000 | F158: 0 | G158: 92 | H158: 0.6 | I158: 0.00652173913
A159: Межбюджетные трансферты бюджетам муниципальных районов из бюджетов поселений и межбюджетные трансферты бюджетам поселений из бюджетов муниципальных районов на осуществление части полномочий по решению вопросов местного значения в соответствии с заключенными соглашениями | B159: 910 | C159: 14 | D159: 3 | E159: 5210600 | F159: 0 | G159: 92 | H159: 0.6 | I159: 0.00652173913
A160: Иные межбюджетные трансферты | B160: 910 | C160: 14 | D160: 3 | E160: 5210600 | F160: 017 | G160: 92 | H160: 0.6 | I160: 0.00652173913
A161: Целевые программы муниципальных образований | B161: 910 | C161: 14 | D161: 3 | E161: 7950000 | F161: 0 | G161: 6643 | H161: 6643 | I161: 1
A162: Долгосрочная целевая программа Черемховского районного муниципального образования "Повышение эффективности бюджетных расходов Черемховского районного муниципального образования на 2012-2013 годы" | B162: 910 | C162: 14 | D162: 3 | E162: 7950200 | F162: 0 | G162: 6643 | H162: 6643 | I162: 1
A163: Иные межбюджетные трансферты | B163: 910 | C163: 14 | D163: 3 | E163: 7950200 | F163: 017 | G163: 6643 | H163: 6643 | I163: 1
A164: Комитет по управлению муниципальным имуществом ЧРМО | B164: 913 | C164: 0 | D164: 0 | E164: 0 | F164: 0 | G164: 30856.8 | H164: 26654.4 | I164: 0.8638095979
A165: ОБЩЕГОСУДАРСТВЕННЫЕ ВОПРОСЫ | B165: 913 | C165: 1 | D165: 0 | E165: 0 | F165: 0 | G165: 16688.3 | H165: 15005.1 | I165: 0.8991389177
A166: Другие общегосударственные вопросы | B166: 913 | C166: 1 | D166: 13 | E166: 0 | F166: 0 | G166: 16688.3 | H166: 15005.1 | I166: 0.8991389177
A167: Руководство и управление в сфере установленных функций органов государственной власти субъектов Российской Федерации и органов местного самоуправления | B167: 913 | C167: 1 | D167: 13 | E167: 20000 | F167: 0 | G167: 3289.3 | H167: 3254.9 | I167: 0.9895418478
A168: Центральный аппарат | B168: 913 | C168: 1 | D168: 13 | E168: 20400 | F168: 0 | G168: 3289.3 | H168: 3254.9 | I168: 0.9895418478
A169: Выполнение функций органами местного самоуправления | B169: 913 | C169: 1 | D169: 13 | E169: 20400 | F169: 500 | G169: 3289.3 | H169: 3254.9 | I169: 0.9895418478
A170: Реализация государственных функций, связанных с общегосударственным управлением | B170: 913 | C170: 1 | D170: 13 | E170: 920000 | F170: 0 | G170: 2849 | H170: 2837.3 | I170: 0.9958932959
A171: Выполнение других обязательств государства | B171: 913 | C171: 1 | D171: 13 | E171: 920300 | F171: 0 | G171: 2849 | H171: 2837.3 | I171: 0.9958932959
A172: Выполнение функций органами местного самоуправления | B172: 913 | C172: 1 | D172: 13 | E172: 920300 | F172: 500 | G172: 2849 | H172: 2837.3 | I172: 0.9958932959
A173: Учреждения по обеспечению хозяйственного обслуживания | B173: 913 | C173: 1 | D173: 13 | E173: 930000 | F173: 0 | G173: 7889.4 | H173: 7889.4 | I173: 1
A174: Обеспечение деятельности подведомственных учреждений | B174: 913 | C174: 1 | D174: 13 | E174: 939900 | F174: 0 | G174: 7889.4 | H174: 7889.4 | I174: 1
A175: Субсидии некоммерческим организациям | B175: 913 | C175: 1 | D175: 13 | E175: 939900 | F175: 019 | G175: 407.8 | H175: 407.8 | I175: 1
A176: Субсидии бюджетным учреждениям на финансовое обеспечение муниципального задания на оказание муниципальных услуг (выполнение работ) | B176: 913 | C176: 1 | D176: 13 | E176: 939900 | F176: 611 | G176: 7481.2 | H176: 7481.2 | I176: 1
A177: Субсидии бюджетным учреждениям на иные цели | B177: 913 | C177: 1 | D177: 13 | E177: 939900 | F177: 612 | G177: 0.4 | H177: 0.4 | I177: 1
A178: Погашение кредиторской задолженности учреждений, находящихся в ведении органов местного самоуправления муниципальных образований Иркутской области, по единому социальному налогу, зачисляемому в федеральный бюджет, Фонд социального страхования Российской Федерации, Федеральный фонд обязательного медицинского страхования и территориальные фонды обязательного медицинского страхования | B178: 913 | C178: 1 | D178: 13 | E178: 5900000 | F178: 0 | G178: 0.6 | H178: 0.6 | I178: 1
A179: Выполнение функций органами местного самоуправления | B179: 913 | C179: 1 | D179: 13 | E179: 5900000 | F179: 500 | G179: 0.6 | H179: 0.6 | I179: 1
A180: Целевые программы муниципальных образований | B180: 913 | C180: 1 | D180: 13 | E180: 7950000 | F180: 0 | G180: 2660 | H180: 1022.9 | I180: 0.3845488722
A181: Выполнение функций органами местного самоуправления | B181: 913 | C181: 1 | D181: 13 | E181: 7950000 | F181: 500 | G181: 2660 | H181: 1022.9 | I181: 0.3845488722
A182: НАЦИОНАЛЬНАЯ ЭКОНОМИКА | B182: 913 | C182: 4 | D182: 0 | E182: 0 | F182: 0 | G182: 1440 | H182: 999 | I182: 0.69375
A183: Другие вопросы в области национальной экономики | B183: 913 | C183: 4 | D183: 12 | E183: 0 | F183: 0 | G183: 1440 | H183: 999 | I183: 0.69375
A184: Целевые программы муниципальных образований | B184: 913 | C184: 4 | D184: 12 | E184: 7950000 | F184: 0 | G184: 1440 | H184: 999 | I184: 0.69375
A185: Выполнение функций органами местного самоуправления | B185: 913 | C185: 4 | D185: 12 | E185: 7950000 | F185: 500 | G185: 1440 | H185: 999 | I185: 0.69375
A186: ЖИЛИЩНО-КОММУНАЛЬНОЕ ХОЗЯЙСТВО | B186: 913 | C186: 5 | D186: 0 | E186: 0 | F186: 0 | G186: 5040.8 | H186: 3134.2 | I186: 0.6217663863
A187: Жилищное хозяйство | B187: 913 | C187: 5 | D187: 1 | E187: 0 | F187: 0 | G187: 273.9 | H187: 273.9 | I187: 1
A188: Поддержка жилищного хозяйства | B188: 913 | C188: 5 | D188: 1 | E188: 3500000 | F188: 0 | G188: 273.9 | H188: 273.9 | I188: 1
A189: Капитальный ремонт государственного жилищного фонда субъектов Российской Федерации и муниципального жилищного фонда | B189: 913 | C189: 5 | D189: 1 | E189: 3500200 | F189: 0 | G189: 273.9 | H189: 273.9 | I189: 1
A190: Субсидии юридическим лицам | B190: 913 | C190: 5 | D190: 1 | E190: 3500200 | F190: 006 | G190: 174.9 | H190: 174.9 | I190: 1
A191: Выполнение функций органами местного самоуправления | B191: 913 | C191: 5 | D191: 1 | E191: 3500200 | F191: 500 | G191: 99 | H191: 99 | I191: 1
A192: Коммунальное хозяйство | B192: 913 | C192: 5 | D192: 2 | E192: 0 | F192: 0 | G192: 3806.8 | H192: 1900.2 | I192: 0.499159399
A193: Поддержка коммунального хозяйства | B193: 913 | C193: 5 | D193: 2 | E193: 3510000 | F193: 0 | G193: 3806.8 | H193: 1900.2 | I193: 0.499159399
A194: Мероприятия в области коммунального хозяйства | B194: 913 | C194: 5 | D194: 2 | E194: 3510500 | F194: 0 | G194: 3806.8 | H194: 1900.2 | I194: 0.499159399
A195: Выполнение функций органами местного самоуправления | B195: 913 | C195: 5 | D195: 2 | E195: 3510500 | F195: 500 | G195: 3806.8 | H195: 1900.2 | I195: 0.499159399
A196: Другие вопросы в области жилищно-коммунального хозяйства | B196: 913 | C196: 5 | D196: 5 | E196: 0 | F196: 0 | G196: 960.1 | H196: 960.1 | I196: 1
A197: Руководство и управление в сфере установленных функций органов государственной власти субъектов Российской Федерации и органов местного самоуправления | B197: 913 | C197: 5 | D197: 5 | E197: 20000 | F197: 0 | G197: 960.1 | H197: 960.1 | I197: 1
A198: Обеспечение деятельности подведомственных учреждений | B198: 913 | C198: 5 | D198: 5 | E198: 29900 | F198: 0 | G198: 960.1 | H198: 960.1 | I198: 1
A199: Субсидии некоммерческим организациям | B199: 913 | C199: 5 | D199: 5 | E199: 29900 | F199: 019 | G199: 48.4 | H199: 48.4 | I199: 1
A200: Субсидии бюджетным учреждениям на финансовое обеспечение муниципального задания на оказание муниципальных услуг (выполнение работ) | B200: 913 | C200: 5 | D200: 5 | E200: 29900 | F200: 611 | G200: 911.6 | H200: 911.6 | I200: 1
A201: Субсидии бюджетным учреждениям на иные цели | B201: 913 | C201: 5 | D201: 5 | E201: 29900 | F201: 612 | G201: 0.1 | H201: 0.1 | I201: 1
A202: СОЦИАЛЬНАЯ ПОЛИТИКА | B202: 913 | C202: 10 | D202: 0 | E202: 0 | F202: 0 | G202: 5082.7 | H202: 4911.2 | I202: 0.9662580912
A203: Охрана семьи и детства | B203: 913 | C203: 10 | D203: 4 | E203: 0 | F203: 0 | G203: 5082.7 | H203: 4911.2 | I203: 0.9662580912
A204: Руководство и управление в сфере установленных функций органов государственной власти субъектов Российской Федерации и органов местного самоуправления | B204: 913 | C204: 10 | D204: 4 | E204: 20000 | F204: 0 | G204: 3012.4 | H204: 2840.9 | I204: 0.9430686496
A205: Осуществление областных государственных полномочий по обеспечению детей-сирот и детей, оставшихся без попечения родителей, лиц из числа детей-сирот и детей, оставшихся без попечения родителей, жилыми помещениями по договорам социального найма в Иркутской области | B205: 913 | C205: 10 | D205: 4 | E205: 24800 | F205: 0 | G205: 3012.4 | H205: 2840.9 | I205: 0.9430686496
A206: Содержание и обеспечение деятельности муниципальных служащих, осуществляющих областные государственные полномочия по обеспечению детей-сирот и детей, оставшихся без попечения родителей, лиц из числа детей-сирот и детей, оставшихся без попечения родителей, жилыми помещениями по договорам социального найма в Иркутской области | B206: 913 | C206: 10 | D206: 4 | E206: 24801 | F206: 0 | G206: 22.7 | H206: 22.7 | I206: 1
A207: Выполнение функций органами местного самоуправления | B207: 913 | C207: 10 | D207: 4 | E207: 24801 | F207: 500 | G207: 22.7 | H207: 22.7 | I207: 1
... 297 more rows

Sheet прил 6
A7: Отчет по источникам финансирования дефицита бюджета по кодам классификации источников финансирования дефицитов бюджетов за 2012 год
B9: Код | D9: План, тыс.руб. | E9: Исполнено, тыс.руб. | F9: % исполнения
B10: главного администратора источников финансирования дефицитов бюджета; группы, подгруппы, статьи и вида источников финансирования дефицитов бюджета; операций сектора государственного управления | C10: операций сектора государственного управления
A15: Источники внутреннего финансирования дефицита бюджета | B15: 000 01 00 00 00 00 0000 000 | C15: 000 | D15: =D16+D27 -> 20217.54862 | E15: =E16+E27 -> 525.21183 | F15: =E15/D15 -> 0.02597801741
A16: Источники внутреннего финансирования дефицита бюджета | B16: 000 01 00 00 00 00 0000 000 | C16: 000 | D16: =D17+D22 -> 3828.65525 | E16: =E17+E22 -> -421.96062 | F16: =E16/D16 -> -0.1102111819
A17: Кредиты кредитных организаций в валюте Российской Федерации | B17: 910 01 02 00 00 00 0000 000 | C17: 000 | D17: =D18+D20 -> 4250.61587 | E17: =E18+E20 -> 0 | F17: 0
A18: Получение кредитов от кредитных организаций в валюте Российской Федерации | B18: 910 01 02 00 00 00 0000 700 | C18: 700 | D18: =D19 -> 4250.61587 | E18: =E19 -> 0 | F18: 0
A19: Кредиты, полученные от кредитных организаций бюджетами муниципальных районов в валюте Российской Федерации | B19: 910 01 02 00 00 05 0000 710 | C19: 710 | D19: 4250.61587 | F19: 0
A20: Погашение кредитов, предоставленных кредитными организациями в валюте Российской Федерации | B20: 910 01 02 00 00 00 0000 800 | C20: 800 | D20: =D21 -> 0 | E20: =E21 -> 0
A21: Погашение бюджетами муниципальных районов кредитов от кредитных организаций в валюте Российской Федерации | B21: 910 01 02 00 00 05 0000 810 | C21: 810
A22: Бюджетные кредиты от других бюджетов бюджетной системы Российской Федерации | B22: 910 01 03 00 00 00 0000 000 | C22: 000 | D22: =D23+D25 -> -421.96062 | E22: =E23+E25 -> -421.96062 | F22: 1
A23: Получение бюджетных кредитов от других бюджетов бюджетной системы Российской Федерации в валюте Российской Федерации | B23: 910 01 03 00 00 00 0000 700 | C23: 700 | D23: =D24 -> 0 | E23: =E24 -> 0
A24: Получение кредитов от других бюджетов бюджетной системы Российской Федерации бюджетами муниципальных районов в валюте Российской Федерации | B24: 910 01 03 00 00 05 0000 710 | C24: 710
A25: Погашение бюджетных кредитов, полученных от других бюджетов бюджетной системы Российской Федерации | B25: 910 01 03 00 00 00 0000 800 | C25: 800 | D25: =D26 -> -421.96062 | E25: =E26 -> -421.96062 | F25: 1
A26: Погашение бюджетами муниципальных районов кредитов от других бюджетов бюджетной системы Российской Федерации в валюте Российской Федерации | B26: 910 01 03 00 00 05 0000 810 | C26: 810 | D26: -421.96062 | E26: -421.96062 | F26: 1
A27: Изменение остатков средств на счетах по учету средств бюджетов | B27: 000 01 05 00 00 00 0000 000 | C27: 000 | D27: =D28+D34 -> 16388.89337 | E27: =E28+E34 -> 947.17245 | F27: 0.05779355742
A28: Увеличение остатков средств бюджетов | B28: 000 0105 00 00 00 0000 500 | C28: 500 | D28: =D29 -> -663818.8113 | E28: -667001.715 | F28: 1.004794838
A29: Увеличение прочих остатков средств бюджетов | B29: 000 01 05 02 00 00 0000 500 | C29: 500 | D29: -663818.8113 | E29: -667001.715 | F29: 1.004794838
A30: Увеличение прочих остатков денежных средств бюджетов | B30: 000 01 05 02 01 00 0000 510 | C30: 510 | D30: -663818.8113 | E30: -667001.715 | F30: 1.004794838
A31: Увеличение прочих остатков денежных средств бюджетов муниципальных районов | B31: 000 01 05 02 01 05 0000 510 | C31: 510 | D31: =D33 -> -663818.8113 | E31: =E33 -> -667001.715 | F31: 1.004794838
A33: Уменьшение остатков средств бюджетов | B33: 000 01 05 00 00 00 0000 510 | C33: 600 | D33: -663818.8113 | E33: -667001.715 | F33: 1.004794838
A34: Уменьшение прочих остатков средств бюджетов | B34: 000 01 05 02 00 00 0000 600 | C34: 600 | D34: =D35 -> 680207.7046 | E34: =E35 -> 667948.8874 | F34: 0.9819778325
A35: Уменьшение прочих остатков денежных средств бюджетов | B35: 000 01 05 02 01 00 0000 610 | C35: 610 | D35: =D36 -> 680207.7046 | E35: =E36 -> 667948.8874 | F35: 0.9819778325
A36: Уменьшение прочих остатков денежных средств бюджетов муниципальных районов | B36: 000 01 05 02 01 05 0000 610 | C36: 610 | D36: 680207.7046 | E36: 667948.8874 | F36: 0.9819778325
A39: Начальник финансового управления | E39: Ю.Н.Гайдук

Sheet прил 7
A7: Отчет по источникам внутреннего финансирования дефицита бюджета за 2012 год по кодам групп, подгрупп, статей, видов источников финансирования дефицитов бюджетов, классификации операций сектора государственного управления, относящихся к источникам финансирования дефицитов бюджетов
B9: Код | D9: План, тыс.руб. | E9: Исполнено, тыс.руб. | F9: % исполнения
B10: группы, подгруппы, статьи и вида источников финансирования дефицитов бюджета | C10: операций сектора государственного управления
A15: Источники внутреннего финансирования дефицита бюджета | B15: 01 00 00 00 00 0000 | C15: 000 | D15: =D16+D27 -> 20217.54862 | E15: =E16+E27 -> 525.21183 | F15: =E15/D15 -> 0.02597801741
A16: Источники внутреннего финансирования дефицита бюджета | B16: 01 00 00 00 00 0000 | C16: 000 | D16: =D17+D22 -> 3828.65525 | E16: =E17+E22 -> -421.96062 | F16: =E16/D16 -> -0.1102111819
A17: Кредиты кредитных организаций в валюте Российской Федерации | B17: 01 02 00 00 00 0000 | C17: 000 | D17: =D18+D20 -> 4250.61587 | E17: =E18+E20 -> 0 | F17: =E17/D17 -> 0
A18: Получение кредитов от кредитных организаций в валюте Российской Федерации | B18: 01 02 00 00 00 0000 | C18: 700 | D18: =D19 -> 4250.61587 | E18: =E19 -> 0 | F18: 0
A19: Кредиты, полученные от кредитных организаций бюджетами муниципальных районов в валюте Российской Федерации | B19: 01 02 00 00 05 0000 | C19: 710 | D19: 4250.61587 | F19: 0
A20: Погашение кредитов, предоставленных кредитными организациями в валюте Российской Федерации | B20: 01 02 00 00 00 0000 | C20: 800 | D20: =D21 -> 0 | E20: =E21 -> 0
A21: Погашение бюджетами муниципальных районов кредитов от кредитных организаций в валюте Российской Федерации | B21: 01 02 00 00 05 0000 | C21: 810
A22: Бюджетные кредиты от других бюджетов бюджетной системы Российской Федерации | B22: 01 03 00 00 00 0000 | C22: 000 | D22: =D23+D25 -> -421.96062 | E22: =E23+E25 -> -421.96062 | F22: 1
A23: Получение бюджетных кредитов от других бюджетов бюджетной системы Российской Федерации в валюте Российской Федерации | B23: 01 03 00 00 00 0000 | C23: 700 | D23: =D24 -> 0 | E23: =E24 -> 0
A24: Получение кредитов от других бюджетов бюджетной системы Российской Федерации бюджетами муниципальных районов в валюте Российской Федерации | B24: 01 03 00 00 05 0000 | C24: 710
A25: Погашение бюджетных кредитов, полученных от других бюджетов бюджетной системы Российской Федерации | B25: 01 03 00 00 00 0000 | C25: 800 | D25: =D26 -> -421.96062 | E25: =E26 -> -421.96062 | F25: =E25/D25 -> 1
A26: Погашение бюджетами муниципальных районов кредитов от других бюджетов бюджетной системы Российской Федерации в валюте Российской Федерации | B26: 01 03 00 00 05 0000 | C26: 810 | D26: -421.96062 | E26: -421.96062 | F26: 1
A27: Изменение остатков средств на счетах по учету средств бюджетов | B27: 01 05 00 00 00 0000 | C27: 000 | D27: =D28+D33 -> 16388.89337 | E27: =E28+E33 -> 947.17245 | F27: 0.05779355742
A28: Увеличение остатков средств бюджетов | B28: 0105 00 00 00 0000 | C28: 500 | D28: =D29 -> -663818.8113 | E28: -667001.715 | F28: 1.004794838
A29: Увеличение прочих остатков средств бюджетов | B29: 01 05 02 00 00 0000 | C29: 500 | D29: -663818.8113 | E29: -667001.715 | F29: 1.004794838
A30: Увеличение прочих остатков денежных средств бюджетов | B30: 01 05 02 01 00 0000 | C30: 510 | D30: -663818.8113 | E30: -667001.715 | F30: 1.004794838
A31: Увеличение прочих остатков денежных средств бюджетов муниципальных районов | B31: 01 05 02 01 05 0000 | C31: 510 | D31: -663818.8113 | E31: -667001.715 | F31: 1.004794838
A33: Уменьшение остатков средств бюджетов | B33: 01 05 00 00 00 0000 | C33: 600 | D33: =D34 -> 680207.7046 | E33: 667948.8874 | F33: 0.9819778325
A34: Уменьшение прочих остатков средств бюджетов | B34: 01 05 02 00 00 0000 | C34: 600 | D34: 680207.7046 | E34: 667948.8874 | F34: 0.9819778325
A35: Уменьшение прочих остатков денежных средств бюджетов | B35: 01 05 02 01 00 0000 | C35: 610 | D35: 680207.7046 | E35: 667948.8874 | F35: 0.9819778325
A36: Уменьшение прочих остатков денежных средств бюджетов муниципальных районов | B36: 01 05 02 01 05 0000 | C36: 610 | D36: 680207.7046 | E36: 667948.8874 | F36: 0.9819778325
A39: Начальник финансового управления | E39: Ю.Н.Гайдук

Sheet прил8
A7: Отчет о распределении дотации на выравнивание бюджетной обеспеченности поселений за счет средств фонда финансовой поддержки поселений Черемховского районного муниципального образования за 2012 год
E9: (тыс. рублей)
A10: №п\п | B10: Наименование городских и сельских поселений | C10: План | D10: Исполнено | E10: % исполнения
A11: 1. | B11: Булайское | C11: 507 | D11: 102 | E11: =D11/C11 -> 0.201183432
A12: 2. | B12: Голуметское | C12: 280 | D12: 83 | E12: =D12/C12 -> 0.2964285714
A13: 3. | B13: Каменно-Ангарское | C13: 31 | D13: 31 | E13: 1
A14: 4. | B14: Новогромовское | C14: 87 | D14: 0 | E14: 0
A15: 5. | B15: Новостроевское | C15: 522 | D15: 0 | E15: 0
A16: 6. | B16: Саянское | C16: 910 | D16: 28 | E16: 0.03076923077
A17: 7. | B17: Тальниковское | C17: 622 | D17: 162 | E17: 0.2604501608
A18: 8. | B18: Тунгусское | C18: 388 | D18: 113 | E18: 0.2912371134
A19: 9. | B19: Узколугское | C19: 153 | D19: 10 | E19: 0.06535947712
B20: Итого: | C20: =SUM(C11:C19) -> 3500 | D20: =SUM(D11:D19) -> 529 | E20: 0.1511428571
A24: Начальник финансового управления | E24: Ю.Н. Гайдук

Sheet прил9
A8: Отчет об исполнении иных межбюджетных трансфертов, предоставляемых бюджетам поселений за 2012 год
E10: (тыс. руб.)
A11: № | B11: Наименование поселений | C11: Межбюджетные трансферты бюджетам поселений из бюджетов муниципальных районов на осуществление части полномочий по решению вопросов местного значения в соответствии с заключенными соглашениями (спутниковая связь)
C12: План год | D12: исполнено | E12: % исполнения
A13: 1 | B13: Новостроевское | C13: 23 | D13: 0.6 | E13: =D13/C13 -> 0.02608695652
A14: 2 | B14: Онотское | C14: 23 | D14: 0 | E14: =D14/C14 -> 0
A15: 3 | B15: Тальниковское | C15: 23 | D15: 0 | E15: =D15/C15 -> 0
A16: 4 | B16: Тунгусское | C16: 23 | D16: 0 | E16: =D16/C16 -> 0
B17: Итого: | C17: =SUM(C13:C16) -> 92 | D17: =SUM(D13:D16) -> 0.6 | E17: =D17/C17 -> 0.00652173913
A20: Начальник финансового управления | D20: Ю.Н. Гайдук

Sheet прил10
A7: Отчет по исполнению целевых программ, запланированных в бюджете Черемховского районного муниципального образования на 2012 год
I8: (тыс. рублей)
A9: № п/п | B9: Наименование программы | C9: Исполнители | D9: Бюджетная классификация | H9: сумма
D10: ГРБС | E10: РзПр | F10: ЦСР | G10: ВР | H10: план на год | I10: исполнено | J10: % исполнения
A11: 1 | B11: 2 | C11: 3 | D11: 4 | E11: 5 | F11: 6 | G11: 7 | H11: 8 | I11: 9 | J11: 10
A12: 1 | B12: Вакцинопрофилактика на 2012-2014 гг. | C12: МБУЗ Михайловская ЦРБ | D12: 903 | E12: 0902 | F12: 7950000 | G12: 079 | H12: 50 | I12: 50 | J12: =I12/H12 -> 1
A13: 2 | B13: Неотложные меры по борьбе с туберкулезом на 2012-2014 гг. | C13: Администрация ЧРМО (в рамках финансового обеспечения муниципального задания МБУЗ Михайловская ЦРБ) | D13: 917 | E13: 0901 | F13: 7950300 | G13: 611 | H13: 50 | I13: 50 | J13: =I13/H13 -> 1
A14: 3 | B14: Сахарный диабет на 2012-2014 гг. | D14: 917 | E14: 0901 | F14: 7950400 | G14: 611 | H14: 150 | I14: 150 | J14: 1
A15: 4 | B15: Анти-ВИЧ/СПИД на 2012-2014 гг. | D15: 917 | E15: 0901 | F15: 7950500 | G15: 611 | H15: 50 | I15: 50 | J15: 1
A16: 5 | B16: Привлечение врачебных кадров в здравоохранение района на 2012-2014 гг. | D16: 917 | E16: 0909 | F16: 7950900 | G16: 612 | H16: 600 | I16: 600 | J16: 1
A17: 6 | B17: Развитие культуры в Черемховском районном муниципальном образовании на период 2012-2016 гг. | C17: РМУК Черемховская межпоселенческая центральная библиотека | D17: 921 | E17: 0801 | F17: 7950000 | G17: 023 | H17: 404.3 | I17: 402.7 | J17: 0.9960425427
C18: МОУ ДОД "ДШИ поселка Михайловка" | D18: 922 | E18: 0702 | F18: 7950000 | G18: 022 | H18: 241.6 | I18: 235.1 | J18: 0.9730960265
C19: МУК "Районный историко-краеведческий музей" | D19: 920 | E19: 0801 | F19: 7950000 | G19: 023 | H19: 39.2 | I19: 29.2 | J19: 0.7448979592
C20: МУК "Межпоселенческий культурный центр АЧРМО" | D20: 919 | E20: 0801 | F20: 7950000 | G20: 023 | H20: 554.8 | I20: 525.7 | J20: 0.9475486662
A21: 7 | B21: Ветхие школы Черемховского района на 2011-2013 гг. | C21: Отдел образования АЧРМО | D21: 907 | E21: 0702 | F21: 7950000 | G21: 022 | H21: 490 | I21: 490 | J21: 1
A22: 8 | B22: Совершенствование дошкольного образования Черемховского района на 2011-2014 гг. | D22: 907 | E22: 0701 | F22: 7950000 | G22: 022 | H22: 350 | I22: 350 | J22: 1
A23: 9 | B23: Совершенствование организации питания в образовательных учреждениях Черемховского района на 2011-2013 гг. | D23: 907 | E23: 0702 | F23: 7950000 | G23: 022 | H23: 1150 | I23: 1150 | J23: 1
A24: 10 | B24: Развитие дошкольного образования на 2011-2014 гг. | D24: 907 | E24: 0701 | F24: 7950000 | G24: 022 | H24: 637 | I24: 637 | J24: =I24/H24 -> 1
A25: 11 | B25: "Безопасность образовательных учреждений" 2010-2014гг. | D25: 907 | E25: 0701 | F25: 7950000 | G25: 450 | H25: 1000 | I25: 1000 | J25: =I25/H25 -> 1
E26: 0702 | F26: 7950000 | G26: 450 | H26: 700 | I26: 683 | J26: =I26/H26 -> 0.9757142857
A27: 12 | B27: Инвентаризация муниципальных объектов недвижимости Черемховского районного муниципального образования на 2012-2014 годы | C27: КУМИ | D27: 913 | E27: 0113 | F27: 7950000 | G27: 500 | H27: 2660 | I27: 1022.9 | J27: 0.3845488722
E28: 0412 | F28: 7950000 | G28: 500 | H28: 1440 | I28: 998.9 | J28: 0.6936805556
A29: 13 | B29: Молодым семьям доступное жилье на 2005-2019гг. | C29: Администрация ЧРМО | D29: 917 | E29: 1003 | F29: 7950000 | G29: 500 | H29: 124.5 | I29: 124.5 | J29: 1
A30: 14 | B30: Комплексные меры профилактики злоупотребления наркотическими средствами, психотропними веществами на 2011-2013 гг. | D30: 917 | E30: 0707 | F30: 7950000 | G30: 500 | H30: 10 | I30: 10 | J30: 1
A31: 15 | B31: Молодежная политика в Черемховском районном муниципальном образовании на 2010-2012 | D31: 917 | E31: 0707 | F31: 7950000 | G31: 500 | H31: 90 | I31: 90 | J31: 1
A32: 16 | B32: Развитие физической культуры, спорта и туризма в Черемховском районном муниципальном образовании на 2011-2013гг. | D32: 917 | E32: 1101 | F32: 7950000 | G32: 500 | H32: 299.1 | I32: 299.1 | J32: 1
A33: 17 | B33: Поддержка и развитие малого и среднего предпринимательства в Черемховском районе на 2011-2012 гг. | D33: 917 | E33: 0412 | F33: 7950000 | G33: 500 | H33: 116 | I33: 116 | J33: 1
A34: 18 | B34: Поддержка, проводимых мероприятий, посвященных Дням славы, памятным датам России и работе с ветеранами в Черемховском районе на 2012 год | D34: 917 | E34: 1006 | F34: 7950000 | G34: 500 | H34: 100 | I34: 96 | J34: 0.96
A35: 19 | B35: Улучшение условий и охраны труда в Черемховском районе на 2011-2013 гг | D35: 917 | E35: 0113 | F35: 7950000 | G35: 500 | H35: 15 | I35: 15 | J35: 1
A36: 20 | B36: Комплексная программа профилактики правонарушений Черемховского районного муниципального образования на 2009-2012 гг. | D36: 917 | E36: 0113 | F36: 7950000 | G36: 500 | H36: 40 | I36: 39.7 | J36: 0.9925
A37: 21 | B37: Повышение безопасности дорожного движения в Черемховском районе в 2007-2012 гг. | C37: Управление ЖКХ | D37: 918 | E37: 0113 | F37: 7950000 | G37: 500 | H37: 80 | I37: 80 | J37: 1
A38: 22 | B38: Программа повышения энергетической эффективности Черемховского районного муниципального образования на 2010-2015 гг | C38: Отдел образования АЧРМО | D38: 907 | E38: 0702 | F38: 7950000 | G38: 451 | H38: 600 | I38: 598.9 | J38: 0.9981666667
C39: РМУК Черемховская межпоселенческая центральная библиотека | D39: 921 | E39: 0801 | F39: 7950000 | G39: 451 | H39: 100 | I39: 69.9 | J39: 0.699
A40: 23 | B40: Повышение эффективности бюджетных расходов Черемховского районного муниципального образования на 2012-2013 годы | C40: Финансовое управление АЧРМО | D40: 910 | E40: 0106 | F40: 7950200 | G40: 500 | H40: 50 | I40: 0 | J40: 0
D41: 910 | E41: 0113 | F41: 7950200 | G41: 001 | H41: 2234.8 | I41: 2189.3 | J41: =I41/H41 -> 0.9796402363
C42: Администрация ЧРМО | D42: 917 | E42: 0104 | F42: 7950200 | G42: 500 | H42: 50 | I42: 24.6 | J42: 0.492
C43: Отдел образования АЧРМО | D43: 907 | E43: 0701 | F43: 7950200 | G43: 001 | H43: 7099.3 | I43: 7092.8 | J43: 0.9990844168
E44: 0702 | F44: 7950200 | G44: 001 | H44: 10965.4 | I44: 10965.4 | J44: 1
C45: Администрация ЧРМО (в рамках финансового обеспечения муниципального задания МБУЗ Михайловская ЦРБ) | D45: 917 | E45: 0901 | F45: 7950200 | G45: 611 | H45: 2658.9 | I45: 2658.9 | J45: 1
E46: 0902 | F46: 7950200 | G46: 611 | H46: 948.1 | I46: 948.1 | J46: 1
E47: 0903 | F47: 7950200 | G47: 611 | H47: 477.2 | I47: 477.2 | J47: 1
E48: 0904 | F48: 7950200 | G48: 611 | H48: 318 | I48: 301 | J48: 0.9465408805
C49: МКУК "Межпоселенческий культурный центр АЧРМО" | D49: 919 | E49: 0801 | F49: 7950200 | G49: 001 | H49: 551.4 | I49: 488 | J49: 0.8850199492
C50: МКУК "Районный историко-краеведческий музей" | D50: 920 | E50: 0801 | F50: 7950200 | G50: 001 | H50: 188.6 | I50: 72.5 | J50: 0.3844114528
C51: МКУК "Межпоселенческая библиотека Черемховского района" | D51: 921 | E51: 0801 | F51: 7950200 | G51: 001 | H51: 549.8 | I51: 460.9 | J51: 0.8383048381
C52: МКОУ ДОД "ДШИ поселка Михайловка" | D52: 922 | E52: 0702 | F52: 7950200 | G52: 001 | H52: 630.5 | I52: 630.5 | J52: 1
C53: Муниципальные образования района, Всего, в том числе | H53: =SUM(H54:H71) -> 6643 | I53: =SUM(I54:I71) -> 6643 | J53: =H53/I53 -> 1
C54: Алехинское сельское поселение | D54: 910 | E54: 1403 | F54: 7950200 | G54: 017 | H54: 540 | I54: 540 | J54: =H54/I54 -> 1
C55: Бельское сельское поселение | D55: 910 | E55: 1403 | F55: 7950200 | G55: 017 | H55: 155 | I55: 155 | J55: =H55/I55 -> 1
C56: Булайское сельское поселение | D56: 910 | E56: 1403 | F56: 7950200 | G56: 017 | H56: 390 | I56: 390 | J56: 1
C57: Голуметское сельское поселение | D57: 910 | E57: 1403 | F57: 7950200 | G57: 017 | H57: 370 | I57: 370 | J57: 1
C58: Зерновское сельское поселение | D58: 910 | E58: 1403 | F58: 7950200 | G58: 017 | H58: 459 | I58: 459 | J58: 1
C59: Каменно-Ангарское сельское поселение | D59: 910 | E59: 1403 | F59: 7950200 | G59: 017 | H59: 285 | I59: 285 | J59: 1
C60: Лоховское сельское поселение | D60: 910 | E60: 1403 | F60: 7950200 | G60: 017 | H60: 474 | I60: 474 | J60: 1
C61: Михайловское городское поселение | D61: 910 | E61: 1403 | F61: 7950200 | G61: 017 | H61: 468 | I61: 468 | J61: 1
C62: Нижнеиретское сельское поселение | D62: 910 | E62: 1403 | F62: 7950200 | G62: 017 | H62: 280 | I62: 280 | J62: 1
C63: Новогромовское сельское поселение | D63: 910 | E63: 1403 | F63: 7950200 | G63: 017 | H63: 293 | I63: 293 | J63: 1
C64: Новостроевское сельское поселение | D64: 910 | E64: 1403 | F64: 7950200 | G64: 017 | H64: 313 | I64: 313 | J64: 1
C65: Онотское сельское поселение | D65: 910 | E65: 1403 | F65: 7950200 | G65: 017 | H65: 288 | I65: 288 | J65: 1
C66: Парфеновское сельское поселение | D66: 910 | E66: 1403 | F66: 7950200 | G66: 017 | H66: 355 | I66: 355 | J66: 1
C67: Саянское сельское поселение | D67: 910 | E67: 1403 | F67: 7950200 | G67: 017 | H67: 471 | I67: 471 | J67: 1
C68: Тальниковское сельское поселение | D68: 910 | E68: 1403 | F68: 7950200 | G68: 017 | H68: 279 | I68: 279 | J68: 1
C69: Тунгусское сельское поселение | D69: 910 | E69: 1403 | F69: 7950200 | G69: 017 | H69: 330 | I69: 330 | J69: 1
C70: Узколугское сельское поселение | D70: 910 | E70: 1403 | F70: 7950200 | G70: 017 | H70: 544 | I70: 544 | J70: 1
C71: Черемховское сельское поселение | D71: 910 | E71: 1403 | F71: 7950200 | G71: 017 | H71: 349 | I71: 349 | J71: =H71/I71 -> 1
B72: Всего: | H72: =SUM(H12:H53) -> 45506.5 | I72: =SUM(I12:I53) -> 42915.8 | J72: =I72/H72 -> 0.9430696714
A76: Начальник финансового управления | J76: Ю.Н. Гайдук

Sheet прил 11
A6: Отчет об использовании средств резервного фонда администрации Черемховского районного муниципального образования в 2012 году
A8: № п/п | B8: Реквизиты распоряжений Администрации Черемховского районного муниципального образования | C8: Направление средств | D8: Получатель | E8: Сумма по распоряжению (тыс. руб.) | F8: Исполнено (тыс. руб.)
C9: Бюджетные ассигнования на 2012 год | E9: 300
A10: 1 | B10: №261 от 12.07.2012 | C10: Для обеспечения населения питьевой водой в целях ликвидации последствий чрезвычайной ситуации, связанной с разливом нефтепродуктов в акваторию реки Ангара | D10: Администрация ЧРМО | E10: 300 | F10: 300
C11: Всего расходов | E11: =SUM(E10:E10) -> 300 | F11: =SUM(F10:F10) -> 300
C12: Нераспределенный остаток средств резервного фонда | E12: =E9-E11 -> 0
A16: Начальник финансового управления | E16: Ю.Н. Гайдук
